Workbook

Sheet No change TSCnegvsTSCpos
A1: Gene | B1: log2FoldChange (TSCneg versus TSCpos) | C1: -log10pvalue | D1: Id | F1: norm.001-TSCneg 21pc | G1: norm.002-TSCneg 21pc | H1: norm.003-TSCneg 21pc | I1: norm.004-TSCneg 21pc | J1: norm.005-TSCneg 21pc | K1: norm.006-TSCneg 21pc | L1: norm.007-TSCpos 21pc | M1: norm.008-TSCpos 21pc | N1: norm.009-TSCpos 21pc | O1: norm.010-TSCpos 21pc | P1: norm.011-TSCpos 21pc | Q1: norm.012-TSCpos 21pc | R1: norm.013-TSCneg 1pc | S1: norm.014-TSCneg 1pc | T1: norm.015-TSCneg 1pc | U1: norm.016-TSCneg 1pc | V1: norm.017-TSCneg 1pc | W1: norm.018-TSCneg 1pc | X1: norm.019-TSCpos 1pc | Y1: norm.020-TSCpos 1pc | Z1: norm.021-TSCpos 1pc | AA1: norm.022-TSCpos 1pc | AB1: norm.023-TSCpos 1pc | AC1: norm.024-TSCpos 1pc | AD1: norm.025-TSCneg 1pc KU | AE1: norm.026-TSCneg 1pc KU | AF1: norm.027-TSCneg 1pc KU | AG1: norm.028-TSCneg 1pc KU | AH1: norm.029-TSCneg 1pc KU | AI1: norm.030-TSCneg 1pc KU | AJ1: baseMean | AK1: TSCneg 21pc | AL1: TSCpos 21pc | AM1: TSCneg 1pc | AN1: TSCpos 1pc | AO1: TSCneg 1pc KU | AP1: FoldChange (TSCpos versus TSCneg) | AQ1: log2FoldChange (TSCpos versus TSCneg) | AR1: FoldChange (TSCneg versus TSCpos) | AS1: log2FoldChange (TSCneg versus TSCpos) | AT1: padj | AU1: -log10pvalue | AV1: dispGeneEst | AW1: dispFit | AX1: dispMAP | AY1: dispersion | AZ1: betaConv | BA1: maxCooks
A2: RPL7P38 | B2: 4.224 | C2: 0.9375420312 | D2: ENSG00000239473.1 | E2: ENSG00000239473 | F2: 9 | H2: 4 | I2: 3 | S2: 6 | T2: 8 | X2: 2 | AD2: 2 | AF2: 15 | AJ2: 1.64 | AK2: 3 | AM2: 2 | AO2: 3 | AP2: 0.054 | AQ2: -4.224 | AR2: =-1*(AP2) -> -0.054 | AS2: =-1*(AQ2) -> 4.224 | AT2: 0.115467023 | AU2: =-LOG(AT2,10) -> 0.9375420312 | AV2: 10.2698 | AW2: 3.6953 | AX2: 6.7876 | AY2: 6.7876 | AZ2: TRUE | BA2: 0.1987
A3: TMEM119 | B3: 4.149 | C3: 0.4382061827 | D3: ENSG00000183160.8 | E3: ENSG00000183160 | I3: 2 | J3: 9 | K3: 5 | R3: 5 | Y3: 11 | AB3: 12 | AJ3: 1.42 | AK3: 3 | AM3: 1 | AN3: 4 | AP3: 0.056 | AQ3: -4.149 | AR3: -0.056 | AS3: 4.149 | AT3: 0.3645808199 | AU3: 0.4382061827 | AV3: 19.3639 | AW3: 4.2696 | AX3: 9.4293 | AY3: 19.3639 | AZ3: TRUE | BA3: 0.06
A4: SPINK6 | B4: 4.061 | C4: 0.3327155069 | D4: ENSG00000178172.6 | E4: ENSG00000178172 | F4: 6 | G4: 7 | I4: 2 | R4: 11 | U4: 3 | AJ4: 0.95 | AK4: 2 | AM4: 2 | AP4: 0.06 | AQ4: -4.061 | AR4: -0.06 | AS4: 4.061 | AT4: 0.4648196647 | AU4: 0.3327155069 | AV4: 27.7721 | AW4: 6.356 | AX4: 12.2531 | AY4: 27.7721 | AZ4: TRUE | BA4: 0.0542
A5: SEPHS1P6 | B5: 3.984 | C5: 0.8903243649 | D5: ENSG00000213938.3 | E5: ENSG00000213938 | F5: 7 | G5: 4 | H5: 2 | I5: 1 | W5: 10 | AD5: 4 | AE5: 14 | AH5: 5 | AJ5: 1.55 | AK5: 2 | AM5: 2 | AO5: 4 | AP5: 0.063 | AQ5: -3.984 | AR5: -0.063 | AS5: 3.984 | AT5: 0.1287287746 | AU5: 0.8903243649 | AV5: 9.0691 | AW5: 3.9156 | AX5: 6.3444 | AY5: 6.3444 | AZ5: TRUE | BA5: 0.2825
A6: PENK | B6: 3.956 | C6: 0.7571511094 | D6: ENSG00000181195.10 | E6: ENSG00000181195 | F6: 6 | G6: 2 | H6: 4 | K6: 2 | V6: 4 | AE6: 14 | AI6: 2 | AJ6: 1.14 | AK6: 2 | AM6: 1 | AO6: 3 | AP6: 0.064 | AQ6: -3.956 | AR6: -0.064 | AS6: 3.956 | AT6: 0.1749237949 | AU6: 0.7571511094 | AV6: 11.3396 | AW6: 5.3113 | AX6: 7.9086 | AY6: 7.9086 | AZ6: TRUE | BA6: 0.2498
A7: CALML6 | B7: 3.917 | C7: 0.8628084758 | D7: ENSG00000169885.9 | E7: ENSG00000169885 | F7: 9 | G7: 12 | H7: 2 | I7: 3 | P7: 2 | R7: 3 | Y7: 4 | AD7: 4 | AJ7: 1.31 | AK7: 4 | AN7: 1 | AO7: 1 | AP7: 0.066 | AQ7: -3.917 | AR7: -0.066 | AS7: 3.917 | AT7: 0.1371486459 | AU7: 0.8628084758 | AV7: 8.4782 | AW7: 4.6409 | AX7: 6.4726 | AY7: 6.4726 | AZ7: TRUE | BA7: 0.0765
A8: CCDC144A | B8: 3.873 | C8: 0.7204352261 | D8: ENSG00000170160.17 | E8: ENSG00000170160 | F8: 6 | G8: 4 | I8: 3 | T8: 8 | V8: 3 | AD8: 2 | AI8: 2 | AJ8: 0.96 | AK8: 2 | AM8: 2 | AO8: 1 | AP8: 0.068 | AQ8: -3.873 | AR8: -0.068 | AS8: 3.873 | AT8: 0.1903552126 | AU8: 0.7204352261 | AV8: 10.3129 | AW8: 6.3292 | AX8: 8.0845 | AY8: 8.0845 | AZ8: TRUE | BA8: 0.0815
A9: FAM78B | B9: 3.822 | C9: 0.2901355977 | D9: ENSG00000188859.6 | E9: ENSG00000188859 | H9: 8 | J9: 4 | U9: 15 | X9: 2 | AJ9: 0.99 | AK9: 2 | AM9: 2 | AP9: 0.071 | AQ9: -3.822 | AR9: -0.071 | AS9: 3.822 | AT9: 0.5127012807 | AU9: 0.2901355977 | AV9: 30 | AW9: 6.1199 | AX9: 16.3859 | AY9: 30 | AZ9: TRUE | BA9: 0.2012
A10: CSMD3 | B10: 3.801 | C10: 0.9179801164 | D10: ENSG00000164796.17 | E10: ENSG00000164796 | F10: 6 | H10: 2 | J10: 4 | U10: 3 | V10: 2 | W10: 4 | AE10: 3 | AF10: 6 | AH10: 2 | AJ10: 1.06 | AK10: 2 | AM10: 2 | AO10: 2 | AP10: 0.072 | AQ10: -3.801 | AR10: -0.072 | AS10: 3.801 | AT10: 0.1207869135 | AU10: 0.9179801164 | AV10: 5.1075 | AW10: 5.726 | AX10: 5.3896 | AY10: 5.3896 | AZ10: TRUE | BA10: 0.0404
A11: DRICH1 | B11: 3.786 | C11: 0.6594008522 | D11: ENSG00000189269.12 | E11: ENSG00000189269 | G11: 5 | H11: 5 | I11: 1 | K11: 1 | U11: 13 | AE11: 3 | AH11: 5 | AJ11: 1.09 | AK11: 2 | AM11: 2 | AO11: 1 | AP11: 0.072 | AQ11: -3.786 | AR11: -0.072 | AS11: 3.786 | AT11: 0.2190781918 | AU11: 0.6594008522 | AV11: 12.662 | AW11: 5.5781 | AX11: 8.7118 | AY11: 8.7118 | AZ11: TRUE | BA11: 0.1746
A12: PCSK2 | B12: 3.778 | C12: 0.8430728405 | D12: ENSG00000125851.9 | E12: ENSG00000125851 | F12: 1 | G12: 7 | I12: 2 | K12: 2 | R12: 2 | S12: 10 | V12: 9 | AF12: 5 | AJ12: 1.25 | AK12: 2 | AM12: 4 | AO12: 1 | AP12: 0.073 | AQ12: -3.778 | AR12: -0.073 | AS12: 3.778 | AT12: 0.1435248691 | AU12: 0.8430728405 | AV12: 7.313 | AW12: 4.8596 | AX12: 6.0314 | AY12: 6.0314 | AZ12: TRUE | BA12: 0.0822
A13: PLGLB2 | B13: 3.771 | C13: 0.8220090527 | D13: ENSG00000125551.18 | E13: ENSG00000125551 | G13: 2 | H13: 8 | J13: 2 | R13: 1 | T13: 3 | U13: 5 | V13: 5 | AB13: 6 | AD13: 6 | AJ13: 1.28 | AK13: 2 | AM13: 2 | AN13: 1 | AO13: 1 | AP13: 0.073 | AQ13: -3.771 | AR13: -0.073 | AS13: 3.771 | AT13: 0.1506575662 | AU13: 0.8220090527 | AV13: 7.4673 | AW13: 4.7381 | AX13: 6.2282 | AY13: 6.2282 | AZ13: TRUE | BA13: 0.2093
A14: TINAG | B14: 3.77 | C14: 0.8823090795 | D14: ENSG00000137251.15 | E14: ENSG00000137251 | F14: 6 | I14: 3 | J14: 7 | M14: 1 | R14: 5 | T14: 16 | X14: 2 | Z14: 2 | AD14: 2 | AJ14: 1.48 | AK14: 3 | AM14: 4 | AN14: 1 | AP14: 0.073 | AQ14: -3.77 | AR14: -0.073 | AS14: 3.77 | AT14: 0.1311266362 | AU14: 0.8823090795 | AV14: 7.034 | AW14: 4.1138 | AX14: 5.6637 | AY14: 5.6637 | AZ14: TRUE | BA14: 0.1075
A15: ADAM33 | B15: 3.741 | C15: 0.8055519652 | D15: ENSG00000149451.17 | E15: ENSG00000149451 | G15: 2 | H15: 6 | I15: 7 | K15: 2 | Q15: 1 | R15: 7 | W15: 6 | Y15: 6 | AG15: 9 | AJ15: 1.51 | AK15: 3 | AM15: 2 | AN15: 1 | AO15: 2 | AP15: 0.075 | AQ15: -3.741 | AR15: -0.075 | AS15: 3.741 | AT15: 0.1564761078 | AU15: 0.8055519652 | AV15: 8.4077 | AW15: 4.03 | AX15: 6.366 | AY15: 6.366 | AZ15: TRUE | BA15: 0.2167
A16: CXCL6 | B16: 3.723 | C16: 0.995178907 | D16: ENSG00000124875.9 | E16: ENSG00000124875 | H16: 4 | I16: 3 | J16: 4 | R16: 1 | U16: 13 | X16: 9 | Z16: 2 | AD16: 10 | AE16: 11 | AF16: 3 | AI16: 5 | AJ16: 2.22 | AK16: 2 | AM16: 2 | AN16: 2 | AO16: 5 | AP16: 0.076 | AQ16: -3.723 | AR16: -0.076 | AS16: 3.723 | AT16: 0.1011162821 | AU16: 0.995178907 | AV16: 5.7555 | AW16: 2.738 | AX16: 4.507 | AY16: 4.507 | AZ16: TRUE | BA16: 0.1324
A17: TREML4 | B17: 3.643 | C17: 0.7694750798 | D17: ENSG00000188056.11 | E17: ENSG00000188056 | F17: 1 | G17: 4 | H17: 2 | J17: 2 | K17: 2 | V17: 3 | AD17: 10 | AG17: 4 | AJ17: 0.98 | AK17: 2 | AO17: 2 | AP17: 0.08 | AQ17: -3.643 | AR17: -0.08 | AS17: 3.643 | AT17: 0.1700297516 | AU17: 0.7694750798 | AV17: 6.4522 | AW17: 6.1874 | AX17: 6.3183 | AY17: 6.3183 | AZ17: TRUE | BA17: 0.1447
A18: RIPPLY2 | B18: 3.642 | C18: 0.9426901556 | D18: ENSG00000203877.8 | E18: ENSG00000203877 | F18: 3 | G18: 7 | H18: 4 | K18: 7 | O18: 1 | S18: 4 | U18: 3 | W18: 2 | AD18: 2 | AJ18: 1.11 | AK18: 4 | AM18: 2 | AP18: 0.08 | AQ18: -3.642 | AR18: -0.08 | AS18: 3.642 | AT18: 0.1141063581 | AU18: 0.9426901556 | AV18: 4.0825 | AW18: 5.4806 | AX18: 4.7445 | AY18: 4.7445 | AZ18: TRUE | BA18: 0.0413
A19: CHST6 | B19: 3.64 | C19: 0.7032999959 | D19: ENSG00000183196.8 | E19: ENSG00000183196 | F19: 1 | H19: 2 | I19: 12 | L19: 1 | U19: 5 | W19: 2 | AA19: 2 | AH19: 5 | AJ19: 1.01 | AK19: 2 | AM19: 1 | AO19: 1 | AP19: 0.08 | AQ19: -3.64 | AR19: -0.08 | AS19: 3.64 | AT19: 0.1980158727 | AU19: 0.7032999959 | AV19: 8.5124 | AW19: 6.0018 | AX19: 7.2812 | AY19: 7.2812 | AZ19: TRUE | BA19: 0.5998
A20: SLC25A5P2 | B20: 3.628 | C20: 0.2700847785 | D20: ENSG00000235064.1 | E20: ENSG00000235064 | K20: 11 | S20: 6 | X20: 2 | Y20: 6 | AE20: 6 | AJ20: 1.02 | AK20: 2 | AM20: 1 | AN20: 1 | AO20: 1 | AP20: 0.081 | AQ20: -3.628 | AR20: -0.081 | AS20: 3.628 | AT20: 0.5369269727 | AU20: 0.2700847785 | AV20: 30 | AW20: 5.9565 | AX20: 14.3988 | AY20: 30 | AZ20: TRUE | BA20: 1.7783
A21: PCDHA8 | B21: 3.536 | C21: 0.5481835155 | D21: ENSG00000204962.5 | E21: ENSG00000204962 | F21: 6 | I21: 4 | S21: 2 | T21: 3 | AE21: 8 | AF21: 12 | AJ21: 1.17 | AK21: 2 | AM21: 1 | AO21: 3 | AP21: 0.086 | AQ21: -3.536 | AR21: -0.086 | AS21: 3.536 | AT21: 0.2830195816 | AU21: 0.5481835155 | AV21: 18.1422 | AW21: 5.1759 | AX21: 9.7632 | AY21: 9.7632 | AZ21: TRUE | BA21: 0.0187
A22: ADORA2BP1 | B22: 3.514 | C22: 0.7637395298 | D22: ENSG00000236136.1 | E22: ENSG00000236136 | G22: 5 | H22: 2 | I22: 2 | J22: 11 | L22: 2 | U22: 3 | AE22: 8 | AF22: 15 | AJ22: 1.59 | AK22: 3 | AO22: 4 | AP22: 0.088 | AQ22: -3.514 | AR22: -0.088 | AS22: 3.514 | AT22: 0.1722901584 | AU22: 0.7637395298 | AV22: 8.4373 | AW22: 3.8282 | AX22: 5.9709 | AY22: 5.9709 | AZ22: TRUE | BA22: 0.124
A23: ISCA2P1 | B23: 3.51 | C23: 0.9425700069 | D23: ENSG00000226912.1 | E23: ENSG00000226912 | G23: 6 | H23: 2 | K23: 2 | T23: 1 | U23: 1 | V23: 3 | AA23: 2 | AF23: 21 | AG23: 13 | AH23: 6 | AJ23: 1.97 | AK23: 2 | AM23: 1 | AO23: 7 | AP23: 0.088 | AQ23: -3.51 | AR23: -0.088 | AS23: 3.51 | AT23: 0.1141379303 | AU23: 0.9425700069 | AV23: 5.0988 | AW23: 3.0927 | AX23: 4.1843 | AY23: 4.1843 | AZ23: TRUE | BA23: 0.0609
A24: NUP210 | B24: 3.487 | C24: 0.6696719775 | D24: ENSG00000132182.11 | E24: ENSG00000132182 | F24: 4 | I24: 5 | J24: 4 | N24: 1 | AA24: 2 | AC24: 6 | AD24: 1 | AE24: 11 | AJ24: 1.16 | AK24: 2 | AN24: 1 | AO24: 2 | AP24: 0.089 | AQ24: -3.487 | AR24: -0.089 | AS24: 3.487 | AT24: 0.2139577502 | AU24: 0.6696719775 | AV24: 8.92 | AW24: 5.2109 | AX24: 7.0602 | AY24: 7.0602 | AZ24: TRUE | BA24: 0.1479
A25: EWSAT1 | B25: 3.445 | C25: 0.9612554693 | D25: ENSG00000212766.9 | E25: ENSG00000212766 | F25: 4 | G25: 9 | O25: 1 | V25: 2 | W25: 6 | AC25: 6 | AE25: 6 | AF25: 9 | AG25: 2 | AH25: 21 | AI25: 7 | AJ25: 2.41 | AK25: 2 | AM25: 1 | AN25: 1 | AO25: 8 | AP25: 0.092 | AQ25: -3.445 | AR25: -0.092 | AS25: 3.445 | AT25: 0.1093313047 | AU25: 0.9612554693 | AV25: 4.9885 | AW25: 2.5196 | AX25: 3.9266 | AY25: 3.9266 | AZ25: TRUE | BA25: 0.2185
A26: CLMAT3 | B26: 3.423 | C26: 0.732269333 | D26: ENSG00000249035.6 | E26: ENSG00000249035 | F26: 4 | H26: 4 | I26: 1 | S26: 4 | T26: 8 | U26: 1 | Y26: 2 | AE26: 3 | AG26: 2 | AJ26: 0.99 | AK26: 2 | AM26: 2 | AO26: 1 | AP26: 0.093 | AQ26: -3.423 | AR26: -0.093 | AS26: 3.423 | AT26: 0.185238249 | AU26: 0.732269333 | AV26: 5.5619 | AW26: 6.1398 | AX26: 5.8206 | AY26: 5.8206 | AZ26: TRUE | BA26: 0.1477
A27: PCDHA13 | B27: 3.345 | C27: 0.7759448182 | D27: ENSG00000239389.7 | E27: ENSG00000239389 | I27: 2 | K27: 7 | S27: 2 | V27: 2 | W27: 2 | AE27: 6 | AG27: 2 | AH27: 7 | AI27: 5 | AJ27: 1.15 | AK27: 2 | AM27: 1 | AO27: 3 | AP27: 0.098 | AQ27: -3.345 | AR27: -0.098 | AS27: 3.345 | AT27: 0.1675155709 | AU27: 0.7759448182 | AV27: 4.788 | AW27: 5.266 | AX27: 5.0112 | AY27: 5.0112 | AZ27: TRUE | BA27: 0.0737
A28: SYT2 | B28: 3.338 | C28: 0.6482139518 | D28: ENSG00000143858.11 | E28: ENSG00000143858 | F28: 6 | G28: 4 | H28: 6 | I28: 2 | P28: 2 | W28: 8 | AH28: 2 | AI28: 5 | AJ28: 1.14 | AK28: 3 | AM28: 1 | AO28: 1 | AP28: 0.099 | AQ28: -3.338 | AR28: -0.099 | AS28: 3.338 | AT28: 0.2247946899 | AU28: 0.6482139518 | AV28: 8.1575 | AW28: 5.3432 | AX28: 6.7327 | AY28: 6.7327 | AZ28: TRUE | BA28: 0.1239
A29: RPS27AP2 | B29: 3.294 | C29: 0.807651089 | D29: ENSG00000232333.1 | E29: ENSG00000232333 | F29: 3 | I29: 2 | J29: 2 | K29: 2 | T29: 8 | U29: 5 | W29: 4 | AA29: 2 | AH29: 5 | AI29: 10 | AJ29: 1.41 | AK29: 2 | AM29: 3 | AO29: 2 | AP29: 0.102 | AQ29: -3.294 | AR29: -0.102 | AS29: 3.294 | AT29: 0.1557216192 | AU29: 0.807651089 | AV29: 4.6501 | AW29: 4.3067 | AX29: 4.5029 | AY29: 4.5029 | AZ29: TRUE | BA29: 0.1547
A30: PLPPR3 | B30: 3.29 | C30: 0.845723291 | D30: ENSG00000129951.18 | E30: ENSG00000129951 | F30: 4 | H30: 4 | AA30: 2 | AD30: 15 | AE30: 6 | AF30: 12 | AG30: 7 | AH30: 7 | AJ30: 1.9 | AK30: 1 | AO30: 8 | AP30: 0.102 | AQ30: -3.29 | AR30: -0.102 | AS30: 3.29 | AT30: 0.1426516203 | AU30: 0.845723291 | AV30: 5.608 | AW30: 3.2036 | AX30: 4.1656 | AY30: 4.1656 | AZ30: TRUE | BA30: 0.1056
A31: LAPTM5 | B31: 3.278 | C31: 0.5076978256 | D31: ENSG00000162511.7 | E31: ENSG00000162511 | F31: 7 | G31: 2 | S31: 2 | W31: 8 | Y31: 4 | Z31: 9 | AH31: 15 | AJ31: 1.55 | AK31: 2 | AM31: 2 | AN31: 2 | AO31: 2 | AP31: 0.103 | AQ31: -3.278 | AR31: -0.103 | AS31: 3.278 | AT31: 0.3106720438 | AU31: 0.5076978256 | AV31: 16.4455 | AW31: 3.9298 | AX31: 9.1879 | AY31: 9.1879 | AZ31: TRUE | BA31: 0.4868
A32: TM4SF20 | B32: 3.272 | C32: 0.7997276854 | D32: ENSG00000168955.3 | E32: ENSG00000168955 | G32: 1 | H32: 2 | I32: 3 | J32: 2 | K32: 8 | P32: 2 | V32: 9 | W32: 8 | AD32: 8 | AI32: 2 | AJ32: 1.52 | AK32: 3 | AM32: 3 | AO32: 2 | AP32: 0.104 | AQ32: -3.272 | AR32: -0.104 | AS32: 3.272 | AT32: 0.1585887276 | AU32: 0.7997276854 | AV32: 5.1291 | AW32: 4.0039 | AX32: 4.6486 | AY32: 4.6486 | AZ32: TRUE | BA32: 0.0794
A33: FBXW10 | B33: 3.265 | C33: 0.9370604368 | D33: ENSG00000171931.12 | E33: ENSG00000171931 | F33: 3 | G33: 4 | H33: 3 | I33: 5 | K33: 2 | L33: 2 | U33: 5 | W33: 8 | AA33: 4 | AB33: 2 | AF33: 5 | AG33: 4 | AJ33: 1.55 | AK33: 3 | AM33: 2 | AN33: 1 | AO33: 2 | AP33: 0.104 | AQ33: -3.265 | AR33: -0.104 | AS33: 3.265 | AT33: 0.1155951368 | AU33: 0.9370604368 | AV33: 3.4013 | AW33: 3.9139 | AX33: 3.5901 | AY33: 3.5901 | AZ33: TRUE | BA33: 0.2278
A34: EEF1A1P8 | B34: 3.258 | C34: 0.8235883605 | D34: ENSG00000223529.1 | E34: ENSG00000223529 | F34: 1 | I34: 5 | K34: 2 | R34: 2 | S34: 2 | W34: 2 | Y34: 6 | Z34: 2 | AD34: 4 | AE34: 7 | AG34: 2 | AJ34: 1.22 | AK34: 1 | AM34: 1 | AN34: 1 | AO34: 2 | AP34: 0.105 | AQ34: -3.258 | AR34: -0.105 | AS34: 3.258 | AT34: 0.1501106963 | AU34: 0.8235883605 | AV34: 3.7766 | AW34: 4.9865 | AX34: 4.2287 | AY34: 4.2287 | AZ34: TRUE | BA34: 0.1287
A35: MUC16 | B35: 3.242 | C35: 0.6492193139 | D35: ENSG00000181143.15 | E35: ENSG00000181143 | F35: 8 | S35: 2 | T35: 8 | W35: 3 | X35: 2 | AC35: 2 | AE35: 3 | AF35: 6 | AG35: 2 | AJ35: 1.18 | AK35: 1 | AM35: 2 | AN35: 1 | AO35: 2 | AP35: 0.106 | AQ35: -3.242 | AR35: -0.106 | AS35: 3.242 | AT35: 0.2242749074 | AU35: 0.6492193139 | AV35: 6.8784 | AW35: 5.1394 | AX35: 6.1005 | AY35: 6.1005 | AZ35: TRUE | BA35: 0.5398
A36: PDE9A | B36: 3.237 | C36: 0.5575319305 | D36: ENSG00000160191.17 | E36: ENSG00000160191 | F36: 8 | AA36: 2 | AC36: 2 | AD36: 8 | AG36: 2 | AH36: 5 | AI36: 5 | AJ36: 1.07 | AK36: 1 | AN36: 1 | AO36: 3 | AP36: 0.106 | AQ36: -3.237 | AR36: -0.106 | AS36: 3.237 | AT36: 0.2769925379 | AU36: 0.5575319305 | AV36: 10.4365 | AW36: 5.6611 | AX36: 7.7143 | AY36: 7.7143 | AZ36: TRUE | BA36: 0.1216
A37: ZBP1 | B37: 3.192 | C37: 0.6553989436 | D37: ENSG00000124256.14 | E37: ENSG00000124256 | F37: 6 | J37: 4 | K37: 5 | N37: 2 | S37: 2 | T37: 5 | V37: 2 | AC37: 2 | AG37: 9 | AJ37: 1.23 | AK37: 2 | AM37: 2 | AO37: 2 | AP37: 0.109 | AQ37: -3.192 | AR37: -0.109 | AS37: 3.192 | AT37: 0.2211062691 | AU37: 0.6553989436 | AV37: 6.7848 | AW37: 4.9394 | AX37: 5.9449 | AY37: 5.9449 | AZ37: TRUE | BA37: 0.1442
A38: SRCIN1 | B38: 3.183 | C38: 0.6116801648 | D38: ENSG00000277363.4 | E38: ENSG00000277363 | G38: 4 | I38: 8 | K38: 4 | L38: 2 | S38: 6 | W38: 8 | X38: 9 | AD38: 12 | AG38: 2 | AJ38: 1.84 | AK38: 3 | AM38: 2 | AN38: 2 | AO38: 2 | AP38: 0.11 | AQ38: -3.183 | AR38: -0.11 | AS38: 3.183 | AT38: 0.2445230674 | AU38: 0.6116801648 | AV38: 9.5879 | AW38: 3.3014 | AX38: 6.5703 | AY38: 6.5703 | AZ38: TRUE | BA38: 0.326
A39: IGFBP2 | B39: 3.18 | C39: 0.5296805579 | D39: ENSG00000115457.9 | E39: ENSG00000115457 | H39: 4 | J39: 2 | K39: 2 | R39: 14 | U39: 8 | AE39: 3 | AG39: 9 | AJ39: 1.37 | AK39: 1 | AM39: 4 | AO39: 2 | AP39: 0.11 | AQ39: -3.18 | AR39: -0.11 | AS39: 3.18 | AT39: 0.2953380765 | AU39: 0.5296805579 | AV39: 12.9115 | AW39: 4.435 | AX39: 7.9967 | AY39: 7.9967 | AZ39: TRUE | BA39: 0.057
A40: SLC22A14 | B40: 3.177 | C40: 0.885109876 | D40: ENSG00000144671.10 | E40: ENSG00000144671 | F40: 4 | H40: 2 | I40: 2 | K40: 7 | O40: 1 | T40: 3 | V40: 3 | W40: 4 | X40: 6 | Y40: 2 | AA40: 8 | AE40: 6 | AJ40: 1.61 | AK40: 2 | AM40: 2 | AN40: 3 | AO40: 1 | AP40: 0.111 | AQ40: -3.177 | AR40: -0.111 | AS40: 3.177 | AT40: 0.130283712 | AU40: 0.885109876 | AV40: 3.5894 | AW40: 3.7648 | AX40: 3.6535 | AY40: 3.6535 | AZ40: TRUE | BA40: 0.2345
A41: CDH4 | B41: 3.175 | C41: 0.8081660537 | D41: ENSG00000179242.15 | E41: ENSG00000179242 | F41: 1 | G41: 9 | J41: 5 | K41: 5 | O41: 1 | P41: 2 | U41: 3 | Y41: 2 | AE41: 3 | AH41: 5 | AJ41: 1.19 | AK41: 3 | AO41: 1 | AP41: 0.111 | AQ41: -3.175 | AR41: -0.111 | AS41: 3.175 | AT41: 0.1555370818 | AU41: 0.8081660537 | AV41: 3.7407 | AW41: 5.1196 | AX41: 4.3231 | AY41: 4.3231 | AZ41: TRUE | BA41: 0.1226
A42: NR2E3 | B42: 3.17 | C42: 0.8826757126 | D42: ENSG00000278570.4 | E42: ENSG00000278570 | G42: 2 | H42: 4 | I42: 5 | K42: 5 | M42: 2 | R42: 2 | U42: 5 | W42: 4 | AD42: 2 | AE42: 10 | AF42: 15 | AJ42: 1.85 | AK42: 3 | AM42: 2 | AO42: 4 | AP42: 0.111 | AQ42: -3.17 | AR42: -0.111 | AS42: 3.17 | AT42: 0.1310159853 | AU42: 0.8826757126 | AV42: 3.9012 | AW42: 3.2792 | AX42: 3.6455 | AY42: 3.6455 | AZ42: TRUE | BA42: 0.1232
A43: DUX4L26 | B43: 3.165 | C43: 0.7866478885 | D43: ENSG00000236138.4 | E43: ENSG00000236138 | G43: 4 | H43: 2 | I43: 2 | J43: 6 | K43: 2 | O43: 1 | R43: 2 | W43: 2 | X43: 9 | AC43: 11 | AJ43: 1.36 | AK43: 3 | AM43: 1 | AN43: 3 | AP43: 0.111 | AQ43: -3.165 | AR43: -0.111 | AS43: 3.165 | AT43: 0.1634376509 | AU43: 0.7866478885 | AV43: 4.3157 | AW43: 4.4588 | AX43: 4.3788 | AY43: 4.3788 | AZ43: TRUE | BA43: 0.0279
A44: CEBPA | B44: 3.125 | C44: 0.6350123752 | D44: ENSG00000245848.2 | E44: ENSG00000245848 | F44: 7 | H44: 4 | I44: 3 | P44: 2 | R44: 5 | S44: 8 | AA44: 4 | AB44: 2 | AE44: 3 | AJ44: 1.26 | AK44: 2 | AM44: 2 | AN44: 1 | AP44: 0.115 | AQ44: -3.125 | AR44: -0.115 | AS44: 3.125 | AT44: 0.2317328617 | AU44: 0.6350123752 | AV44: 6.8619 | AW44: 4.8074 | AX44: 5.9217 | AY44: 5.9217 | AZ44: TRUE | BA44: 0.1907
A45: PPIAP19 | B45: 3.122 | C45: 0.5718696916 | D45: ENSG00000228169.3 | E45: ENSG00000228169 | G45: 7 | K45: 4 | N45: 1 | V45: 10 | W45: 4 | AG45: 7 | AH45: 2 | AI45: 2 | AJ45: 1.25 | AK45: 2 | AM45: 2 | AO45: 2 | AP45: 0.115 | AQ45: -3.122 | AR45: -0.115 | AS45: 3.122 | AT45: 0.267997232 | AU45: 0.5718696916 | AV45: 8.9772 | AW45: 4.849 | AX45: 6.8783 | AY45: 6.8783 | AZ45: TRUE | BA45: 0.1793
A46: CACNA1H | B46: 3.101 | C46: 0.5155334435 | D46: ENSG00000196557.12 | E46: ENSG00000196557 | F46: 7 | R46: 2 | V46: 5 | Y46: 1 | Z46: 5 | AA46: 2 | AB46: 2 | AD46: 6 | AJ46: 1.03 | AK46: 1 | AM46: 1 | AN46: 2 | AO46: 1 | AP46: 0.117 | AQ46: -3.101 | AR46: -0.117 | AS46: 3.101 | AT46: 0.305117106 | AU46: 0.5155334435 | AV46: 9.6964 | AW46: 5.8741 | AX46: 7.8395 | AY46: 7.8395 | AZ46: TRUE | BA46: 0.749
A47: KCNG1 | B47: 3.093 | C47: 0.5637447944 | D47: ENSG00000026559.13 | E47: ENSG00000026559 | G47: 2 | H47: 4 | I47: 2 | R47: 2 | S47: 4 | V47: 9 | W47: 8 | AJ47: 1.01 | AK47: 1 | AM47: 4 | AP47: 0.117 | AQ47: -3.093 | AR47: -0.117 | AS47: 3.093 | AT47: 0.273058189 | AU47: 0.5637447944 | AV47: 7.8921 | AW47: 5.995 | AX47: 6.7789 | AY47: 6.7789 | AZ47: TRUE | BA47: 0.0121
A48: C9orf152 | B48: 3.091 | C48: 0.7372011911 | D48: ENSG00000188959.9 | E48: ENSG00000188959 | F48: 7 | G48: 7 | Q48: 1 | R48: 2 | T48: 4 | V48: 2 | W48: 2 | AA48: 4 | AB48: 2 | AE48: 6 | AF48: 3 | AJ48: 1.36 | AK48: 2 | AM48: 2 | AN48: 1 | AO48: 2 | AP48: 0.117 | AQ48: -3.091 | AR48: -0.117 | AS48: 3.091 | AT48: 0.1831465782 | AU48: 0.7372011911 | AV48: 4.6189 | AW48: 4.4764 | AX48: 4.5644 | AY48: 4.5644 | AZ48: TRUE | BA48: 0.0729
A49: XRCC6P1 | B49: 3.069 | C49: 0.6397452998 | D49: ENSG00000237417.1 | E49: ENSG00000237417 | F49: 1 | I49: 2 | J49: 4 | V49: 2 | W49: 10 | X49: 2 | Z49: 14 | AD49: 2 | AG49: 7 | AI49: 2 | AJ49: 1.53 | AK49: 1 | AM49: 2 | AN49: 3 | AO49: 2 | AP49: 0.119 | AQ49: -3.069 | AR49: -0.119 | AS49: 3.069 | AT49: 0.229221157 | AU49: 0.6397452998 | AV49: 6.4728 | AW49: 3.9632 | AX49: 5.4195 | AY49: 5.4195 | AZ49: TRUE | BA49: 0.9961
A50: AKR1B10P1 | B50: 3.064 | C50: 0.8086988194 | D50: ENSG00000213606.3 | E50: ENSG00000213606 | F50: 3 | H50: 4 | K50: 7 | Q50: 1 | S50: 2 | T50: 5 | U50: 5 | V50: 2 | W50: 4 | Y50: 2 | AJ50: 1.2 | AK50: 2 | AM50: 3 | AP50: 0.12 | AQ50: -3.064 | AR50: -0.12 | AS50: 3.064 | AT50: 0.1553463954 | AU50: 0.8086988194 | AV50: 2.9029 | AW50: 5.0596 | AX50: 3.8351 | AY50: 3.8351 | AZ50: TRUE | BA50: 0.1716
A51: FBXO39 | B51: 3.046 | C51: 0.9088289014 | D51: ENSG00000177294.6 | E51: ENSG00000177294 | F51: 6 | J51: 6 | K51: 2 | Q51: 1 | T51: 10 | U51: 3 | V51: 7 | W51: 6 | X51: 2 | AB51: 2 | AC51: 3 | AE51: 3 | AI51: 7 | AJ51: 1.95 | AK51: 2 | AM51: 4 | AN51: 1 | AO51: 2 | AP51: 0.121 | AQ51: -3.046 | AR51: -0.121 | AS51: 3.046 | AT51: 0.1233590734 | AU51: 0.9088289014 | AV51: 3.0949 | AW51: 3.1147 | AX51: 3.1043 | AY51: 3.1043 | AZ51: TRUE | BA51: 0.1119
A52: PCDHB4 | B52: 3.034 | C52: 0.4802812637 | D52: ENSG00000081818.3 | E52: ENSG00000081818 | G52: 2 | K52: 5 | U52: 10 | W52: 4 | Y52: 2 | Z52: 5 | AB52: 8 | AJ52: 1.2 | AK52: 1 | AM52: 2 | AN52: 2 | AP52: 0.122 | AQ52: -3.034 | AR52: -0.122 | AS52: 3.034 | AT52: 0.3309167392 | AU52: 0.4802812637 | AV52: 12.6113 | AW52: 5.0499 | AX52: 8.3144 | AY52: 8.3144 | AZ52: TRUE | BA52: 0.1097
A53: VIPR1 | B53: 3.034 | C53: 0.5535800016 | D53: ENSG00000114812.12 | E53: ENSG00000114812 | G53: 2 | K53: 5 | R53: 2 | S53: 4 | T53: 3 | AE53: 8 | AF53: 3 | AH53: 5 | AJ53: 1.07 | AK53: 1 | AM53: 2 | AO53: 3 | AP53: 0.122 | AQ53: -3.034 | AR53: -0.122 | AS53: 3.034 | AT53: 0.2795245767 | AU53: 0.5535800016 | AV53: 7.646 | AW53: 5.6468 | AX53: 6.6408 | AY53: 6.6408 | AZ53: TRUE | BA53: 0.0758
A54: AJAP1 | B54: 3.032 | C54: 0.8153617307 | D54: ENSG00000196581.10 | E54: ENSG00000196581 | F54: 7 | H54: 2 | I54: 8 | J54: 6 | K54: 5 | M54: 4 | R54: 9 | S54: 2 | T54: 3 | W54: 6 | AB54: 8 | AE54: 14 | AJ54: 2.5 | AK54: 5 | AL54: 1 | AM54: 3 | AN54: 1 | AO54: 2 | AP54: 0.122 | AQ54: -3.032 | AR54: -0.122 | AS54: 3.032 | AT54: 0.1529812726 | AU54: 0.8153617307 | AV54: 5.2186 | AW54: 2.4388 | AX54: 4.1187 | AY54: 4.1187 | AZ54: TRUE | BA54: 0.5701
A55: APOD | B55: 3.029 | C55: 0.7423303809 | D55: ENSG00000189058.8 | E55: ENSG00000189058 | F55: 4 | I55: 3 | J55: 2 | M55: 1 | S55: 6 | V55: 2 | AD55: 10 | AE55: 8 | AF55: 3 | AH55: 2 | AJ55: 1.42 | AK55: 2 | AM55: 1 | AO55: 4 | AP55: 0.123 | AQ55: -3.029 | AR55: -0.123 | AS55: 3.029 | AT55: 0.1809962676 | AU55: 0.7423303809 | AV55: 4.1617 | AW55: 4.2621 | AX55: 4.2029 | AY55: 4.2029 | AZ55: TRUE | BA55: 0.0557
A56: UGT2B4 | B56: 3.016 | C56: 0.7614976566 | D56: ENSG00000156096.13 | E56: ENSG00000156096 | G56: 4 | H56: 3 | I56: 3 | J56: 2 | K56: 2 | O56: 1 | S56: 4 | AB56: 4 | AD56: 4 | AF56: 12 | AH56: 1 | AJ56: 1.35 | AK56: 2 | AM56: 1 | AN56: 1 | AO56: 3 | AP56: 0.124 | AQ56: -3.016 | AR56: -0.124 | AS56: 3.016 | AT56: 0.1731818375 | AU56: 0.7614976566 | AV56: 3.7898 | AW56: 4.4906 | AX56: 4.0599 | AY56: 4.0599 | AZ56: TRUE | BA56: 0.2885
A57: KRTAP4-8 | B57: 3.012 | C57: 0.7977593642 | D57: ENSG00000204880.7 | E57: ENSG00000204880 | G57: 2 | I57: 2 | K57: 4 | T57: 10 | V57: 3 | AD57: 6 | AE57: 3 | AF57: 24 | AH57: 7 | AI57: 5 | AJ57: 2.22 | AK57: 1 | AM57: 2 | AO57: 8 | AP57: 0.124 | AQ57: -3.012 | AR57: -0.124 | AS57: 3.012 | AT57: 0.1593091189 | AU57: 0.7977593642 | AV57: 4.3035 | AW57: 2.7441 | AX57: 3.5587 | AY57: 3.5587 | AZ57: TRUE | BA57: 0.1528
A58: AQP2 | B58: 2.989 | C58: 0.7372011911 | D58: ENSG00000167580.7 | E58: ENSG00000167580 | F58: 1 | H58: 6 | J58: 4 | K58: 2 | O58: 1 | S58: 4 | U58: 3 | V58: 7 | AC58: 3 | AD58: 2 | AF58: 6 | AJ58: 1.32 | AK58: 2 | AM58: 2 | AO58: 1 | AP58: 0.126 | AQ58: -2.989 | AR58: -0.126 | AS58: 2.989 | AT58: 0.1831465782 | AU58: 0.7372011911 | AV58: 3.9215 | AW58: 4.5954 | AX58: 4.178 | AY58: 4.178 | AZ58: TRUE | BA58: 0.2621
A59: CSNK1A1P1 | B59: 2.972 | C59: 0.772755874 | D59: ENSG00000223518.5 | E59: ENSG00000223518 | G59: 1 | H59: 2 | I59: 8 | J59: 2 | M59: 2 | S59: 6 | U59: 5 | V59: 11 | AD59: 7 | AF59: 3 | AH59: 5 | AJ59: 1.76 | AK59: 2 | AM59: 4 | AO59: 2 | AP59: 0.127 | AQ59: -2.972 | AR59: -0.127 | AS59: 2.972 | AT59: 0.1687501338 | AU59: 0.772755874 | AV59: 4.0514 | AW59: 3.4432 | AX59: 3.8069 | AY59: 3.8069 | AZ59: TRUE | BA59: 0.1994
A60: PTMAP8 | B60: 2.971 | C60: 0.6211172673 | D60: ENSG00000243014.1 | E60: ENSG00000243014 | G60: 5 | H60: 8 | Q60: 1 | T60: 5 | V60: 2 | Z60: 2 | AC60: 3 | AD60: 2 | AE60: 3 | AF60: 5 | AJ60: 1.22 | AK60: 2 | AM60: 1 | AN60: 1 | AO60: 2 | AP60: 0.128 | AQ60: -2.971 | AR60: -0.128 | AS60: 2.971 | AT60: 0.2392669606 | AU60: 0.6211172673 | AV60: 5.7196 | AW60: 4.9546 | AX60: 5.406 | AY60: 5.406 | AZ60: TRUE | BA60: 0.0995
A61: DRC1 | B61: 2.963 | C61: 0.8066041071 | D61: ENSG00000157856.10 | E61: ENSG00000157856 | G61: 2 | H61: 4 | I61: 2 | J61: 2 | N61: 1 | R61: 9 | S61: 6 | T61: 3 | V61: 10 | Y61: 4 | AH61: 2 | AI61: 10 | AJ61: 1.84 | AK61: 2 | AM61: 5 | AN61: 1 | AO61: 2 | AP61: 0.128 | AQ61: -2.963 | AR61: -0.128 | AS61: 2.963 | AT61: 0.1560974803 | AU61: 0.8066041071 | AV61: 3.5031 | AW61: 3.3097 | AX61: 3.4292 | AY61: 3.4292 | AZ61: TRUE | BA61: 0.1253
A62: OVCH1 | B62: 2.962 | C62: 0.9301491944 | D62: ENSG00000187950.8 | E62: ENSG00000187950 | G62: 3 | H62: 3 | I62: 7 | K62: 1 | N62: 2 | R62: 1 | S62: 10 | T62: 3 | U62: 6 | W62: 6 | AD62: 1 | AF62: 12 | AH62: 2 | AJ62: 1.89 | AK62: 2 | AM62: 4 | AO62: 2 | AP62: 0.128 | AQ62: -2.962 | AR62: -0.128 | AS62: 2.962 | AT62: 0.1174494008 | AU62: 0.9301491944 | AV62: 2.5017 | AW62: 3.2196 | AX62: 2.7471 | AY62: 2.7471 | AZ62: TRUE | BA62: 0.1793
A63: BDH2P1 | B63: 2.95 | C63: 0.6128069848 | D63: ENSG00000232699.3 | E63: ENSG00000232699 | F63: 1 | G63: 2 | I63: 2 | K63: 2 | R63: 2 | T63: 3 | X63: 11 | AD63: 2 | AE63: 6 | AG63: 2 | AJ63: 1.09 | AK63: 1 | AM63: 1 | AN63: 2 | AO63: 2 | AP63: 0.129 | AQ63: -2.95 | AR63: -0.129 | AS63: 2.95 | AT63: 0.2438894505 | AU63: 0.6128069848 | AV63: 5.0072 | AW63: 5.5805 | AX63: 5.2349 | AY63: 5.2349 | AZ63: TRUE | BA63: 0.8079
A64: SSMEM1 | B64: 2.95 | C64: 0.7654953811 | D64: ENSG00000165120.3 | E64: ENSG00000165120 | F64: 7 | G64: 2 | J64: 2 | K64: 2 | P64: 2 | R64: 2 | S64: 2 | U64: 10 | W64: 2 | Z64: 2 | AC64: 3 | AJ64: 1.22 | AK64: 2 | AM64: 3 | AN64: 1 | AP64: 0.129 | AQ64: -2.95 | AR64: -0.129 | AS64: 2.95 | AT64: 0.171594996 | AU64: 0.7654953811 | AV64: 3.078 | AW64: 4.9861 | AX64: 3.7899 | AY64: 3.7899 | AZ64: TRUE | BA64: 0.261
A65: LARGE2 | B65: 2.942 | C65: 0.8364080286 | D65: ENSG00000165905.17 | E65: ENSG00000165905 | F65: 1 | I65: 3 | K65: 2 | R65: 1 | U65: 3 | V65: 2 | X65: 2 | AD65: 4 | AE65: 6 | AG65: 11 | AI65: 12 | AJ65: 1.57 | AK65: 1 | AM65: 1 | AO65: 6 | AP65: 0.13 | AQ65: -2.942 | AR65: -0.13 | AS65: 2.942 | AT65: 0.1457444318 | AU65: 0.8364080286 | AV65: 2.4278 | AW65: 3.8731 | AX65: 3.0423 | AY65: 3.0423 | AZ65: TRUE | BA65: 0.0455
A66: NPM1P18 | B66: 2.907 | C66: 0.9422479423 | D66: ENSG00000225739.1 | E66: ENSG00000225739 | F66: 4 | G66: 5 | I66: 7 | J66: 2 | K66: 4 | O66: 1 | P66: 2 | S66: 4 | Z66: 2 | AD66: 2 | AE66: 3 | AH66: 2 | AJ66: 1.26 | AK66: 4 | AM66: 1 | AO66: 1 | AP66: 0.133 | AQ66: -2.907 | AR66: =-1*(AP66) -> -0.133 | AS66: =-1*(AQ66) -> 2.907 | AT66: 0.1142226042 | AU66: =-LOG(AT66,10) -> 0.9422479423 | AV66: 1.5162 | AW66: 4.817 | AX66: 2.7815 | AY66: 2.7815 | AZ66: TRUE | BA66: 0.2413
A67: IL22RA2 | B67: 2.898 | C67: 0.6006934367 | D67: ENSG00000164485.14 | E67: ENSG00000164485 | F67: 3 | I67: 2 | K67: 2 | R67: 7 | U67: 5 | W67: 2 | AE67: 6 | AG67: 7 | AI67: 2 | AJ67: 1.17 | AK67: 1 | AM67: 2 | AO67: 2 | AP67: 0.134 | AQ67: -2.898 | AR67: -0.134 | AS67: 2.898 | AT67: 0.250787891 | AU67: 0.6006934367 | AV67: 5.1229 | AW67: 5.195 | AX67: 5.1571 | AY67: 5.1571 | AZ67: TRUE | BA67: 0.0231
A68: SERPINB9P1 | B68: 2.889 | C68: 0.9121562175 | D68: ENSG00000230438.6 | E68: ENSG00000230438 | I68: 1 | J68: 2 | K68: 4 | V68: 2 | Y68: 2 | AA68: 2 | AD68: 8 | AE68: 6 | AF68: 24 | AG68: 11 | AI68: 10 | AJ68: 2.39 | AK68: 1 | AN68: 1 | AO68: 10 | AP68: 0.135 | AQ68: -2.889 | AR68: -0.135 | AS68: 2.889 | AT68: 0.1224175779 | AU68: 0.9121562175 | AV68: 2.3254 | AW68: 2.5481 | AX68: 2.4333 | AY68: 2.4333 | AZ68: TRUE | BA68: 0.0623
A69: FAM177B | B69: 2.884 | C69: 0.6989651321 | D69: ENSG00000197520.10 | E69: ENSG00000197520 | F69: 4 | G69: 3 | R69: 5 | T69: 3 | V69: 4 | W69: 4 | X69: 2 | Y69: 4 | AD69: 2 | AF69: 6 | AI69: 6 | AJ69: 1.41 | AK69: 1 | AM69: 3 | AN69: 1 | AO69: 2 | AP69: 0.135 | AQ69: -2.884 | AR69: -0.135 | AS69: 2.884 | AT69: 0.2000022438 | AU69: 0.6989651321 | AV69: 3.6804 | AW69: 4.3197 | AX69: 3.9321 | AY69: 3.9321 | AZ69: TRUE | BA69: 0.0678
A70: SFMBT2 | B70: 2.868 | C70: 0.8204504174 | D70: ENSG00000198879.11 | E70: ENSG00000198879 | F70: 4 | G70: 2 | R70: 18 | S70: 8 | T70: 3 | U70: 9 | V70: 10 | W70: 4 | AB70: 4 | AE70: 3 | AH70: 7 | AJ70: 2.41 | AK70: 1 | AM70: 9 | AN70: 1 | AO70: 2 | AP70: 0.137 | AQ70: -2.868 | AR70: -0.137 | AS70: 2.868 | AT70: 0.1511992311 | AU70: 0.8204504174 | AV70: 3.2334 | AW70: 2.5264 | AX70: 2.9013 | AY70: 2.9013 | AZ70: TRUE | BA70: 0.2345
A71: IL12RB2 | B71: 2.861 | C71: 0.578242974 | D71: ENSG00000081985.10 | E71: ENSG00000081985 | F71: 4 | G71: 2 | H71: 4 | J71: 2 | N71: 2 | R71: 5 | S71: 2 | W71: 10 | AI71: 7 | AJ71: 1.26 | AK71: 2 | AM71: 3 | AO71: 1 | AP71: 0.138 | AQ71: -2.861 | AR71: -0.138 | AS71: 2.861 | AT71: 0.2640930827 | AU71: 0.578242974 | AV71: 6.1261 | AW71: 4.8038 | AX71: 5.5155 | AY71: 5.5155 | AZ71: TRUE | BA71: 0.24
A72: SEPT7P6 | B72: 2.858 | C72: 0.904179692 | D72: ENSG00000241007.1 | E72: ENSG00000241007 | F72: 3 | G72: 2 | H72: 2 | I72: 2 | J72: 2 | K72: 2 | P72: 2 | R72: 2 | U72: 3 | W72: 2 | Z72: 5 | AC72: 2 | AD72: 2 | AJ72: 0.97 | AK72: 2 | AM72: 1 | AN72: 1 | AP72: 0.138 | AQ72: -2.858 | AR72: -0.138 | AS72: 2.858 | AT72: 0.1246867508 | AU72: 0.904179692 | AV72: 0.6809 | AW72: 6.2747 | AX72: 2.5873 | AY72: 2.5873 | AZ72: TRUE | BA72: 0.2316
A73: EPCAM | B73: 2.836 | C73: 0.4375970103 | D73: ENSG00000119888.10 | E73: ENSG00000119888 | J73: 6 | R73: 9 | S73: 2 | T73: 3 | AE73: 6 | AH73: 2 | AI73: 7 | AJ73: 1.18 | AK73: 1 | AM73: 2 | AO73: 2 | AP73: 0.14 | AQ73: -2.836 | AR73: -0.14 | AS73: 2.836 | AT73: 0.3650925658 | AU73: 0.4375970103 | AV73: 12.2019 | AW73: 5.1485 | AX73: 8.1841 | AY73: 8.1841 | AZ73: TRUE | BA73: 0.1469
A74: CLK3P2 | B74: 2.829 | C74: 0.696479216 | D74: ENSG00000226191.3 | E74: ENSG00000226191 | F74: 1 | G74: 4 | I74: 2 | K74: 5 | L74: 2 | AC74: 2 | AD74: 4 | AF74: 3 | AG74: 4 | AH74: 2 | AJ74: 0.99 | AK74: 2 | AO74: 2 | AP74: 0.141 | AQ74: -2.829 | AR74: -0.141 | AS74: 2.829 | AT74: 0.201150346 | AU74: 0.696479216 | AV74: 2.3344 | AW74: 6.1372 | AX74: 3.9491 | AY74: 3.9491 | AZ74: TRUE | BA74: 0.1683
A75: NSRP1P1 | B75: 2.809 | C75: 0.4649271143 | D75: ENSG00000235613.2 | E75: ENSG00000235613 | H75: 6 | I75: 2 | J75: 4 | Q75: 1 | T75: 5 | X75: 2 | AC75: 3 | AE75: 28 | AJ75: 1.71 | AK75: 2 | AM75: 1 | AN75: 1 | AO75: 5 | AP75: 0.143 | AQ75: -2.809 | AR75: -0.143 | AS75: 2.809 | AT75: 0.3428253165 | AU75: 0.4649271143 | AV75: 11.846 | AW75: 3.5504 | AX75: 7.4616 | AY75: 7.4616 | AZ75: TRUE | BA75: 0.6009
A76: DOC2GP | B76: 2.801 | C76: 0.1912919613 | D76: ENSG00000231793.5 | E76: ENSG00000231793 | H76: 6 | Z76: 7 | AE76: 14 | AH76: 2 | AJ76: 0.98 | AK76: 1 | AN76: 1 | AO76: 3 | AP76: 0.143 | AQ76: -2.801 | AR76: -0.143 | AS76: 2.801 | AT76: 0.6437363581 | AU76: 0.1912919613 | AV76: 30 | AW76: 6.2016 | AX76: 17.0063 | AY76: 30 | AZ76: TRUE | BA76: 0.5652
A77: VEGFD | B77: 2.778 | C77: 0.8586489908 | D77: ENSG00000165197.4 | E77: ENSG00000165197 | F77: 6 | H77: 2 | K77: 4 | M77: 2 | S77: 4 | W77: 2 | X77: 4 | Z77: 3 | AA77: 12 | AB77: 8 | AC77: 5 | AD77: 4 | AI77: 2 | AJ77: 1.91 | AK77: 2 | AM77: 1 | AN77: 5 | AO77: 1 | AP77: 0.146 | AQ77: -2.778 | AR77: -0.146 | AS77: 2.778 | AT77: 0.1384685069 | AU77: 0.8586489908 | AV77: 2.2722 | AW77: 3.1777 | AX77: 2.6038 | AY77: 2.6038 | AZ77: TRUE | BA77: 0.2049
A78: TMEM92 | B78: 2.772 | C78: 0.7484190696 | D78: ENSG00000167105.7 | E78: ENSG00000167105 | I78: 10 | J78: 2 | K78: 7 | O78: 1 | P78: 2 | W78: 10 | X78: 2 | Z78: 5 | AA78: 8 | AB78: 2 | AC78: 6 | AH78: 5 | AI78: 7 | AJ78: 2.24 | AK78: 3 | AM78: 2 | AN78: 4 | AO78: 2 | AP78: 0.146 | AQ78: -2.772 | AR78: -0.146 | AS78: 2.772 | AT78: 0.1784764547 | AU78: 0.7484190696 | AV78: 4.0117 | AW78: 2.7135 | AX78: 3.5541 | AY78: 3.5541 | AZ78: TRUE | BA78: 0.3009
A79: CABP7 | B79: 2.767 | C79: 0.6630567372 | D79: ENSG00000100314.3 | E79: ENSG00000100314 | F79: 3 | I79: 1 | J79: 2 | T79: 1 | U79: 13 | V79: 1 | W79: 4 | Y79: 1 | Z79: 6 | AE79: 3 | AG79: 7 | AH79: 10 | AJ79: 1.7 | AK79: 1 | AM79: 3 | AN79: 1 | AO79: 3 | AP79: 0.147 | AQ79: -2.767 | AR79: -0.147 | AS79: 2.767 | AT79: 0.2172417351 | AU79: 0.6630567372 | AV79: 3.9474 | AW79: 3.5811 | AX79: 3.8152 | AY79: 3.8152 | AZ79: TRUE | BA79: 0.1318
A80: TOGARAM2 | B80: 2.758 | C80: 0.7398327849 | D80: ENSG00000189350.12 | E80: ENSG00000189350 | F80: 12 | G80: 4 | H80: 8 | J80: 2 | K80: 4 | O80: 1 | P80: 3 | R80: 5 | W80: 4 | AC80: 2 | AJ80: 1.46 | AK80: 5 | AL80: 1 | AM80: 2 | AP80: 0.148 | AQ80: -2.758 | AR80: -0.148 | AS80: 2.758 | AT80: 0.1820401627 | AU80: 0.7398327849 | AV80: 3.7 | AW80: 4.1657 | AX80: 3.9105 | AY80: 3.9105 | AZ80: TRUE | BA80: 0.055
A81: IL19 | B81: 2.731 | C81: 0.5273489771 | D81: ENSG00000142224.15 | E81: ENSG00000142224 | H81: 4 | K81: 2 | T81: 3 | U81: 8 | V81: 7 | AE81: 3 | AF81: 2 | AG81: 2 | AH81: 1 | AJ81: 1.03 | AK81: 1 | AM81: 3 | AO81: 1 | AP81: 0.151 | AQ81: -2.731 | AR81: -0.151 | AS81: 2.731 | AT81: 0.296927911 | AU81: 0.5273489771 | AV81: 5.108 | AW81: 5.8816 | AX81: 5.4584 | AY81: 5.4584 | AZ81: TRUE | BA81: 0.0288
A82: PHBP9 | B82: 2.721 | C82: 0.6650605379 | D82: ENSG00000230224.1 | E82: ENSG00000230224 | F82: 1 | G82: 2 | H82: 2 | J82: 4 | K82: 2 | P82: 2 | V82: 2 | AC82: 5 | AD82: 6 | AE82: 8 | AI82: 5 | AJ82: 1.31 | AK82: 2 | AN82: 1 | AO82: 3 | AP82: 0.152 | AQ82: -2.721 | AR82: -0.152 | AS82: 2.721 | AT82: 0.2162417075 | AU82: 0.6650605379 | AV82: 3.3388 | AW82: 4.6206 | AX82: 3.8328 | AY82: 3.8328 | AZ82: TRUE | BA82: 0.1195
A83: SERPINF1 | B83: 2.701 | C83: 0.376468748 | D83: ENSG00000132386.10 | E83: ENSG00000132386 | J83: 2 | K83: 4 | W83: 2 | AD83: 8 | AE83: 8 | AF83: 6 | AJ83: 1.01 | AK83: 1 | AO83: 4 | AP83: 0.154 | AQ83: -2.701 | AR83: -0.154 | AS83: 2.701 | AT83: 0.4202727695 | AU83: 0.376468748 | AV83: 15.2066 | AW83: 5.985 | AX83: 9.2463 | AY83: 9.2463 | AZ83: TRUE | BA83: 0.0274
A84: CYP51A1P1 | B84: 2.69 | C84: 0.9493531049 | D84: ENSG00000241095.1 | E84: ENSG00000241095 | F84: 1 | G84: 2 | J84: 4 | K84: 4 | M84: 2 | R84: 5 | S84: 2 | V84: 9 | W84: 2 | Z84: 2 | AA84: 2 | AB84: 4 | AC84: 2 | AE84: 6 | AF84: 3 | AG84: 4 | AJ84: 1.77 | AK84: 2 | AM84: 3 | AN84: 2 | AO84: 2 | AP84: 0.155 | AQ84: -2.69 | AR84: -0.155 | AS84: 2.69 | AT84: 0.1123690981 | AU84: 0.9493531049 | AV84: 1.3323 | AW84: 3.4271 | AX84: 1.9287 | AY84: 1.9287 | AZ84: TRUE | BA84: 0.2875
A85: RPL15P2 | B85: 2.686 | C85: 0.6132457246 | D85: ENSG00000240914.1 | E85: ENSG00000240914 | F85: 1 | J85: 4 | U85: 3 | V85: 2 | Y85: 4 | AA85: 4 | AC85: 2 | AE85: 3 | AG85: 2 | AH85: 2 | AI85: 2 | AJ85: 1 | AK85: 1 | AM85: 1 | AN85: 2 | AO85: 2 | AP85: 0.155 | AQ85: -2.686 | AR85: -0.155 | AS85: 2.686 | AT85: 0.2436431891 | AU85: 0.6132457246 | AV85: 2.7968 | AW85: 6.0819 | AX85: 4.0129 | AY85: 4.0129 | AZ85: TRUE | BA85: 0.085
A86: ARHGEF4 | B86: 2.663 | C86: 0.3374599601 | D86: ENSG00000136002.18 | E86: ENSG00000136002 | F86: 7 | I86: 3 | M86: 2 | R86: 5 | S86: 2 | AI86: 12 | AJ86: 1.05 | AK86: 2 | AM86: 1 | AO86: 2 | AP86: 0.158 | AQ86: -2.663 | AR86: -0.158 | AS86: 2.663 | AT86: 0.4597693751 | AU86: 0.3374599601 | AV86: 19.7487 | AW86: 5.7851 | AX86: 10.9434 | AY86: 10.9434 | AZ86: TRUE | BA86: 0.3707
A87: FGR | B87: 2.656 | C87: 0.4134880331 | D87: ENSG00000000938.12 | E87: ENSG00000000938 | G87: 2 | I87: 2 | J87: 2 | S87: 2 | T87: 14 | U87: 3 | Z87: 9 | AD87: 8 | AJ87: 1.4 | AK87: 1 | AM87: 3 | AN87: 2 | AO87: 1 | AP87: 0.159 | AQ87: -2.656 | AR87: -0.159 | AS87: 2.656 | AT87: 0.3859330457 | AU87: 0.4134880331 | AV87: 11.0545 | AW87: 4.324 | AX87: 7.6134 | AY87: 7.6134 | AZ87: TRUE | BA87: 0.8457
A88: DIO1 | B88: 2.644 | C88: 0.4674394602 | D88: ENSG00000211452.10 | E88: ENSG00000211452 | F88: 4 | G88: 12 | J88: 2 | P88: 2 | Q88: 1 | S88: 2 | X88: 2 | AE88: 3 | AJ88: 0.95 | AK88: 3 | AP88: 0.16 | AQ88: -2.644 | AR88: -0.16 | AS88: 2.644 | AT88: 0.340847835 | AU88: 0.4674394602 | AV88: 7.0265 | AW88: 6.3647 | AX88: 6.7024 | AY88: 6.7024 | AZ88: TRUE | BA88: 0.1264
A89: SLC49A3 | B89: 2.642 | C89: 0.4624809276 | D89: ENSG00000169026.12 | E89: ENSG00000169026 | J89: 5 | K89: 5 | O89: 1 | R89: 5 | T89: 5 | X89: 2 | AC89: 3 | AD89: 4 | AF89: 3 | AJ89: 1.13 | AK89: 2 | AM89: 2 | AN89: 1 | AO89: 1 | AP89: 0.16 | AQ89: -2.642 | AR89: -0.16 | AS89: 2.642 | AT89: 0.3447617468 | AU89: 0.4624809276 | AV89: 7.3795 | AW89: 5.3743 | AX89: 6.4879 | AY89: 6.4879 | AZ89: TRUE | BA89: 0.0542
A90: CSN1S1 | B90: 2.638 | C90: 0.5436925873 | D90: ENSG00000126545.13 | E90: ENSG00000126545 | G90: 2 | H90: 2 | I90: 2 | R90: 2 | S90: 12 | T90: 3 | V90: 3 | W90: 9 | AJ90: 1.15 | AK90: 1 | AM90: 5 | AP90: 0.161 | AQ90: -2.638 | AR90: -0.161 | AS90: 2.638 | AT90: 0.2859613987 | AU90: 0.5436925873 | AV90: 4.0013 | AW90: 5.2667 | AX90: 4.7109 | AY90: 4.7109 | AZ90: TRUE | BA90: 0.0065
A91: TMSB10P1 | B91: 2.618 | C91: 0.7230308216 | D91: ENSG00000228499.1 | E91: ENSG00000228499 | H91: 2 | I91: 3 | S91: 4 | T91: 13 | V91: 3 | W91: 4 | X91: 2 | AA91: 2 | AC91: 6 | AD91: 2 | AE91: 6 | AG91: 7 | AH91: 2 | AJ91: 1.89 | AK91: 1 | AM91: 4 | AN91: 2 | AO91: 3 | AP91: 0.163 | AQ91: -2.618 | AR91: -0.163 | AS91: 2.618 | AT91: 0.1892209325 | AU91: 0.7230308216 | AV91: 2.4546 | AW91: 3.2174 | AX91: 2.7251 | AY91: 2.7251 | AZ91: TRUE | BA91: 0.119
A92: CACNA1I | B92: 2.612 | C92: 0.9180039844 | D92: ENSG00000100346.17 | E92: ENSG00000100346 | F92: 4 | G92: 7 | I92: 3 | J92: 6 | K92: 5 | L92: 2 | O92: 2 | S92: 2 | U92: 3 | V92: 3 | X92: 4 | AE92: 11 | AF92: 5 | AH92: 4 | AJ92: 2.07 | AK92: 4 | AL92: 1 | AM92: 1 | AN92: 1 | AO92: 3 | AP92: 0.164 | AQ92: -2.612 | AR92: -0.164 | AS92: 2.612 | AT92: 0.1207802754 | AU92: 0.9180039844 | AV92: 2.218 | AW92: 2.9415 | AX92: 2.4687 | AY92: 2.4687 | AZ92: TRUE | BA92: 0.3869
A93: ACY3 | B93: 2.606 | C93: 0.2312526276 | D93: ENSG00000132744.7 | E93: ENSG00000132744 | F93: 16 | I93: 3 | K93: 7 | Q93: 4 | V93: 7 | AA93: 2 | AJ93: 1.35 | AK93: 4 | AL93: 1 | AM93: 1 | AP93: 0.164 | AQ93: -2.606 | AR93: -0.164 | AS93: 2.606 | AT93: 0.5871477114 | AU93: 0.2312526276 | AV93: 19.6758 | AW93: 4.4887 | AX93: 9.7463 | AY93: 19.6758 | AZ93: TRUE | BA93: 0.1099
A94: CTSE | B94: 2.598 | C94: 0.7657819046 | D94: ENSG00000196188.10 | E94: ENSG00000196188 | G94: 9 | H94: 12 | I94: 3 | J94: 4 | K94: 9 | M94: 2 | O94: 4 | T94: 3 | V94: 7 | W94: 6 | AI94: 5 | AJ94: 2.15 | AK94: 6 | AL94: 1 | AM94: 3 | AO94: 1 | AP94: 0.165 | AQ94: -2.598 | AR94: -0.165 | AS94: 2.598 | AT94: 0.1714818244 | AU94: 0.7657819046 | AV94: 3.8602 | AW94: 2.8321 | AX94: 3.4135 | AY94: 3.4135 | AZ94: TRUE | BA94: 0.1735
A95: PTH1R | B95: 2.593 | C95: 0.4258046611 | D95: ENSG00000160801.13 | E95: ENSG00000160801 | G95: 5 | T95: 3 | V95: 2 | W95: 2 | AA95: 2 | AE95: 6 | AH95: 10 | AI95: 2 | AJ95: 1.05 | AK95: 1 | AM95: 1 | AO95: 3 | AP95: 0.166 | AQ95: -2.593 | AR95: -0.166 | AS95: 2.593 | AT95: 0.3751416972 | AU95: 0.4258046611 | AV95: 7.8642 | AW95: 5.79 | AX95: 6.8264 | AY95: 6.8264 | AZ95: TRUE | BA95: 0.1155
A96: SLC27A6 | B96: 2.59 | C96: 0.6806520506 | D96: ENSG00000113396.12 | E96: ENSG00000113396 | H96: 6 | I96: 5 | J96: 6 | K96: 4 | M96: 2 | N96: 2 | T96: 10 | U96: 5 | W96: 8 | Y96: 6 | AE96: 1 | AF96: 2 | AJ96: 1.92 | AK96: 4 | AL96: 1 | AM96: 4 | AN96: 1 | AP96: 0.166 | AQ96: -2.59 | AR96: -0.166 | AS96: 2.59 | AT96: 0.2086161611 | AU96: 0.6806520506 | AV96: 3.9372 | AW96: 3.1646 | AX96: 3.6449 | AY96: 3.6449 | AZ96: TRUE | BA96: 0.1702
A97: CD7 | B97: 2.589 | C97: 0.8809685845 | D97: ENSG00000173762.7 | E97: ENSG00000173762 | F97: 10 | G97: 2 | H97: 10 | I97: 7 | J97: 1 | K97: 6 | P97: 3 | Q97: 3 | V97: 3 | W97: 2 | AE97: 3 | AG97: 7 | AJ97: 1.89 | AK97: 6 | AL97: 1 | AM97: 1 | AO97: 2 | AP97: 0.166 | AQ97: -2.589 | AR97: -0.166 | AS97: 2.589 | AT97: 0.1315319975 | AU97: 0.8809685845 | AV97: 2.4508 | AW97: 3.2144 | AX97: 2.7557 | AY97: 2.7557 | AZ97: TRUE | BA97: 0.0711
A98: SLITRK6 | B98: 2.57 | C98: 0.8863492786 | D98: ENSG00000184564.8 | E98: ENSG00000184564 | F98: 4 | G98: 2 | I98: 2 | J98: 2 | Q98: 1 | S98: 4 | U98: 5 | V98: 3 | W98: 8 | X98: 2 | Z98: 2 | AD98: 6 | AE98: 19 | AH98: 5 | AI98: 15 | AJ98: 2.71 | AK98: 2 | AM98: 3 | AN98: 1 | AO98: 8 | AP98: 0.168 | AQ98: -2.57 | AR98: -0.168 | AS98: 2.57 | AT98: 0.1299124345 | AU98: 0.8863492786 | AV98: 1.6986 | AW98: 2.2498 | AX98: 1.8859 | AY98: 1.8859 | AZ98: TRUE | BA98: 0.0693
A99: CRIP1 | B99: 2.568 | C99: 0.3682623585 | D99: ENSG00000213145.9 | E99: ENSG00000213145 | H99: 2 | J99: 5 | N99: 1 | T99: 3 | Y99: 6 | AF99: 2 | AG99: 27 | AJ99: 1.52 | AK99: 1 | AN99: 1 | AO99: 5 | AP99: 0.169 | AQ99: -2.568 | AR99: -0.169 | AS99: 2.568 | AT99: 0.4282897112 | AU99: 0.3682623585 | AV99: 15.1052 | AW99: 3.9982 | AX99: 8.6369 | AY99: 8.6369 | AZ99: TRUE | BA99: 3.7998
A100: TCHH | B100: 2.551 | C100: 0.4680702241 | D100: ENSG00000159450.12 | E100: ENSG00000159450 | F100: 3 | H100: 14 | I100: 13 | M100: 4 | P100: 2 | U100: 5 | AA100: 4 | AC100: 3 | AI100: 12 | AJ100: 2.03 | AK100: 5 | AL100: 1 | AM100: 1 | AN100: 1 | AO100: 2 | AP100: 0.171 | AQ100: -2.551 | AR100: -0.171 | AS100: 2.551 | AT100: 0.3403531511 | AU100: 0.4680702241 | AV100: 9.9803 | AW100: 2.9995 | AX100: 6.5499 | AY100: 6.5499 | AZ100: TRUE | BA100: 0.0762
A101: SAA1 | B101: 2.545 | C101: 0.7712658011 | D101: ENSG00000173432.10 | E101: ENSG00000173432 | G101: 4 | H101: 4 | I101: 5 | K101: 5 | P101: 3 | R101: 16 | S101: 4 | U101: 3 | W101: 8 | Y101: 2 | Z101: 7 | AC101: 2 | AD101: 4 | AG101: 2 | AJ101: 2.28 | AK101: 3 | AM101: 5 | AN101: 2 | AO101: 1 | AP101: 0.171 | AQ101: -2.545 | AR101: -0.171 | AS101: 2.545 | AT101: 0.1693301133 | AU101: 0.7712658011 | AV101: 2.803 | AW101: 2.6671 | AX101: 2.7574 | AY101: 2.7574 | AZ101: TRUE | BA101: 0.2331
A102: LIPC | B102: 2.533 | C102: 0.4686218582 | D102: ENSG00000166035.10 | E102: ENSG00000166035 | I102: 5 | S102: 2 | V102: 2 | W102: 4 | Y102: 2 | AE102: 11 | AF102: 2 | AH102: 2 | AI102: 5 | AJ102: 1.16 | AK102: 1 | AM102: 1 | AO102: 3 | AP102: 0.173 | AQ102: -2.533 | AR102: -0.173 | AS102: 2.533 | AT102: 0.3399211144 | AU102: 0.4686218582 | AV102: 5.6262 | AW102: 5.2502 | AX102: 5.4516 | AY102: 5.4516 | AZ102: TRUE | BA102: 0.1915
A103: ITGB7 | B103: 2.512 | C103: 0.9480128954 | D103: ENSG00000139626.15 | E103: ENSG00000139626 | F103: 1 | G103: 9 | H103: 4 | I103: 10 | K103: 5 | L103: 4 | N103: 2 | S103: 2 | T103: 5 | U103: 5 | V103: 21 | X103: 2 | Z103: 5 | AA103: 2 | AE103: 14 | AG103: 2 | AH103: 7 | AJ103: 3.36 | AK103: 5 | AL103: 1 | AM103: 6 | AN103: 2 | AO103: 4 | AP103: 0.175 | AQ103: -2.512 | AR103: -0.175 | AS103: 2.512 | AT103: 0.1127163987 | AU103: 0.9480128954 | AV103: 2.3983 | AW103: 1.8175 | AX103: 2.2263 | AY103: 2.2263 | AZ103: TRUE | BA103: 0.1828
A104: MAB21L2 | B104: 2.487 | C104: 0.7705483961 | D104: ENSG00000181541.5 | E104: ENSG00000181541 | G104: 9 | H104: 5 | I104: 5 | J104: 9 | K104: 4 | O104: 2 | Q104: 3 | T104: 3 | AE104: 3 | AG104: 6 | AI104: 2 | AJ104: 1.67 | AK104: 5 | AL104: 1 | AO104: 2 | AP104: 0.178 | AQ104: -2.487 | AR104: -0.178 | AS104: 2.487 | AT104: 0.1696100585 | AU104: 0.7705483961 | AV104: 2.5052 | AW104: 3.6455 | AX104: 2.9969 | AY104: 2.9969 | AZ104: TRUE | BA104: 0.2379
A105: SLC16A11 | B105: 2.483 | C105: 0.6795693742 | D105: ENSG00000174326.11 | E105: ENSG00000174326 | F105: 3 | G105: 2 | T105: 8 | U105: 10 | V105: 2 | W105: 4 | AD105: 2 | AE105: 19 | AG105: 7 | AH105: 27 | AI105: 5 | AJ105: 2.94 | AK105: 1 | AM105: 4 | AO105: 10 | AP105: 0.179 | AQ105: -2.483 | AR105: -0.179 | AS105: 2.483 | AT105: 0.2091368805 | AU105: 0.6795693742 | AV105: 2.9786 | AW105: 2.0714 | AX105: 2.5576 | AY105: 2.5576 | AZ105: TRUE | BA105: 0.0266
A106: GTF2IRD2P1 | B106: 2.455 | C106: 0.610573143 | D106: ENSG00000214544.7 | E106: ENSG00000214544 | F106: 4 | G106: 4 | H106: 2 | I106: 7 | L106: 2 | O106: 1 | S106: 6 | T106: 5 | V106: 2 | X106: 2 | AH106: 2 | AJ106: 1.24 | AK106: 3 | AM106: 2 | AP106: 0.182 | AQ106: -2.455 | AR106: -0.182 | AS106: 2.455 | AT106: 0.2451471547 | AU106: 0.610573143 | AV106: 2.887 | AW106: 4.9126 | AX106: 3.6733 | AY106: 3.6733 | AZ106: TRUE | BA106: 0.1138
A107: CSPG4P13 | B107: 2.426 | C107: 0.4688096815 | D107: ENSG00000260139.6 | E107: ENSG00000260139 | G107: 5 | J107: 2 | K107: 2 | P107: 2 | S107: 2 | T107: 5 | Y107: 2 | AA107: 8 | AC107: 3 | AD107: 2 | AJ107: 1.12 | AK107: 2 | AM107: 1 | AN107: 2 | AP107: 0.186 | AQ107: -2.426 | AR107: -0.186 | AS107: 2.426 | AT107: 0.3397741373 | AU107: 0.4688096815 | AV107: 4.9155 | AW107: 5.3987 | AX107: 5.1099 | AY107: 5.1099 | AZ107: TRUE | BA107: 0.1904
A108: CCDC33 | B108: 2.416 | C108: 0.6834145378 | D108: ENSG00000140481.14 | E108: ENSG00000140481 | H108: 1 | I108: 2 | J108: 2 | K108: 2 | Q108: 1 | U108: 3 | V108: 7 | X108: 7 | AB108: 5 | AD108: 6 | AF108: 61 | AG108: 2 | AH108: 7 | AI108: 20 | AJ108: 4.17 | AK108: 1 | AM108: 2 | AN108: 2 | AO108: 16 | AP108: 0.187 | AQ108: -2.416 | AR108: -0.187 | AS108: 2.416 | AT108: 0.2072933939 | AU108: 0.6834145378 | AV108: 3.0556 | AW108: 1.4633 | AX108: 2.4461 | AY108: 2.4461 | AZ108: TRUE | BA108: 0.0815
A109: LIN7A | B109: 2.414 | C109: 0.8649399282 | D109: ENSG00000111052.7 | E109: ENSG00000111052 | F109: 6 | G109: 2 | H109: 2 | I109: 8 | K109: 7 | L109: 2 | Q109: 3 | S109: 8 | U109: 10 | V109: 10 | W109: 6 | X109: 7 | AD109: 4 | AF109: 6 | AH109: 7 | AI109: 27 | AJ109: 3.89 | AK109: 4 | AL109: 1 | AM109: 6 | AN109: 1 | AO109: 7 | AP109: 0.188 | AQ109: -2.414 | AR109: -0.188 | AS109: 2.414 | AT109: 0.1364771899 | AU109: 0.8649399282 | AV109: 2.6038 | AW109: 1.5707 | AX109: 2.2598 | AY109: 2.2598 | AZ109: TRUE | BA109: 0.4125
A110: CFAP65 | B110: 2.39 | C110: 0.980193231 | D110: ENSG00000181378.13 | E110: ENSG00000181378 | F110: 1 | H110: 2 | K110: 5 | P110: 2 | S110: 6 | T110: 8 | U110: 3 | V110: 2 | W110: 4 | X110: 6 | Y110: 2 | Z110: 2 | AA110: 2 | AB110: 2 | AD110: 4 | AE110: 6 | AG110: 7 | AH110: 5 | AI110: 2 | AJ110: 2.34 | AK110: 1 | AM110: 4 | AN110: 2 | AO110: 4 | AP110: 0.191 | AQ110: -2.39 | AR110: -0.191 | AS110: 2.39 | AT110: 0.1046662752 | AU110: 0.980193231 | AV110: 0.5775 | AW110: 2.5952 | AX110: 1.1076 | AY110: 1.1076 | AZ110: TRUE | BA110: 0.2182
A111: OR6E1P | B111: 2.386 | C111: 0.7501188959 | D111: ENSG00000235213.1 | E111: ENSG00000235213 | G111: 2 | I111: 2 | J111: 2 | K111: 1 | Q111: 1 | U111: 3 | V111: 2 | W111: 4 | AB111: 4 | AC111: 2 | AE111: 11 | AF111: 3 | AG111: 7 | AH111: 2 | AI111: 4 | AJ111: 1.62 | AK111: 1 | AM111: 2 | AN111: 1 | AO111: 4 | AP111: 0.191 | AQ111: -2.386 | AR111: -0.191 | AS111: 2.386 | AT111: 0.1777792641 | AU111: 0.7501188959 | AV111: 1.1244 | AW111: 3.7521 | AX111: 1.9298 | AY111: 1.9298 | AZ111: TRUE | BA111: 0.0701
A112: ANO4 | B112: 2.383 | C112: 0.5017253819 | D112: ENSG00000151572.16 | E112: ENSG00000151572 | G112: 4 | H112: 2 | I112: 3 | M112: 2 | U112: 3 | V112: 7 | W112: 4 | X112: 2 | Y112: 1 | AD112: 2 | AH112: 12 | AJ112: 1.38 | AK112: 2 | AM112: 2 | AO112: 2 | AP112: 0.192 | AQ112: -2.383 | AR112: -0.192 | AS112: 2.383 | AT112: 0.3149739364 | AU112: 0.5017253819 | AV112: 4.3137 | AW112: 4.3926 | AX112: 4.3381 | AY112: 4.3381 | AZ112: TRUE | BA112: 0.2695
A113: TLR10 | B113: 2.372 | C113: 0.3096359508 | D113: ENSG00000174123.10 | E113: ENSG00000174123 | F113: 4 | T113: 8 | X113: 6 | AA113: 2 | AB113: 2 | AC113: 2 | AF113: 6 | AJ113: 0.99 | AK113: 1 | AM113: 1 | AN113: 2 | AO113: 1 | AP113: 0.193 | AQ113: -2.372 | AR113: -0.193 | AS113: 2.372 | AT113: 0.4901895507 | AU113: 0.3096359508 | AV113: 13.1952 | AW113: 6.1506 | AX113: 9.322 | AY113: 9.322 | AZ113: TRUE | BA113: 0.5331
A114: PRKXP1 | B114: 2.352 | C114: 0.8185899624 | D114: ENSG00000259205.2 | E114: ENSG00000259205 | F114: 13 | G114: 16 | H114: 6 | I114: 18 | J114: 2 | K114: 2 | L114: 4 | O114: 1 | P114: 6 | T114: 5 | V114: 12 | Y114: 6 | AG114: 7 | AH114: 2 | AI114: 4 | AJ114: 3.47 | AK114: 10 | AL114: 2 | AM114: 3 | AN114: 1 | AO114: 2 | AP114: 0.196 | AQ114: -2.352 | AR114: -0.196 | AS114: 2.352 | AT114: 0.1518483361 | AU114: 0.8185899624 | AV114: 3.1235 | AW114: 1.7589 | AX114: 2.6506 | AY114: 2.6506 | AZ114: TRUE | BA114: 0.1749
A115: NLGN1 | B115: 2.343 | C115: 0.5869388659 | D115: ENSG00000169760.17 | E115: ENSG00000169760 | F115: 1 | I115: 5 | J115: 2 | M115: 2 | U115: 5 | V115: 3 | Y115: 2 | Z115: 5 | AA115: 2 | AC115: 4 | AF115: 3 | AH115: 2 | AI115: 2 | AJ115: 1.32 | AK115: 1 | AM115: 1 | AN115: 2 | AO115: 1 | AP115: 0.197 | AQ115: -2.343 | AR115: -0.197 | AS115: 2.343 | AT115: 0.2588577274 | AU115: 0.5869388659 | AV115: 2.3983 | AW115: 4.5818 | AX115: 3.1153 | AY115: 3.1153 | AZ115: TRUE | BA115: 0.2751
A116: CRLF2 | B116: 2.342 | C116: 0.4793331285 | D116: ENSG00000205755.11 | E116: ENSG00000205755 | F116: 10 | K116: 7 | L116: 2 | N116: 2 | X116: 4 | AB116: 10 | AC116: 5 | AE116: 3 | AF116: 15 | AI116: 7 | AJ116: 2.16 | AK116: 3 | AL116: 1 | AN116: 3 | AO116: 4 | AP116: 0.197 | AQ116: -2.342 | AR116: -0.197 | AS116: 2.342 | AT116: 0.3316399733 | AU116: 0.4793331285 | AV116: 6.7193 | AW116: 2.8183 | AX116: 4.9531 | AY116: 4.9531 | AZ116: TRUE | BA116: 0.0793
A117: PALM | B117: 2.335 | C117: 0.374278059 | D117: ENSG00000099864.17 | E117: ENSG00000099864 | H117: 2 | J117: 4 | M117: 1 | S117: 6 | T117: 5 | V117: 5 | AE117: 8 | AG117: 4 | AJ117: 1.21 | AK117: 1 | AM117: 3 | AO117: 2 | AP117: 0.198 | AQ117: -2.335 | AR117: -0.198 | AS117: 2.335 | AT117: 0.4223980854 | AU117: 0.374278059 | AV117: 8.3679 | AW117: 4.9981 | AX117: 6.6412 | AY117: 6.6412 | AZ117: TRUE | BA117: 0.0514
A118: FAM3D | B118: 2.335 | C118: 0.6491234823 | D118: ENSG00000198643.6 | E118: ENSG00000198643 | G118: 4 | I118: 5 | O118: 1 | R118: 5 | T118: 8 | V118: 2 | W118: 10 | X118: 2 | Z118: 2 | AB118: 2 | AC118: 2 | AF118: 3 | AG118: 2 | AI118: 2 | AJ118: 1.64 | AK118: 2 | AM118: 4 | AN118: 1 | AO118: 1 | AP118: 0.198 | AQ118: -2.335 | AR118: -0.198 | AS118: 2.335 | AT118: 0.2243244015 | AU118: 0.6491234823 | AV118: 1.9951 | AW118: 3.7098 | AX118: 2.5416 | AY118: 2.5416 | AZ118: TRUE | BA118: 0.0507
A119: HOXD12 | B119: 2.334 | C119: 0.5956860937 | D119: ENSG00000170178.6 | E119: ENSG00000170178 | G119: 4 | I119: 8 | K119: 4 | P119: 3 | S119: 2 | V119: 3 | X119: 7 | Z119: 5 | AC119: 2 | AD119: 4 | AE119: 7 | AG119: 4 | AH119: 1 | AJ119: 1.81 | AK119: 3 | AM119: 1 | AN119: 2 | AO119: 3 | AP119: 0.198 | AQ119: -2.334 | AR119: -0.198 | AS119: 2.334 | AT119: 0.2536961674 | AU119: 0.5956860937 | AV119: 3.3611 | AW119: 3.3506 | AX119: 3.3593 | AY119: 3.3593 | AZ119: TRUE | BA119: 0.3266
A120: KBTBD12 | B120: 2.313 | C120: 0.5843044321 | D120: ENSG00000187715.13 | E120: ENSG00000187715 | G120: 7 | H120: 2 | J120: 6 | P120: 3 | R120: 3 | S120: 4 | T120: 8 | U120: 3 | AB120: 5 | AE120: 3 | AG120: 9 | AH120: 2 | AI120: 5 | AJ120: 2.01 | AK120: 2 | AM120: 3 | AN120: 1 | AO120: 3 | AP120: 0.201 | AQ120: -2.313 | AR120: -0.201 | AS120: 2.313 | AT120: 0.2604327327 | AU120: 0.5843044321 | AV120: 3.5875 | AW120: 3.0226 | AX120: 3.3899 | AY120: 3.3899 | AZ120: TRUE | BA120: 0.2748
A121: LPIN3 | B121: 2.282 | C121: 0.3371750952 | D121: ENSG00000132793.11 | E121: ENSG00000132793 | H121: 2 | J121: 6 | L121: 2 | R121: 1 | Y121: 4 | AB121: 2 | AC121: 2 | AF121: 15 | AJ121: 1.15 | AK121: 1 | AN121: 1 | AO121: 2 | AP121: 0.206 | AQ121: -2.282 | AR121: -0.206 | AS121: 2.282 | AT121: 0.4600710487 | AU121: 0.3371750952 | AV121: 9.9309 | AW121: 5.2985 | AX121: 7.6362 | AY121: 7.6362 | AZ121: TRUE | BA121: 1.2415
A122: KLHDC7B | B122: 2.28 | C122: 0.8644500243 | D122: ENSG00000130487.5 | E122: ENSG00000130487 | F122: 3 | G122: 2 | J122: 9 | K122: 7 | O122: 2 | P122: 2 | R122: 14 | S122: 16 | U122: 12 | V122: 9 | W122: 27 | X122: 2 | AA122: 1 | AC122: 6 | AJ122: 3.69 | AK122: 4 | AL122: 1 | AM122: 13 | AN122: 2 | AP122: 0.206 | AQ122: -2.28 | AR122: -0.206 | AS122: 2.28 | AT122: 0.1366312293 | AU122: 0.8644500243 | AV122: 1.9897 | AW122: 1.655 | AX122: 1.8577 | AY122: 1.8577 | AZ122: TRUE | BA122: 0.0682
A123: ERAS | B123: 2.266 | C123: 0.2773314145 | D123: ENSG00000187682.2 | E123: ENSG00000187682 | G123: 7 | K123: 7 | Q123: 3 | R123: 2 | AE123: 8 | AI123: 2 | AJ123: 1.01 | AK123: 2 | AO123: 2 | AP123: 0.208 | AQ123: -2.266 | AR123: -0.208 | AS123: 2.266 | AT123: 0.5280421438 | AU123: 0.2773314145 | AV123: 18.7322 | AW123: 6.0067 | AX123: 10.7137 | AY123: 10.7137 | AZ123: TRUE | BA123: 0.0674
A124: COL20A1 | B124: 2.265 | C124: 0.4397889432 | D124: ENSG00000101203.16 | E124: ENSG00000101203 | F124: 2 | H124: 5 | K124: 1 | P124: 2 | S124: 2 | T124: 5 | X124: 3 | Z124: 5 | AG124: 4 | AH124: 1 | AI124: 1 | AJ124: 1.05 | AK124: 1 | AM124: 1 | AN124: 1 | AO124: 1 | AP124: 0.208 | AQ124: -2.265 | AR124: -0.208 | AS124: 2.265 | AT124: 0.363254545 | AU124: 0.4397889432 | AV124: 4.1772 | AW124: 5.8037 | AX124: 4.7588 | AY124: 4.7588 | AZ124: TRUE | BA124: 0.2157
A125: TPD52L3 | B125: 2.247 | C125: 0.271592008 | D125: ENSG00000170777.10 | E125: ENSG00000170777 | J125: 4 | S125: 6 | U125: 8 | AD125: 4 | AF125: 3 | AH125: 5 | AJ125: 1 | AK125: 1 | AM125: 2 | AO125: 2 | AP125: 0.211 | AQ125: -2.247 | AR125: -0.211 | AS125: 2.247 | AT125: 0.5350667845 | AU125: 0.271592008 | AV125: 17.4484 | AW125: 6.0799 | AX125: 10.2285 | AY125: 10.2285 | AZ125: TRUE | BA125: 0.0955
A126: BTLA | B126: 2.242 | C126: 0.3450886738 | D126: ENSG00000186265.9 | E126: ENSG00000186265 | H126: 3 | I126: 5 | P126: 2 | R126: 2 | U126: 3 | V126: 5 | W126: 4 | Y126: 4 | AJ126: 0.93 | AK126: 1 | AM126: 2 | AN126: 1 | AP126: 0.211 | AQ126: -2.242 | AR126: -0.211 | AS126: 2.242 | AT126: 0.4517636943 | AU126: 0.3450886738 | AV126: 7.5199 | AW126: 6.5265 | AX126: 7.029 | AY126: 7.029 | AZ126: TRUE | BA126: 0.1662
A127: BMP8B | B127: 2.241 | C127: 0.5754735893 | D127: ENSG00000116985.11 | E127: ENSG00000116985 | I127: 1 | K127: 7 | O127: 1 | R127: 2 | U127: 3 | V127: 5 | AD127: 4 | AE127: 3 | AF127: 12 | AG127: 2 | AH127: 2 | AI127: 10 | AJ127: 1.76 | AK127: 1 | AM127: 2 | AO127: 6 | AP127: 0.211 | AQ127: -2.241 | AR127: -0.211 | AS127: 2.241 | AT127: 0.2657825175 | AU127: 0.5754735893 | AV127: 2.433 | AW127: 3.4479 | AX127: 2.8206 | AY127: 2.8206 | AZ127: TRUE | BA127: 0.1466
A128: PRSS33 | B128: 2.238 | C128: 0.6516966349 | D128: ENSG00000103355.13 | E128: ENSG00000103355 | F128: 6 | I128: 5 | K128: 7 | O128: 4 | R128: 7 | S128: 2 | V128: 5 | Y128: 2 | AE128: 11 | AF128: 21 | AG128: 2 | AH128: 5 | AI128: 10 | AJ128: 2.9 | AK128: 3 | AL128: 1 | AM128: 2 | AO128: 8 | AP128: 0.212 | AQ128: -2.238 | AR128: -0.212 | AS128: 2.238 | AT128: 0.2229992308 | AU128: 0.6516966349 | AV128: 3.1735 | AW128: 2.0972 | AX128: 2.7575 | AY128: 2.7575 | AZ128: TRUE | BA128: 0.1894
A129: C1DP5 | B129: 2.224 | C129: 0.509016433 | D129: ENSG00000254965.1 | E129: ENSG00000254965 | F129: 3 | G129: 4 | H129: 2 | J129: 4 | K129: 2 | M129: 2 | Q129: 1 | AC129: 6 | AD129: 2 | AF129: 5 | AH129: 7 | AJ129: 1.3 | AK129: 2 | AN129: 1 | AO129: 2 | AP129: 0.214 | AQ129: -2.224 | AR129: -0.214 | AS129: 2.224 | AT129: 0.30973021 | AU129: 0.509016433 | AV129: 3.4447 | AW129: 4.6777 | AX129: 3.9179 | AY129: 3.9179 | AZ129: TRUE | BA129: 0.2532
A130: CALM2P3 | B130: 2.203 | C130: 0.7547578239 | D130: ENSG00000215482.3 | E130: ENSG00000215482 | F130: 1 | G130: 4 | H130: 4 | I130: 5 | L130: 2 | O130: 1 | R130: 2 | U130: 3 | Z130: 2 | AC130: 2 | AD130: 2 | AF130: 15 | AG130: 6 | AH130: 10 | AI130: 2 | AJ130: 2.03 | AK130: 2 | AM130: 1 | AN130: 1 | AO130: 6 | AP130: 0.217 | AQ130: -2.203 | AR130: =-1*(AP130) -> -0.217 | AS130: =-1*(AQ130) -> 2.203 | AT130: 0.175890416 | AU130: =-LOG(AT130,10) -> 0.7547578239 | AV130: 1.3146 | AW130: 2.9945 | AX130: 1.8663 | AY130: 1.8663 | AZ130: TRUE | BA130: 0.0361
A131: HCAR2 | B131: 2.197 | C131: 0.2890257331 | D131: ENSG00000182782.7 | E131: ENSG00000182782 | H131: 4 | S131: 4 | T131: 8 | U131: 3 | W131: 2 | Y131: 4 | AI131: 5 | AJ131: 0.99 | AK131: 1 | AM131: 3 | AN131: 1 | AO131: 1 | AP131: 0.218 | AQ131: -2.197 | AR131: -0.218 | AS131: 2.197 | AT131: 0.514013194 | AU131: 0.2890257331 | AV131: 11.8959 | AW131: 6.1529 | AX131: 8.6969 | AY131: 8.6969 | AZ131: TRUE | BA131: 0.1879
A132: PIK3AP1 | B132: 2.186 | C132: 0.6790738179 | D132: ENSG00000155629.14 | E132: ENSG00000155629 | F132: 4 | G132: 2 | H132: 10 | J132: 2 | L132: 2 | P132: 2 | Q132: 1 | S132: 8 | U132: 3 | V132: 2 | W132: 1 | X132: 4 | Z132: 2 | AA132: 4 | AD132: 2 | AJ132: 1.61 | AK132: 3 | AL132: 1 | AM132: 2 | AN132: 2 | AP132: 0.22 | AQ132: -2.186 | AR132: -0.22 | AS132: 2.186 | AT132: 0.2093756546 | AU132: 0.6790738179 | AV132: 1.9307 | AW132: 3.77 | AX132: 2.4498 | AY132: 2.4498 | AZ132: TRUE | BA132: 0.1509
A133: MRGPRX3 | B133: 2.177 | C133: 0.5210720343 | D133: ENSG00000179826.6 | E133: ENSG00000179826 | H133: 2 | J133: 2 | R133: 5 | S133: 10 | T133: 8 | U133: 3 | V133: 5 | W133: 8 | Z133: 5 | AB133: 20 | AD133: 2 | AG133: 2 | AJ133: 2.36 | AK133: 1 | AM133: 6 | AN133: 4 | AO133: 1 | AP133: 0.221 | AQ133: -2.177 | AR133: -0.221 | AS133: 2.177 | AT133: 0.3012506313 | AU133: 0.5210720343 | AV133: 2.9307 | AW133: 2.577 | AX133: 2.7881 | AY133: 2.7881 | AZ133: TRUE | BA133: 0.4837
A134: NTN5 | B134: 2.175 | C134: 0.3584394681 | D134: ENSG00000142233.11 | E134: ENSG00000142233 | F134: 9 | G134: 1 | H134: 2 | I134: 7 | K134: 9 | P134: 6 | V134: 10 | Y134: 4 | AJ134: 1.62 | AK134: 5 | AL134: 1 | AM134: 2 | AN134: 1 | AP134: 0.221 | AQ134: -2.175 | AR134: -0.221 | AS134: 2.175 | AT134: 0.4380871674 | AU134: 0.3584394681 | AV134: 10.5686 | AW134: 3.7554 | AX134: 6.9669 | AY134: 6.9669 | AZ134: TRUE | BA134: 0.1136
A135: CPO | B135: 2.166 | C135: 0.2999382924 | D135: ENSG00000144410.4 | E135: ENSG00000144410 | F135: 1 | G135: 6 | M135: 2 | R135: 5 | T135: 8 | U135: 5 | AI135: 1 | AJ135: 0.94 | AK135: 1 | AM135: 3 | AP135: 0.223 | AQ135: -2.166 | AR135: -0.223 | AS135: 2.166 | AT135: 0.5012584508 | AU135: 0.2999382924 | AV135: 10.4035 | AW135: 6.4214 | AX135: 8.1901 | AY135: 8.1901 | AZ135: TRUE | BA135: 0.1005
A136: PRAL | B136: 2.156 | C136: 0.4430230397 | D136: ENSG00000279296.1 | E136: ENSG00000279296 | F136: 7 | O136: 1 | S136: 4 | T136: 3 | U136: 10 | V136: 3 | W136: 6 | AD136: 2 | AF136: 3 | AG136: 2 | AJ136: 1.41 | AK136: 1 | AM136: 4 | AO136: 1 | AP136: 0.224 | AQ136: -2.156 | AR136: -0.224 | AS136: 2.156 | AT136: 0.3605595145 | AU136: 0.4430230397 | AV136: 3.9399 | AW136: 4.3161 | AX136: 4.1085 | AY136: 4.1085 | AZ136: TRUE | BA136: 0.2356
A137: CEP170P1 | B137: 2.152 | C137: 0.4474143767 | D137: ENSG00000154608.14 | E137: ENSG00000154608 | F137: 4 | V137: 2 | W137: 4 | X137: 2 | AB137: 8 | AC137: 3 | AD137: 6 | AE137: 3 | AF137: 3 | AG137: 4 | AH137: 2 | AJ137: 1.37 | AK137: 1 | AM137: 1 | AN137: 2 | AO137: 3 | AP137: 0.225 | AQ137: -2.152 | AR137: -0.225 | AS137: 2.152 | AT137: 0.3569321133 | AU137: 0.4474143767 | AV137: 3.187 | AW137: 4.4274 | AX137: 3.6741 | AY137: 3.6741 | AZ137: TRUE | BA137: 0.3415
A138: PDC | B138: 2.15 | C138: 0.8523292524 | D138: ENSG00000116703.13 | E138: ENSG00000116703 | G138: 2 | H138: 6 | L138: 2 | R138: 18 | S138: 15 | T138: 10 | U138: 8 | V138: 3 | W138: 4 | X138: 11 | Y138: 6 | Z138: 7 | AB138: 9 | AC138: 8 | AD138: 2 | AE138: 3 | AG138: 11 | AH138: 12 | AI138: 4 | AJ138: 4.7 | AK138: 1 | AM138: 10 | AN138: 7 | AO138: 5 | AP138: 0.225 | AQ138: -2.15 | AR138: -0.225 | AS138: 2.15 | AT138: 0.1404981959 | AU138: 0.8523292524 | AV138: 0.8096 | AW138: 1.3008 | AX138: 0.9614 | AY138: 0.9614 | AZ138: TRUE | BA138: 0.2904
A139: CAPN12 | B139: 2.148 | C139: 0.9595466191 | D139: ENSG00000182472.8 | E139: ENSG00000182472 | F139: 1 | G139: 3 | I139: 7 | J139: 2 | K139: 5 | N139: 2 | O139: 1 | Q139: 1 | T139: 1 | U139: 3 | V139: 5 | W139: 2 | X139: 2 | Y139: 2 | AA139: 1 | AC139: 2 | AD139: 2 | AE139: 6 | AH139: 7 | AI139: 5 | AJ139: 1.93 | AK139: 3 | AL139: 1 | AM139: 2 | AN139: 1 | AO139: 3 | AP139: 0.226 | AQ139: -2.148 | AR139: -0.226 | AS139: 2.148 | AT139: 0.109762346 | AU139: 0.9595466191 | AV139: 0.626 | AW139: 3.1506 | AX139: 1.2073 | AY139: 1.2073 | AZ139: TRUE | BA139: 0.0482
A140: RUNDC3A | B140: 2.14 | C140: 0.6349411742 | D140: ENSG00000108309.13 | E140: ENSG00000108309 | G140: 2 | H140: 4 | K140: 2 | Q140: 1 | S140: 4 | T140: 3 | U140: 8 | V140: 3 | X140: 7 | Y140: 4 | Z140: 5 | AB140: 3 | AD140: 4 | AE140: 4 | AG140: 20 | AH140: 5 | AJ140: 2.65 | AK140: 1 | AM140: 3 | AN140: 3 | AO140: 6 | AP140: 0.227 | AQ140: -2.14 | AR140: -0.227 | AS140: 2.14 | AT140: 0.2317708565 | AU140: 0.6349411742 | AV140: 1.8277 | AW140: 2.2995 | AX140: 1.9714 | AY140: 1.9714 | AZ140: TRUE | BA140: 0.2237
A141: ACOT6 | B141: 2.139 | C141: 0.3414838653 | D141: ENSG00000205669.2 | E141: ENSG00000205669 | J141: 2 | K141: 2 | R141: 5 | S141: 4 | T141: 5 | V141: 10 | X141: 2 | AD141: 6 | AJ141: 1.21 | AK141: 1 | AM141: 4 | AO141: 1 | AP141: 0.227 | AQ141: -2.139 | AR141: -0.227 | AS141: 2.139 | AT141: 0.4555291094 | AU141: 0.3414838653 | AV141: 7.1352 | AW141: 5.0233 | AX141: 6.0265 | AY141: 6.0265 | AZ141: TRUE | BA141: 0.1286
A142: CUX2 | B142: 2.135 | C142: 0.5271822239 | D142: ENSG00000111249.13 | E142: ENSG00000111249 | F142: 1 | G142: 4 | H142: 10 | I142: 3 | K142: 16 | L142: 6 | O142: 2 | R142: 9 | U142: 13 | AC142: 5 | AE142: 3 | AG142: 1 | AJ142: 2.45 | AK142: 6 | AL142: 1 | AM142: 4 | AN142: 1 | AO142: 1 | AP142: 0.228 | AQ142: -2.135 | AR142: -0.228 | AS142: 2.135 | AT142: 0.2970419424 | AU142: 0.5271822239 | AV142: 4.7294 | AW142: 2.4878 | AX142: 3.8537 | AY142: 3.8537 | AZ142: TRUE | BA142: 0.2019
A143: ENO4 | B143: 2.123 | C143: 0.3428638624 | D143: ENSG00000188316.13 | E143: ENSG00000188316 | G143: 2 | J143: 2 | R143: 2 | T143: 3 | W143: 4 | AD143: 10 | AG143: 13 | AI143: 2 | AJ143: 1.3 | AK143: 1 | AM143: 2 | AO143: 4 | AP143: 0.23 | AQ143: -2.123 | AR143: -0.23 | AS143: 2.123 | AT143: 0.4540839353 | AU143: 0.3428638624 | AV143: 7.1918 | AW143: 4.6712 | AX143: 5.8582 | AY143: 5.8582 | AZ143: TRUE | BA143: 0.0105
A144: KRT75 | B144: 2.121 | C144: 0.9857823529 | D144: ENSG00000170454.5 | E144: ENSG00000170454 | G144: 11 | H144: 6 | I144: 10 | J144: 6 | K144: 9 | M144: 4 | N144: 2 | O144: 1 | P144: 3 | S144: 8 | U144: 10 | V144: 7 | W144: 6 | Z144: 5 | AA144: 6 | AC144: 3 | AJ144: 3.24 | AK144: 7 | AL144: 2 | AM144: 5 | AN144: 2 | AP144: 0.23 | AQ144: -2.121 | AR144: -0.23 | AS144: 2.121 | AT144: 0.1033279105 | AU144: 0.9857823529 | AV144: 1.4173 | AW144: 1.8813 | AX144: 1.5721 | AY144: 1.5721 | AZ144: TRUE | BA144: 0.0484
A145: GALNT9 | B145: 2.117 | C145: 0.4373792404 | D145: ENSG00000182870.12 | E145: ENSG00000182870 | F145: 7 | G145: 4 | I145: 3 | J145: 4 | M145: 4 | O145: 1 | S145: 6 | U145: 3 | V145: 2 | X145: 4 | AF145: 9 | AJ145: 1.54 | AK145: 3 | AL145: 1 | AM145: 2 | AN145: 1 | AO145: 2 | AP145: 0.231 | AQ145: -2.117 | AR145: -0.231 | AS145: 2.117 | AT145: 0.3652756814 | AU145: 0.4373792404 | AV145: 5.1029 | AW145: 3.9545 | AX145: 4.6529 | AY145: 4.6529 | AZ145: TRUE | BA145: 0.31
A146: TMEM30B | B146: 2.105 | C146: 0.274871901 | D146: ENSG00000182107.6 | E146: ENSG00000182107 | G146: 2 | H146: 2 | V146: 2 | W146: 6 | X146: 4 | AD146: 10 | AE146: 8 | AJ146: 1.13 | AK146: 1 | AM146: 1 | AN146: 1 | AO146: 3 | AP146: 0.233 | AQ146: -2.105 | AR146: -0.233 | AS146: 2.105 | AT146: 0.5310410564 | AU146: 0.274871901 | AV146: 12.6391 | AW146: 5.3765 | AX146: 8.5333 | AY146: 8.5333 | AZ146: TRUE | BA146: 0.0614
A147: NANOG | B147: 2.104 | C147: 0.4579163573 | D147: ENSG00000111704.10 | E147: ENSG00000111704 | F147: 3 | G147: 5 | H147: 2 | I147: 5 | L147: 4 | R147: 9 | S147: 1 | T147: 5 | W147: 4 | AE147: 11 | AI147: 2 | AJ147: 1.73 | AK147: 2 | AL147: 1 | AM147: 3 | AO147: 2 | AP147: 0.233 | AQ147: -2.104 | AR147: -0.233 | AS147: 2.104 | AT147: 0.3484044093 | AU147: 0.4579163573 | AV147: 4.5437 | AW147: 3.5158 | AX147: 4.1301 | AY147: 4.1301 | AZ147: TRUE | BA147: 0.2769
A148: KC877373.1 | B148: 2.103 | C148: 0.4754988598 | D148: ENSG00000243537.1 | E148: ENSG00000243537 | H148: 2 | K148: 2 | R148: 10 | S148: 11 | T148: 5 | V148: 3 | Y148: 2 | Z148: 8 | AA148: 4 | AC148: 8 | AD148: 1 | AJ148: 1.89 | AK148: 1 | AM148: 5 | AN148: 4 | AP148: 0.233 | AQ148: -2.103 | AR148: -0.233 | AS148: 2.103 | AT148: 0.3345808963 | AU148: 0.4754988598 | AV148: 2.8506 | AW148: 3.2131 | AX148: 3.0054 | AY148: 3.0054 | AZ148: TRUE | BA148: 0.0209
A149: SDS | B149: 2.097 | C149: 0.3584394681 | D149: ENSG00000135094.10 | E149: ENSG00000135094 | F149: 3 | G149: 4 | H149: 6 | J149: 2 | K149: 9 | M149: 6 | AA149: 4 | AD149: 2 | AJ149: 1.2 | AK149: 4 | AL149: 1 | AN149: 1 | AP149: 0.234 | AQ149: -2.097 | AR149: -0.234 | AS149: 2.097 | AT149: 0.4380871674 | AU149: 0.3584394681 | AV149: 7.8031 | AW149: 5.0621 | AX149: 6.3836 | AY149: 6.3836 | AZ149: TRUE | BA149: 0.1616
A150: GPC4 | B150: 2.095 | C150: 0.44532697 | D150: ENSG00000076716.8 | E150: ENSG00000076716 | G150: 5 | H150: 2 | L150: 2 | R150: 9 | S150: 2 | U150: 3 | V150: 5 | W150: 10 | X150: 4 | AG150: 2 | AI150: 5 | AJ150: 1.62 | AK150: 1 | AM150: 5 | AN150: 1 | AO150: 1 | AP150: 0.234 | AQ150: -2.095 | AR150: -0.234 | AS150: 2.095 | AT150: 0.3586518126 | AU150: 0.44532697 | AV150: 3.7642 | AW150: 3.7402 | AX150: 3.7531 | AY150: 3.7531 | AZ150: TRUE | BA150: 0.1214
A151: RPL29P30 | B151: 2.091 | C151: 0.8389811671 | D151: ENSG00000235420.7 | E151: ENSG00000235420 | F151: 1 | G151: 2 | H151: 2 | J151: 2 | L151: 2 | R151: 5 | S151: 4 | T151: 8 | V151: 3 | W151: 4 | Z151: 2 | AD151: 4 | AE151: 6 | AF151: 3 | AG151: 7 | AH151: 5 | AI151: 17 | AJ151: 2.56 | AK151: 1 | AM151: 4 | AO151: 7 | AP151: 0.235 | AQ151: -2.091 | AR151: -0.235 | AS151: 2.091 | AT151: 0.144883468 | AU151: 0.8389811671 | AV151: 0.2492 | AW151: 2.3782 | AX151: 0.8649 | AY151: 0.8649 | AZ151: TRUE | BA151: 0.3713
A152: KIF28P | B152: 2.079 | C152: 0.2995248647 | D152: ENSG00000223519.8 | E152: ENSG00000223519 | G152: 2 | I152: 3 | J152: 2 | Q152: 1 | R152: 1 | T152: 3 | W152: 2 | AH152: 15 | AJ152: 0.97 | AK152: 1 | AM152: 1 | AO152: 2 | AP152: 0.237 | AQ152: -2.079 | AR152: -0.237 | AS152: 2.079 | AT152: 0.5017358523 | AU152: 0.2995248647 | AV152: 8.5305 | AW152: 6.2661 | AX152: 7.4319 | AY152: 7.4319 | AZ152: TRUE | BA152: 0.7709
A153: ALG1L15P | B153: 2.053 | C153: 0.6345448846 | D153: ENSG00000242017.1 | E153: ENSG00000242017 | F153: 1 | H153: 2 | I153: 5 | J153: 2 | K153: 2 | N153: 2 | O153: 1 | S153: 2 | T153: 3 | W153: 2 | X153: 2 | Z153: 2 | AB153: 6 | AF153: 6 | AH153: 5 | AI153: 2 | AJ153: 1.52 | AK153: 2 | AM153: 1 | AN153: 2 | AO153: 2 | AP153: 0.241 | AQ153: -2.053 | AR153: -0.241 | AS153: 2.053 | AT153: 0.2319824418 | AU153: 0.6345448846 | AV153: 1.322 | AW153: 4.0021 | AX153: 2.0578 | AY153: 2.0578 | AZ153: TRUE | BA153: 0.0817
A154: GAPDHP14 | B154: 2.052 | C154: 0.484177366 | D154: ENSG00000236056.1 | E154: ENSG00000236056 | G154: 2 | H154: 4 | I154: 5 | K154: 4 | M154: 2 | N154: 2 | T154: 3 | Z154: 5 | AA154: 2 | AD154: 10 | AE154: 4 | AG154: 4 | AJ154: 1.55 | AK154: 2 | AL154: 1 | AN154: 1 | AO154: 3 | AP154: 0.241 | AQ154: -2.052 | AR154: -0.241 | AS154: 2.052 | AT154: 0.3279613263 | AU154: 0.484177366 | AV154: 3.2793 | AW154: 3.9099 | AX154: 3.512 | AY154: 3.512 | AZ154: TRUE | BA154: 0.2471
A155: PCDHGA7 | B155: 2.047 | C155: 0.5049286665 | D155: ENSG00000253537.2 | E155: ENSG00000253537 | F155: 3 | G155: 12 | I155: 8 | J155: 2 | O155: 6 | U155: 5 | V155: 3 | W155: 6 | Z155: 2 | AA155: 2 | AB155: 6 | AE155: 3 | AG155: 4 | AJ155: 2.13 | AK155: 4 | AL155: 1 | AM155: 2 | AN155: 2 | AO155: 1 | AP155: 0.242 | AQ155: -2.047 | AR155: -0.242 | AS155: 2.047 | AT155: 0.3126592872 | AU155: 0.5049286665 | AV155: 4.0617 | AW155: 2.8501 | AX155: 3.6373 | AY155: 3.6373 | AZ155: TRUE | BA155: 0.2213
A156: C10orf55 | B156: 2.043 | C156: 0.2935478271 | D156: ENSG00000222047.8 | E156: ENSG00000222047 | K156: 4 | U156: 3 | Z156: 2 | AD156: 8 | AE156: 3 | AF156: 6 | AI156: 7 | AJ156: 1.1 | AK156: 1 | AO156: 4 | AP156: 0.243 | AQ156: -2.043 | AR156: -0.243 | AS156: 2.043 | AT156: 0.5086887968 | AU156: 0.2935478271 | AV156: 9.174 | AW156: 5.5165 | AX156: 7.0265 | AY156: 7.0265 | AZ156: TRUE | BA156: 0.0729
A157: RPEL1 | B157: 2.041 | C157: 0.8223076225 | D157: ENSG00000235376.5 | E157: ENSG00000235376 | F157: 3 | G157: 5 | H157: 6 | J157: 4 | K157: 2 | L157: 2 | N157: 2 | Q157: 1 | S157: 2 | T157: 3 | U157: 3 | V157: 2 | W157: 6 | Y157: 2 | Z157: 2 | AH157: 2 | AJ157: 1.58 | AK157: 3 | AL157: 1 | AM157: 3 | AN157: 1 | AP157: 0.243 | AQ157: -2.041 | AR157: -0.243 | AS157: 2.041 | AT157: 0.1505540274 | AU157: 0.8223076225 | AV157: 0.6004 | AW157: 3.8526 | AX157: 1.5654 | AY157: 1.5654 | AZ157: TRUE | BA157: 0.21
A158: ADAM18 | B158: 2.034 | C158: 0.262960432 | D158: ENSG00000168619.15 | E158: ENSG00000168619 | F158: 1 | J158: 2 | T158: 13 | W158: 6 | AB158: 3 | AD158: 2 | AE158: 3 | AJ158: 1.01 | AM158: 3 | AO158: 1 | AP158: 0.244 | AQ158: -2.034 | AR158: -0.244 | AS158: 2.034 | AT158: 0.5458075867 | AU158: 0.262960432 | AV158: 11.5975 | AW158: 5.9785 | AX158: 8.4541 | AY158: 8.4541 | AZ158: TRUE | BA158: 0.0874
A159: TNS4 | B159: 2.03 | C159: 0.3347356096 | D159: ENSG00000131746.12 | E159: ENSG00000131746 | G159: 5 | I159: 2 | O159: 1 | T159: 3 | U159: 3 | V159: 3 | W159: 2 | AD159: 4 | AF159: 9 | AJ159: 1.07 | AK159: 1 | AM159: 2 | AO159: 2 | AP159: 0.245 | AQ159: -2.03 | AR159: -0.245 | AS159: 2.03 | AT159: 0.462662596 | AU159: 0.3347356096 | AV159: 5.8558 | AW159: 5.6731 | AX159: 5.7763 | AY159: 5.7763 | AZ159: TRUE | BA159: 0.118
A160: AK4P3 | B160: 2.03 | C160: 0.5432293258 | D160: ENSG00000233381.3 | E160: ENSG00000233381 | G160: 2 | K160: 2 | R160: 2 | S160: 4 | T160: 17 | V160: 1 | W160: 4 | Y160: 2 | AC160: 1 | AD160: 8 | AF160: 3 | AG160: 2 | AH160: 4 | AI160: 2 | AJ160: 1.81 | AK160: 1 | AM160: 5 | AO160: 3 | AP160: 0.245 | AQ160: -2.03 | AR160: -0.245 | AS160: 2.03 | AT160: 0.2862665962 | AU160: 0.5432293258 | AV160: 1.2612 | AW160: 3.3636 | AX160: 1.9255 | AY160: 1.9255 | AZ160: TRUE | BA160: 0.1953
A161: SOX5 | B161: 2.016 | C161: 0.7552784702 | D161: ENSG00000134532.15 | E161: ENSG00000134532 | G161: 14 | H161: 2 | I161: 13 | J161: 4 | K161: 7 | O161: 2 | P161: 6 | Q161: 1 | R161: 7 | S161: 4 | W161: 8 | Y161: 1 | AD161: 2 | AE161: 14 | AH161: 2 | AI161: 2 | AJ161: 3.05 | AK161: 7 | AL161: 2 | AM161: 3 | AO161: 3 | AP161: 0.247 | AQ161: -2.016 | AR161: -0.247 | AS161: 2.016 | AT161: 0.1756796792 | AU161: 0.7552784702 | AV161: 2.1016 | AW161: 1.9953 | AX161: 2.0691 | AY161: 2.0691 | AZ161: TRUE | BA161: 0.0713
A162: CXCR4 | B162: 2 | C162: 0.3492970487 | D162: ENSG00000121966.6 | E162: ENSG00000121966 | I162: 2 | K162: 2 | R162: 7 | S162: 4 | V162: 24 | W162: 12 | AD162: 4 | AH162: 7 | AJ162: 2.06 | AK162: 1 | AM162: 8 | AO162: 2 | AP162: 0.25 | AQ162: -2 | AR162: -0.25 | AS162: 2 | AT162: 0.4474071819 | AU162: 0.3492970487 | AV162: 7.2814 | AW162: 2.9474 | AX162: 4.7707 | AY162: 4.7707 | AZ162: TRUE | BA162: 0.0324
A163: ZNF114 | B163: 1.999 | C163: 0.4572895639 | D163: ENSG00000178150.9 | E163: ENSG00000178150 | G163: 2 | I163: 7 | J163: 2 | O163: 2 | R163: 7 | U163: 6 | V163: 2 | W163: 1 | Y163: 2 | Z163: 1 | AA163: 1 | AB163: 8 | AE163: 3 | AJ163: 1.47 | AK163: 2 | AM163: 3 | AN163: 2 | AP163: 0.25 | AQ163: -1.999 | AR163: -0.25 | AS163: 1.999 | AT163: 0.3489076054 | AU163: 0.4572895639 | AV163: 3.0001 | AW163: 4.1431 | AX163: 3.3613 | AY163: 3.3613 | AZ163: TRUE | BA163: 0.151
A164: GOLGA8M | B164: 1.994 | C164: 0.6729570501 | D164: ENSG00000188626.6 | E164: ENSG00000188626 | F164: 1 | G164: 2 | I164: 3 | L164: 1 | P164: 1 | R164: 5 | S164: 8 | T164: 8 | U164: 12 | V164: 2 | W164: 6 | AD164: 7 | AE164: 3 | AG164: 8 | AH164: 2 | AJ164: 2.27 | AK164: 1 | AM164: 7 | AO164: 3 | AP164: 0.251 | AQ164: -1.994 | AR164: -0.251 | AS164: 1.994 | AT164: 0.2123454452 | AU164: 0.6729570501 | AV164: 0.5824 | AW164: 2.6809 | AX164: 1.2842 | AY164: 1.2842 | AZ164: TRUE | BA164: 0.0517
A165: PLEK | B165: 1.979 | C165: 0.9298404439 | D165: ENSG00000115956.9 | E165: ENSG00000115956 | F165: 3 | H165: 4 | I165: 12 | J165: 15 | K165: 2 | O165: 1 | P165: 6 | Q165: 1 | R165: 5 | S165: 6 | T165: 3 | V165: 3 | W165: 2 | Y165: 4 | Z165: 5 | AD165: 10 | AE165: 11 | AF165: 3 | AG165: 2 | AH165: 5 | AJ165: 3.45 | AK165: 6 | AL165: 1 | AM165: 3 | AN165: 2 | AO165: 5 | AP165: 0.254 | AQ165: -1.979 | AR165: -0.254 | AS165: 1.979 | AT165: 0.1175329282 | AU165: 0.9298404439 | AV165: 1.2984 | AW165: 1.7697 | AX165: 1.4192 | AY165: 1.4192 | AZ165: TRUE | BA165: 0.1287
A166: GAPDHP38 | B166: 1.962 | C166: 0.4945967024 | D166: ENSG00000249210.1 | E166: ENSG00000249210 | H166: 5 | I166: 2 | O166: 1 | S166: 6 | T166: 3 | U166: 5 | V166: 2 | W166: 4 | X166: 4 | Y166: 2 | AC166: 3 | AE166: 6 | AG166: 2 | AI166: 2 | AJ166: 1.55 | AK166: 1 | AM166: 3 | AN166: 2 | AO166: 2 | AP166: 0.257 | AQ166: -1.962 | AR166: -0.257 | AS166: 1.962 | AT166: 0.320186707 | AU166: 0.4945967024 | AV166: 1.8023 | AW166: 3.9247 | AX166: 2.4903 | AY166: 2.4903 | AZ166: TRUE | BA166: 0.2161
A167: SFTPD | B167: 1.96 | C167: 0.3675980135 | D167: ENSG00000133661.15 | E167: ENSG00000133661 | I167: 3 | R167: 7 | T167: 5 | W167: 6 | AD167: 8 | AE167: 8 | AF167: 3 | AH167: 5 | AI167: 5 | AJ167: 1.69 | AM167: 3 | AO167: 5 | AP167: 0.257 | AQ167: -1.96 | AR167: -0.257 | AS167: 1.96 | AT167: 0.4289453721 | AU167: 0.3675980135 | AV167: 4.5504 | AW167: 3.5959 | AX167: 4.0565 | AY167: 4.0565 | AZ167: TRUE | BA167: 0.1883
A168: CRTAC1 | B168: 1.945 | C168: 0.2218310571 | D168: ENSG00000095713.13 | E168: ENSG00000095713 | I168: 3 | R168: 2 | T168: 16 | W168: 1 | AD168: 2 | AE168: 6 | AJ168: 1 | AM168: 3 | AO168: 1 | AP168: 0.26 | AQ168: -1.945 | AR168: -0.26 | AS168: 1.945 | AT168: 0.6000244436 | AU168: 0.2218310571 | AV168: 17.4913 | AW168: 6.0765 | AX168: 10.2721 | AY168: 10.2721 | AZ168: TRUE | BA168: 0.5731
A169: TMSB4XP2 | B169: 1.944 | C169: 0.7881665219 | D169: ENSG00000188765.7 | E169: ENSG00000188765 | F169: 5 | G169: 2 | I169: 2 | J169: 4 | K169: 9 | O169: 2 | P169: 3 | R169: 2 | U169: 5 | V169: 9 | W169: 7 | Y169: 2 | AA169: 2 | AB169: 8 | AD169: 2 | AE169: 6 | AF169: 3 | AG169: 3 | AH169: 7 | AJ169: 2.8 | AK169: 4 | AL169: 1 | AM169: 4 | AN169: 2 | AO169: 4 | AP169: 0.26 | AQ169: -1.944 | AR169: -0.26 | AS169: 1.944 | AT169: 0.162867143 | AU169: 0.7881665219 | AV169: 1.3265 | AW169: 2.1778 | AX169: 1.5471 | AY169: 1.5471 | AZ169: TRUE | BA169: 0.1691
A170: SLC22A13 | B170: 1.937 | C170: 0.3274780612 | D170: ENSG00000172940.11 | E170: ENSG00000172940 | F170: 6 | G170: 7 | N170: 3 | S170: 2 | U170: 8 | W170: 1 | Z170: 2 | AA170: 8 | AC170: 3 | AE170: 6 | AJ170: 1.55 | AK170: 2 | AM170: 2 | AN170: 2 | AO170: 1 | AP170: 0.261 | AQ170: -1.937 | AR170: -0.261 | AS170: 1.937 | AT170: 0.4704591708 | AU170: 0.3274780612 | AV170: 7.2133 | AW170: 3.9177 | AX170: 5.8172 | AY170: 5.8172 | AZ170: TRUE | BA170: 0.2023
A171: TMC4 | B171: 1.931 | C171: 0.3898319331 | D171: ENSG00000167608.11 | E171: ENSG00000167608 | F171: 1 | G171: 2 | R171: 2 | T171: 10 | V171: 3 | W171: 4 | X171: 6 | AB171: 12 | AC171: 2 | AE171: 6 | AF171: 15 | AI171: 2 | AJ171: 2.18 | AM171: 3 | AN171: 3 | AO171: 4 | AP171: 0.262 | AQ171: -1.931 | AR171: -0.262 | AS171: 1.931 | AT171: 0.4075379598 | AU171: 0.3898319331 | AV171: 3.7992 | AW171: 2.7856 | AX171: 3.4126 | AY171: 3.4126 | AZ171: TRUE | BA171: 0.1807
A172: HPCA | B172: 1.926 | C172: 0.6994339156 | D172: ENSG00000121905.9 | E172: ENSG00000121905 | G172: 5 | I172: 1 | K172: 3 | O172: 1 | P172: 2 | R172: 5 | V172: 2 | X172: 7 | Y172: 26 | Z172: 13 | AA172: 36 | AB172: 22 | AC172: 27 | AD172: 6 | AE172: 4 | AG172: 1 | AJ172: 5.35 | AK172: 2 | AM172: 1 | AN172: 22 | AO172: 2 | AP172: 0.263 | AQ172: -1.926 | AR172: -0.263 | AS172: 1.926 | AT172: 0.199786475 | AU172: 0.6994339156 | AV172: 1.1316 | AW172: 1.1453 | AX172: 1.1381 | AY172: 1.1381 | AZ172: TRUE | BA172: 0.0804
A173: PNPLA1 | B173: 1.918 | C173: 0.5079771147 | D173: ENSG00000180316.12 | E173: ENSG00000180316 | F173: 10 | H173: 4 | K173: 2 | L173: 2 | O173: 2 | R173: 2 | S173: 2 | T173: 5 | U173: 5 | V173: 3 | W173: 2 | AB173: 5 | AI173: 1 | AJ173: 1.56 | AK173: 3 | AL173: 1 | AM173: 3 | AN173: 1 | AP173: 0.265 | AQ173: -1.918 | AR173: -0.265 | AS173: 1.918 | AT173: 0.3104723189 | AU173: 0.5079771147 | AV173: 2.3707 | AW173: 3.8867 | AX173: 2.8771 | AY173: 2.8771 | AZ173: TRUE | BA173: 0.3822
A174: TRPA1 | B174: 1.918 | C174: 0.5117678273 | D174: ENSG00000104321.10 | E174: ENSG00000104321 | F174: 4 | G174: 2 | M174: 2 | R174: 2 | S174: 12 | T174: 4 | U174: 5 | V174: 1 | W174: 20 | Y174: 4 | AD174: 8 | AG174: 4 | AH174: 7 | AI174: 7 | AJ174: 2.78 | AK174: 1 | AM174: 7 | AN174: 1 | AO174: 4 | AP174: 0.265 | AQ174: -1.918 | AR174: -0.265 | AS174: 1.918 | AT174: 0.3077741728 | AU174: 0.5117678273 | AV174: 2.1047 | AW174: 2.1891 | AX174: 2.1357 | AY174: 2.1357 | AZ174: TRUE | BA174: 0.2134
A175: PPIAP4 | B175: 1.918 | C175: 0.5731181191 | D175: ENSG00000258591.2 | E175: ENSG00000258591 | G175: 16 | H175: 2 | K175: 2 | L175: 1 | O175: 1 | P175: 2 | Q175: 1 | R175: 6 | T175: 13 | U175: 5 | V175: 5 | AA175: 2 | AC175: 2 | AD175: 2 | AE175: 3 | AJ175: 2.08 | AK175: 3 | AL175: 1 | AM175: 5 | AN175: 1 | AO175: 1 | AP175: 0.265 | AQ175: -1.918 | AR175: -0.265 | AS175: 1.918 | AT175: 0.2672279505 | AU175: 0.5731181191 | AV175: 2.2707 | AW175: 2.9163 | AX175: 2.4617 | AY175: 2.4617 | AZ175: TRUE | BA175: 0.1912
A176: PAQR9 | B176: 1.902 | C176: 0.6649943985 | D176: ENSG00000188582.8 | E176: ENSG00000188582 | F176: 12 | G176: 11 | J176: 17 | K176: 9 | L176: 2 | M176: 4 | N176: 2 | O176: 1 | P176: 2 | Q176: 3 | R176: 2 | T176: 10 | W176: 12 | X176: 4 | AE176: 8 | AG176: 2 | AJ176: 3.35 | AK176: 8 | AL176: 2 | AM176: 4 | AN176: 1 | AO176: 2 | AP176: 0.268 | AQ176: -1.902 | AR176: -0.268 | AS176: 1.902 | AT176: 0.2162746419 | AU176: 0.6649943985 | AV176: 2.4341 | AW176: 1.8185 | AX176: 2.2374 | AY176: 2.2374 | AZ176: TRUE | BA176: 0.1602
A177: RCSD1 | B177: 1.887 | C177: 0.2920817753 | D177: ENSG00000198771.10 | E177: ENSG00000198771 | F177: 1 | I177: 2 | U177: 3 | AD177: 12 | AE177: 10 | AG177: 11 | AI177: 2 | AJ177: 1.38 | AO177: 6 | AP177: 0.27 | AQ177: -1.887 | AR177: -0.27 | AS177: 1.887 | AT177: 0.5104088837 | AU177: 0.2920817753 | AV177: 7.9085 | AW177: 4.389 | AX177: 5.706 | AY177: 5.706 | AZ177: TRUE | BA177: 0.051
A178: TERB1 | B178: 1.88 | C178: 0.2534543191 | D178: ENSG00000249961.9 | E178: ENSG00000249961 | F178: 1 | I178: 2 | R178: 1 | W178: 3 | Y178: 13 | Z178: 2 | AD178: 2 | AI178: 5 | AJ178: 0.97 | AM178: 1 | AN178: 2 | AO178: 1 | AP178: 0.272 | AQ178: -1.88 | AR178: -0.272 | AS178: 1.88 | AT178: 0.5578862799 | AU178: 0.2534543191 | AV178: 8.4527 | AW178: 6.2275 | AX178: 7.3725 | AY178: 7.3725 | AZ178: TRUE | BA178: 0.5873
A179: AVPR2 | B179: 1.879 | C179: 0.44532697 | D179: ENSG00000126895.13 | E179: ENSG00000126895 | F179: 1 | H179: 6 | I179: 2 | K179: 13 | Q179: 6 | R179: 9 | S179: 4 | T179: 10 | U179: 5 | V179: 2 | AA179: 2 | AC179: 2 | AE179: 14 | AJ179: 2.53 | AK179: 4 | AL179: 1 | AM179: 5 | AN179: 1 | AO179: 2 | AP179: 0.272 | AQ179: -1.879 | AR179: -0.272 | AS179: 1.879 | AT179: 0.3586518126 | AU179: 0.44532697 | AV179: 4.2694 | AW179: 2.409 | AX179: 3.5972 | AY179: 3.5972 | AZ179: TRUE | BA179: 0.2988
A180: PLD6 | B180: 1.878 | C180: 0.4023975592 | D180: ENSG00000179598.5 | E180: ENSG00000179598 | F180: 3 | G180: 2 | I180: 3 | J180: 2 | K180: 2 | L180: 2 | Q180: 1 | V180: 2 | W180: 4 | X180: 1 | AB180: 14 | AE180: 17 | AI180: 5 | AJ180: 1.91 | AK180: 2 | AM180: 1 | AN180: 2 | AO180: 4 | AP180: 0.272 | AQ180: -1.878 | AR180: -0.272 | AS180: 1.878 | AT180: 0.3959154418 | AU180: 0.4023975592 | AV180: 4.074 | AW180: 3.1822 | AX180: 3.7744 | AY180: 3.7744 | AZ180: TRUE | BA180: 0.474
A181: CCDC38 | B181: 1.864 | C181: 0.9103017866 | D181: ENSG00000165972.12 | E181: ENSG00000165972 | F181: 1 | G181: 12 | H181: 4 | I181: 3 | K181: 4 | N181: 2 | O181: 2 | P181: 1 | Q181: 1 | R181: 5 | S181: 20 | T181: 10 | U181: 5 | V181: 3 | W181: 2 | Y181: 3 | Z181: 2 | AC181: 5 | AD181: 6 | AG181: 6 | AH181: 5 | AJ181: 3.39 | AK181: 4 | AL181: 1 | AM181: 8 | AN181: 2 | AO181: 3 | AP181: 0.275 | AQ181: -1.864 | AR181: -0.275 | AS181: 1.864 | AT181: 0.1229414167 | AU181: 0.9103017866 | AV181: 0.9216 | AW181: 1.7985 | AX181: 1.1308 | AY181: 1.1308 | AZ181: TRUE | BA181: 0.1116
A182: PTPN2P1 | B182: 1.859 | C182: 0.2947012494 | D182: ENSG00000228196.1 | E182: ENSG00000228196 | G182: 2 | J182: 2 | K182: 7 | L182: 2 | O182: 1 | R182: 5 | V182: 2 | AE182: 6 | AG182: 2 | AJ182: 0.94 | AK182: 2 | AM182: 1 | AO182: 1 | AP182: 0.276 | AQ182: -1.859 | AR182: -0.276 | AS182: 1.859 | AT182: 0.5073395865 | AU182: 0.2947012494 | AV182: 6.0003 | AW182: 6.4325 | AX182: 6.1918 | AY182: 6.1918 | AZ182: TRUE | BA182: 0.2499
A183: PYY2 | B183: 1.854 | C183: 0.5140263759 | D183: ENSG00000237575.4 | E183: ENSG00000237575 | F183: 5 | G183: 5 | I183: 3 | K183: 4 | L183: 2 | P183: 3 | R183: 11 | S183: 7 | T183: 3 | U183: 3 | V183: 2 | AH183: 5 | AI183: 5 | AJ183: 1.91 | AK183: 3 | AL183: 1 | AM183: 4 | AO183: 2 | AP183: 0.277 | AQ183: -1.854 | AR183: -0.277 | AS183: 1.854 | AT183: 0.3061777478 | AU183: 0.5140263759 | AV183: 2.361 | AW183: 3.178 | AX183: 2.655 | AY183: 2.655 | AZ183: TRUE | BA183: 0.0944
A184: PGAM4 | B184: 1.85 | C184: 0.9499693486 | D184: ENSG00000226784.2 | E184: ENSG00000226784 | F184: 3 | G184: 2 | H184: 10 | J184: 2 | K184: 1 | L184: 2 | N184: 2 | P184: 2 | R184: 9 | S184: 2 | T184: 18 | U184: 8 | V184: 2 | W184: 4 | X184: 11 | Y184: 2 | Z184: 12 | AA184: 4 | AB184: 2 | AC184: 5 | AD184: 8 | AE184: 6 | AG184: 2 | AH184: 2 | AJ184: 4 | AK184: 3 | AL184: 1 | AM184: 7 | AN184: 6 | AO184: 3 | AP184: 0.277 | AQ184: -1.85 | AR184: -0.277 | AS184: 1.85 | AT184: 0.1122097646 | AU184: 0.9499693486 | AV184: 0.6875 | AW184: 1.5258 | AX184: 0.8619 | AY184: 0.8619 | AZ184: TRUE | BA184: 0.1586
A185: SPATA31E1 | B185: 1.848 | C185: 0.4565349404 | D185: ENSG00000177992.9 | E185: ENSG00000177992 | F185: 1 | G185: 14 | H185: 6 | I185: 2 | J185: 2 | N185: 3 | P185: 2 | Q185: 3 | V185: 2 | X185: 2 | AC185: 9 | AD185: 8 | AE185: 6 | AJ185: 1.98 | AK185: 4 | AL185: 1 | AN185: 2 | AO185: 2 | AP185: 0.278 | AQ185: -1.848 | AR185: -0.278 | AS185: 1.848 | AT185: 0.3495143889 | AU185: 0.4565349404 | AV185: 3.5822 | AW185: 3.0762 | AX185: 3.4097 | AY185: 3.4097 | AZ185: TRUE | BA185: 0.2841
A186: SYN2 | B186: 1.838 | C186: 0.8102318511 | D186: ENSG00000157152.16 | E186: ENSG00000157152 | F186: 1 | G186: 4 | H186: 6 | I186: 6 | J186: 1 | K186: 4 | Q186: 6 | R186: 5 | S186: 6 | T186: 3 | U186: 5 | W186: 4 | Z186: 2 | AA186: 6 | AC186: 5 | AD186: 4 | AE186: 8 | AF186: 6 | AG186: 7 | AH186: 2 | AJ186: 3.02 | AK186: 4 | AL186: 1 | AM186: 4 | AN186: 2 | AO186: 4 | AP186: 0.28 | AQ186: -1.838 | AR186: -0.28 | AS186: 1.838 | AT186: 0.1547989993 | AU186: 0.8102318511 | AV186: 1.0245 | AW186: 2.0157 | AX186: 1.2838 | AY186: 1.2838 | AZ186: TRUE | BA186: 0.7524
A187: RAB6D | B187: 1.828 | C187: 0.2254309973 | D187: ENSG00000233087.7 | E187: ENSG00000233087 | H187: 6 | L187: 2 | S187: 2 | T187: 8 | V187: 2 | AG187: 4 | AH187: 5 | AJ187: 0.97 | AK187: 1 | AM187: 2 | AO187: 2 | AP187: 0.282 | AQ187: -1.828 | AR187: -0.282 | AS187: 1.828 | AT187: 0.5950712969 | AU187: 0.2254309973 | AV187: 12.2335 | AW187: 6.2836 | AX187: 8.9572 | AY187: 8.9572 | AZ187: TRUE | BA187: 0.1629
A188: NRXN3 | B188: 1.825 | C188: 0.4194476631 | D188: ENSG00000021645.18 | E188: ENSG00000021645 | H188: 2 | J188: 4 | M188: 2 | R188: 22 | X188: 6 | Y188: 4 | AA188: 6 | AB188: 4 | AC188: 3 | AD188: 6 | AF188: 6 | AG188: 4 | AH188: 2 | AI188: 5 | AJ188: 2.57 | AK188: 1 | AM188: 4 | AN188: 4 | AO188: 4 | AP188: 0.282 | AQ188: -1.825 | AR188: -0.282 | AS188: 1.825 | AT188: 0.3806732298 | AU188: 0.4194476631 | AV188: 2.9759 | AW188: 2.3711 | AX188: 2.7684 | AY188: 2.7684 | AZ188: TRUE | BA188: 1.8915
A189: LSP1 | B189: 1.825 | C189: 0.6783026762 | D189: ENSG00000130592.15 | E189: ENSG00000130592 | F189: 12 | G189: 2 | H189: 4 | I189: 2 | J189: 11 | K189: 1 | L189: 2 | N189: 2 | Q189: 5 | R189: 2 | U189: 3 | W189: 4 | X189: 2 | AC189: 2 | AD189: 6 | AG189: 2 | AH189: 7 | AJ189: 2.26 | AK189: 5 | AL189: 2 | AM189: 2 | AN189: 1 | AO189: 2 | AP189: 0.282 | AQ189: -1.825 | AR189: -0.282 | AS189: 1.825 | AT189: 0.2097477563 | AU189: 0.6783026762 | AV189: 1.5512 | AW189: 2.6928 | AX189: 1.8615 | AY189: 1.8615 | AZ189: TRUE | BA189: 0.0513
A190: HIST1H3F | B190: 1.816 | C190: 0.5930519303 | D190: ENSG00000277775.1 | E190: ENSG00000277775 | F190: 3 | G190: 5 | H190: 2 | I190: 3 | K190: 11 | L190: 4 | N190: 3 | R190: 9 | S190: 2 | T190: 5 | V190: 2 | X190: 2 | Y190: 6 | Z190: 5 | AC190: 2 | AD190: 4 | AF190: 9 | AJ190: 2.58 | AK190: 4 | AL190: 1 | AM190: 3 | AN190: 2 | AO190: 2 | AP190: 0.284 | AQ190: -1.816 | AR190: -0.284 | AS190: 1.816 | AT190: 0.2552396085 | AU190: 0.5930519303 | AV190: 2.0954 | AW190: 2.357 | AX190: 2.1698 | AY190: 2.1698 | AZ190: TRUE | BA190: 0.2777
A191: ANOS1 | B191: 1.811 | C191: 0.5099361404 | D191: ENSG00000011201.11 | E191: ENSG00000011201 | F191: 1 | G191: 5 | H191: 4 | I191: 5 | J191: 2 | K191: 2 | M191: 6 | R191: 2 | U191: 3 | V191: 10 | AD191: 2 | AE191: 22 | AG191: 7 | AI191: 10 | AJ191: 2.69 | AK191: 3 | AL191: 1 | AM191: 2 | AO191: 7 | AP191: 0.285 | AQ191: -1.811 | AR191: -0.285 | AS191: 1.811 | AT191: 0.3090749869 | AU191: 0.5099361404 | AV191: 2.7803 | AW191: 2.2606 | AX191: 2.6015 | AY191: 2.6015 | AZ191: TRUE | BA191: 0.2264
A192: SYT17 | B192: 1.804 | C192: 0.2735479109 | D192: ENSG00000103528.16 | E192: ENSG00000103528 | I192: 5 | K192: 1 | P192: 2 | S192: 12 | Y192: 2 | Z192: 6 | AA192: 6 | AC192: 7 | AD192: 4 | AJ192: 1.49 | AK192: 1 | AM192: 2 | AN192: 4 | AO192: 1 | AP192: 0.286 | AQ192: -1.804 | AR192: -0.286 | AS192: 1.804 | AT192: 0.5326624583 | AU192: 0.2735479109 | AV192: 7.9158 | AW192: 4.0872 | AX192: 6.1283 | AY192: 6.1283 | AZ192: TRUE | BA192: 0.1602
A193: EGR4 | B193: 1.796 | C193: 0.3757686744 | D193: ENSG00000135625.7 | E193: ENSG00000135625 | H193: 4 | I193: 2 | J193: 4 | O193: 1 | P193: 2 | S193: 2 | U193: 5 | X193: 19 | Y193: 2 | AC193: 3 | AD193: 10 | AF193: 18 | AH193: 2 | AJ193: 2.49 | AK193: 2 | AM193: 1 | AN193: 4 | AO193: 5 | AP193: 0.288 | AQ193: -1.796 | AR193: -0.288 | AS193: 1.796 | AT193: 0.4209507868 | AU193: 0.3757686744 | AV193: 4.297 | AW193: 2.4467 | AX193: 3.6341 | AY193: 3.6341 | AZ193: TRUE | BA193: 0.1077
A194: SLC25A24P2 | B194: 1.791 | C194: 0.3337325904 | D194: ENSG00000238118.1 | E194: ENSG00000238118 | F194: 2 | K194: 4 | M194: 1 | O194: 1 | S194: 1 | T194: 5 | U194: 4 | V194: 3 | Z194: 1 | AF194: 3 | AH194: 7 | AJ194: 1.08 | AK194: 1 | AM194: 2 | AO194: 2 | AP194: 0.289 | AQ194: -1.791 | AR194: =-1*(AP194) -> -0.289 | AS194: =-1*(AQ194) -> 1.791 | AT194: 0.4637323673 | AU194: =-LOG(AT194,10) -> 0.3337325904 | AV194: 3.3086 | AW194: 5.6064 | AX194: 4.1477 | AY194: 4.1477 | AZ194: TRUE | BA194: 0.0982
A195: TIMM8AP1 | B195: 1.79 | C195: 0.5548898182 | D195: ENSG00000231445.1 | E195: ENSG00000231445 | F195: 6 | G195: 4 | H195: 4 | I195: 8 | J195: 4 | K195: 2 | N195: 5 | Q195: 3 | V195: 1 | X195: 2 | AD195: 2 | AG195: 9 | AH195: 2 | AJ195: 1.75 | AK195: 5 | AL195: 1 | AO195: 2 | AP195: 0.289 | AQ195: -1.79 | AR195: -0.289 | AS195: 1.79 | AT195: 0.2786828106 | AU195: 0.5548898182 | AV195: 1.7823 | AW195: 3.4734 | AX195: 2.3885 | AY195: 2.3885 | AZ195: TRUE | BA195: 0.2831
A196: ABCB5 | B196: 1.781 | C196: 0.9247128344 | D196: ENSG00000004846.16 | E196: ENSG00000004846 | F196: 6 | G196: 9 | H196: 3 | I196: 2 | J196: 4 | K196: 9 | M196: 2 | N196: 3 | O196: 1 | P196: 3 | T196: 18 | U196: 10 | V196: 10 | W196: 18 | X196: 15 | Y196: 4 | Z196: 2 | AB196: 2 | AC196: 9 | AF196: 3 | AJ196: 4.49 | AK196: 6 | AL196: 2 | AM196: 9 | AN196: 5 | AP196: 0.291 | AQ196: -1.781 | AR196: -0.291 | AS196: 1.781 | AT196: 0.1189288353 | AU196: 0.9247128344 | AV196: 1.0131 | AW196: 1.3603 | AX196: 1.1042 | AY196: 1.1042 | AZ196: TRUE | BA196: 0.1899
A197: BTBD10P2 | B197: 1.774 | C197: 0.3064352073 | D197: ENSG00000219433.2 | E197: ENSG00000219433 | G197: 4 | H197: 2 | I197: 3 | O197: 2 | S197: 4 | T197: 5 | V197: 2 | X197: 9 | AE197: 10 | AH197: 2 | AI197: 1 | AJ197: 1.5 | AK197: 2 | AM197: 2 | AN197: 2 | AO197: 2 | AP197: 0.292 | AQ197: -1.774 | AR197: -0.292 | AS197: 1.774 | AT197: 0.4938155854 | AU197: 0.3064352073 | AV197: 5.5647 | AW197: 4.0593 | AX197: 4.9913 | AY197: 4.9913 | AZ197: TRUE | BA197: 0.4742
A198: IMPDH1P5 | B198: 1.748 | C198: 0.5508347032 | D198: ENSG00000213513.3 | E198: ENSG00000213513 | F198: 4 | G198: 7 | H198: 2 | I198: 4 | K198: 4 | L198: 4 | O198: 1 | P198: 2 | U198: 3 | Z198: 6 | AA198: 4 | AB198: 7 | AC198: 3 | AE198: 3 | AH198: 10 | AJ198: 2.1 | AK198: 4 | AL198: 1 | AN198: 3 | AO198: 2 | AP198: 0.298 | AQ198: -1.748 | AR198: -0.298 | AS198: 1.748 | AT198: 0.2812971271 | AU198: 0.5508347032 | AV198: 1.8375 | AW198: 2.8986 | AX198: 2.1745 | AY198: 2.1745 | AZ198: TRUE | BA198: 0.2579
A199: CLCNKA | B199: 1.745 | C199: 0.2813528091 | D199: ENSG00000186510.11 | E199: ENSG00000186510 | F199: 1 | G199: 8 | N199: 3 | R199: 1 | S199: 10 | V199: 6 | X199: 4 | AE199: 3 | AH199: 2 | AI199: 2 | AJ199: 1.33 | AK199: 2 | AM199: 3 | AN199: 1 | AO199: 1 | AP199: 0.298 | AQ199: -1.745 | AR199: -0.298 | AS199: 1.745 | AT199: 0.5231752504 | AU199: 0.2813528091 | AV199: 6.3021 | AW199: 4.5798 | AX199: 5.5931 | AY199: 5.5931 | AZ199: TRUE | BA199: 0.1444
A200: MYOC | B200: 1.727 | C200: 0.7536780694 | D200: ENSG00000034971.16 | E200: ENSG00000034971 | F200: 12 | G200: 9 | H200: 8 | I200: 13 | J200: 13 | K200: 5 | M200: 2 | N200: 10 | P200: 6 | R200: 16 | S200: 20 | V200: 7 | W200: 24 | X200: 4 | Y200: 4 | AD200: 6 | AE200: 6 | AG200: 18 | AH200: 17 | AJ200: 6.66 | AK200: 10 | AL200: 3 | AM200: 11 | AN200: 1 | AO200: 8 | AP200: 0.302 | AQ200: -1.727 | AR200: -0.302 | AS200: 1.727 | AT200: 0.1763282635 | AU200: 0.7536780694 | AV200: 1.8771 | AW200: 0.9218 | AX200: 1.5699 | AY200: 1.5699 | AZ200: TRUE | BA200: 0.0754
... 925 more rows

Sheet AML-TSC2(-) ver AML-TSC2(+)
A1: GENE | B1: ID | C1: norm.001-AML-TSC2(-) | D1: norm.002-AML-TSC2(-) | E1: norm.003-AML-TSC2(-) | F1: norm.004-AML-TSC2(-) | G1: norm.005-AML-TSC2(-) | H1: norm.006-AML-TSC2(-) | I1: norm.007-AML-TSC2(+) | J1: norm.008-AML-TSC2(+) | K1: norm.009-AML-TSC2(+) | L1: norm.010-AML-TSC2(+) | M1: norm.011-AML-TSC2(+) | N1: norm.012-AML-TSC2(+) | O1: mean AML-TSC2(-) | P1: mean AML-TSC2(+) | Q1: FoldChange (AML-TSC2(-) ver AML-TSC2(+)) | R1: log2FoldChange (AML-TSC2(-) ver AML-TSC2(+)) | S1: padj | T1: -log10pvalue
A2: TSPAN6 | B2: ENSG00000000003.14 | C2: 3221 | D2: 2636 | E2: 2544 | F2: 2295 | G2: 3096 | H2: 2664 | I2: 3331 | J2: 3132 | K2: 3624 | L2: 3269 | M2: 2743 | N2: 4238 | O2: 2743 | P2: 3390 | Q2: -1.236 | R2: -0.305 | S2: 0.003624678029 | T2: =-LOG(S2,10) -> 2.440730565
A3: DPM1 | B3: ENSG00000000419.12 | C3: 6181 | D3: 4877 | E3: 5110 | F3: 4533 | G3: 5569 | H3: 4796 | I3: 6796 | J3: 6235 | K3: 6099 | L3: 5817 | M3: 5348 | N3: 7403 | O3: 5178 | P3: 6283 | Q3: -1.213 | R3: -0.279 | S3: 0.006285682566 | T3: 2.201647555
A4: SCYL3 | B4: ENSG00000000457.13 | C4: 693 | D4: 861 | E4: 729 | F4: 775 | G4: 859 | H4: 815 | I4: 408 | J4: 398 | K4: 436 | L4: 416 | M4: 436 | N4: 441 | O4: 789 | P4: 422 | Q4: -0.536 | R4: 0.899 | S4: 1.505426201e-19 | T4: 18.82234053
A5: C1orf112 | B5: ENSG00000000460.16 | C5: 2255 | D5: 2084 | E5: 2288 | F5: 2382 | G5: 2519 | H5: 2172 | I5: 1283 | J5: 1124 | K5: 1367 | L5: 1274 | M5: 1224 | N5: 1557 | O5: 2283 | P5: 1305 | Q5: -0.572 | R5: 0.806 | S5: 3.928046938e-36 | T5: 35.40582333
A6: FGR | B6: ENSG00000000938.12 | D6: 2 | F6: 2 | G6: 2 | O6: 1 | Q6: -0.159 | R6: 2.656 | S6: 0.3859330457 | T6: 0.4134880331
A7: CFH | B7: ENSG00000000971.15 | C7: 1302 | D7: 1622 | E7: 1331 | F7: 1340 | G7: 841 | H7: 1244 | K7: 2 | L7: 2 | M7: 6 | N7: 3 | O7: 1280 | P7: 2 | Q7: -0.002 | R7: 9.087 | S7: 2.491266491e-125 | T7: 124.6035798
A8: FUCA2 | B8: ENSG00000001036.13 | C8: 15011 | D8: 14021 | E8: 14252 | F8: 13770 | G8: 14571 | H8: 14187 | I8: 18051 | J8: 18068 | K8: 17802 | L8: 17176 | M8: 16706 | N8: 18624 | O8: 14302 | P8: 17738 | Q8: -1.24 | R8: -0.311 | S8: 2.612769991e-08 | T8: 7.582898821
A9: GCLC | B9: ENSG00000001084.10 | C9: 2781 | D9: 2683 | E9: 2959 | F9: 3148 | G9: 2778 | H9: 2918 | I9: 2253 | J9: 2023 | K9: 2203 | L9: 2051 | M9: 2193 | N9: 2094 | O9: 2878 | P9: 2136 | Q9: -0.742 | R9: 0.43 | S9: 6.174568e-12 | T9: 11.20939342
A10: NFYA | B10: ENSG00000001167.14 | C10: 1437 | D10: 2085 | E10: 1969 | F10: 1846 | G10: 1805 | H10: 1717 | I10: 2260 | J10: 2346 | K10: 2428 | L10: 2415 | M10: 2368 | N10: 2384 | O10: 1810 | P10: 2367 | Q10: -1.309 | R10: -0.388 | S10: 1.934306862e-07 | T10: 6.713474628
A11: STPG1 | B11: ENSG00000001460.17 | C11: 781 | D11: 783 | E11: 869 | F11: 1012 | G11: 968 | H11: 972 | I11: 577 | J11: 597 | K11: 664 | L11: 683 | M11: 609 | N11: 661 | O11: 898 | P11: 632 | Q11: -0.705 | R11: 0.504 | S11: 7.503060041e-09 | T11: 8.124761578
A12: NIPAL3 | B12: ENSG00000001461.16 | C12: 1250 | D12: 1289 | E12: 1472 | F12: 1463 | G12: 1376 | H12: 1231 | I12: 2338 | J12: 2324 | K12: 2511 | L12: 2467 | M12: 2404 | N12: 2396 | O12: 1347 | P12: 2407 | Q12: -1.788 | R12: -0.838 | S12: 2.011724035e-46 | T12: 45.6964316
A13: LAS1L | B13: ENSG00000001497.16 | C13: 3836 | D13: 3912 | E13: 4549 | F13: 4313 | G13: 5071 | H13: 4735 | I13: 6683 | J13: 7032 | K13: 6796 | L13: 7418 | M13: 6739 | N13: 7520 | O13: 4403 | P13: 7031 | Q13: -1.598 | R13: -0.676 | S13: 4.081002768e-23 | T13: 22.38923311
A14: ENPP4 | B14: ENSG00000001561.6 | K14: 1 | Q14: -1.232 | R14: -0.301 | S14: NA
A15: SEMA3F | B15: ENSG00000001617.11 | C15: 553 | D15: 618 | E15: 622 | F15: 652 | G15: 553 | H15: 615 | I15: 193 | J15: 221 | K15: 219 | L15: 207 | M15: 213 | N15: 177 | O15: 602 | P15: 205 | Q15: -0.34 | R15: 1.556 | S15: 1.059894738e-26 | T15: 25.97473726
A16: CFTR | B16: ENSG00000001626.14 | C16: 3 | Q16: -0.29 | R16: 1.786 | S16: NA
A17: ANKIB1 | B17: ENSG00000001629.9 | C17: 4485 | D17: 6218 | E17: 5920 | F17: 6549 | G17: 5905 | H17: 5346 | I17: 7889 | J17: 7443 | K17: 7728 | L17: 8194 | M17: 8502 | N17: 7795 | O17: 5737 | P17: 7925 | Q17: -1.382 | R17: -0.466 | S17: 5.986489989e-11 | T17: 10.22282774
A18: CYP51A1 | B18: ENSG00000001630.15 | C18: 376 | D18: 489 | E18: 653 | F18: 620 | G18: 991 | H18: 502 | I18: 320 | J18: 399 | K18: 347 | L18: 426 | M18: 341 | N18: 355 | O18: 605 | P18: 365 | Q18: -0.604 | R18: 0.728 | S18: 3.162891426e-05 | T18: 4.499915716
A19: KRIT1 | B19: ENSG00000001631.15 | C19: 1106 | D19: 1911 | E19: 1456 | F19: 1627 | G19: 1308 | H19: 1373 | I19: 2621 | J19: 2527 | K19: 2382 | L19: 2655 | M19: 2854 | N19: 2527 | O19: 1464 | P19: 2594 | Q19: -1.773 | R19: -0.826 | S19: 9.589690908e-18 | T19: 17.01819539
A20: RAD52 | B20: ENSG00000002016.17 | C20: 214 | D20: 426 | E20: 308 | F20: 313 | G20: 295 | H20: 307 | I20: 371 | J20: 337 | K20: 328 | L20: 390 | M20: 414 | N20: 368 | O20: 310 | P20: 368 | Q20: -1.186 | R20: -0.247 | S20: 0.250951838 | T20: 0.6004096191
A21: MYH16 | B21: ENSG00000002079.14 | C21: 10 | D21: 9 | E21: 10 | F21: 8 | H21: 13 | I21: 69 | J21: 66 | K21: 61 | L21: 69 | M21: 75 | N21: 36 | O21: 8 | P21: 63 | Q21: -7.299 | R21: -2.868 | S21: 2.91658262e-16 | T21: 15.53512572
A22: BAD | B22: ENSG00000002330.13 | C22: 5248 | D22: 3441 | E22: 3893 | F22: 3517 | G22: 5028 | H22: 4270 | I22: 4195 | J22: 4160 | K22: 4419 | L22: 4357 | M22: 3550 | N22: 5163 | O22: 4233 | P22: 4307 | Q22: -1.018 | R22: -0.025 | S22: 0.886093906 | T22: 0.05252025023
A23: LAP3 | B23: ENSG00000002549.12 | C23: 12966 | D23: 12960 | E23: 13301 | F23: 12305 | G23: 14478 | H23: 13748 | I23: 5938 | J23: 6039 | K23: 6007 | L23: 6012 | M23: 5351 | N23: 6758 | O23: 13293 | P23: 6018 | Q23: -0.453 | R23: 1.143 | S23: 2.145264889e-107 | T23: 106.6685191
A24: CD99 | B24: ENSG00000002586.18 | C24: 17920 | D24: 13739 | E24: 15156 | F24: 12734 | G24: 13487 | H24: 16411 | I24: 6933 | J24: 7097 | K24: 6996 | L24: 6222 | M24: 6388 | N24: 6049 | O24: 14908 | P24: 6614 | Q24: -0.444 | R24: 1.173 | S24: 8.956805651e-42 | T24: 41.04784685
A25: HS3ST1 | B25: ENSG00000002587.9 | C25: 3 | D25: 2 | E25: 2 | I25: 35 | J25: 23 | K25: 51 | L25: 20 | M25: 32 | N25: 32 | O25: 1 | P25: 32 | Q25: -27.497 | R25: -4.781 | S25: 2.035827735e-09 | T25: 8.691258973
A26: AOC1 | B26: ENSG00000002726.20 | M26: 1 | Q26: -1.232 | R26: -0.301 | S26: NA
A27: WNT16 | B27: ENSG00000002745.12 | C27: 3 | D27: 12 | E27: 8 | F27: 12 | G27: 11 | H27: 4 | I27: 2 | J27: 2 | K27: 7 | L27: 4 | M27: 3 | N27: 12 | O27: 8 | P27: 5 | Q27: -0.594 | R27: 0.751 | S27: 0.3726748419 | T27: 0.4286699241
A28: HECW1 | B28: ENSG00000002746.14 | C28: 3 | D28: 12 | E28: 19 | F28: 20 | G28: 11 | H28: 31 | I28: 30 | J28: 30 | K28: 28 | L28: 43 | M28: 47 | N28: 12 | O28: 16 | P28: 32 | Q28: -2.003 | R28: -1.002 | S28: 0.0338445553 | T28: 1.470511188
A29: MAD1L1 | B29: ENSG00000002822.15 | C29: 3021 | D29: 2603 | E29: 3031 | F29: 2993 | G29: 3417 | H29: 3753 | I29: 2369 | J29: 2672 | K29: 2367 | L29: 2934 | M29: 2656 | N29: 2677 | O29: 3136 | P29: 2612 | Q29: -0.833 | R29: 0.263 | S29: 0.004985950212 | T29: 2.302252063
A30: LASP1 | B30: ENSG00000002834.17 | C30: 32046 | D30: 34939 | E30: 35750 | F30: 37858 | G30: 40483 | H30: 40848 | I30: 19811 | J30: 20239 | K30: 19931 | L30: 22438 | M30: 20543 | N30: 20389 | O30: 36987 | P30: 20558 | Q30: -0.556 | R30: 0.847 | S30: 4.051797295e-43 | T30: 42.39235229
A31: SNX11 | B31: ENSG00000002919.14 | C31: 2356 | D31: 2062 | E31: 2076 | F31: 1794 | G31: 2859 | H31: 2063 | I31: 1820 | J31: 1910 | K31: 2217 | L31: 1862 | M31: 1534 | N31: 2442 | O31: 2202 | P31: 1964 | Q31: -0.892 | R31: 0.165 | S31: 0.2994507149 | T31: 0.5236746458
A32: M6PR | B32: ENSG00000003056.7 | C32: 11253 | D32: 12770 | E32: 13268 | F32: 12737 | G32: 13982 | H32: 12328 | I32: 16065 | J32: 16855 | K32: 16776 | L32: 16536 | M32: 15207 | N32: 16554 | O32: 12723 | P32: 16332 | Q32: -1.284 | R32: -0.361 | S32: 4.890644848e-13 | T32: 12.31063387
A33: KLHL13 | B33: ENSG00000003096.14 | C33: 54 | D33: 41 | E33: 31 | F33: 52 | G33: 68 | H33: 42 | I33: 7 | K33: 9 | L33: 2 | M33: 14 | O33: 48 | P33: 5 | Q33: -0.112 | R33: 3.163 | S33: 2.178228944e-12 | T33: 11.66189648
A34: CYP26B1 | B34: ENSG00000003137.8 | C34: 9 | D34: 4 | E34: 19 | F34: 3 | G34: 17 | H34: 18 | L34: 4 | O34: 12 | P34: 1 | Q34: -0.062 | R34: 4 | S34: 1.484595266e-05 | T34: 4.828391929
A35: ICA1 | B35: ENSG00000003147.17 | G35: 2 | Q35: -0.453 | R35: 1.142 | S35: NA
A36: DBNDD1 | B36: ENSG00000003249.13 | C36: 147 | D36: 131 | E36: 169 | F36: 141 | G36: 138 | H36: 129 | I36: 73 | J36: 91 | K36: 91 | L36: 125 | M36: 93 | N36: 74 | O36: 142 | P36: 91 | Q36: -0.642 | R36: 0.64 | S36: 0.001634461574 | T36: 2.786625285
A37: ALS2 | B37: ENSG00000003393.14 | C37: 2215 | D37: 2957 | E37: 2880 | F37: 2916 | G37: 2285 | H37: 2679 | I37: 2231 | J37: 2225 | K37: 2074 | L37: 2161 | M37: 2397 | N37: 1972 | O37: 2655 | P37: 2177 | Q37: -0.82 | R37: 0.287 | S37: 0.002847218894 | T37: 2.545579143
A38: CASP10 | B38: ENSG00000003400.14 | C38: 349 | D38: 305 | E38: 247 | F38: 301 | G38: 274 | H38: 349 | I38: 165 | J38: 158 | K38: 117 | L38: 157 | M38: 148 | N38: 102 | O38: 304 | P38: 141 | Q38: -0.463 | R38: 1.111 | S38: 3.354035176e-18 | T38: 17.47443239
A39: CFLAR | B39: ENSG00000003402.19 | C39: 1562 | D39: 1527 | E39: 1476 | F39: 1541 | G39: 1417 | H39: 1475 | I39: 586 | J39: 625 | K39: 594 | L39: 575 | M39: 787 | N39: 539 | O39: 1500 | P39: 618 | Q39: -0.412 | R39: 1.28 | S39: 2.647887256e-65 | T39: 64.57710051
A40: TFPI | B40: ENSG00000003436.15 | C40: 2229 | D40: 1958 | E40: 2001 | F40: 1998 | G40: 2107 | H40: 2083 | I40: 1511 | J40: 1607 | K40: 1700 | L40: 1692 | M40: 1585 | N40: 1928 | O40: 2063 | P40: 1670 | Q40: -0.81 | R40: 0.304 | S40: 0.000199565186 | T40: 3.699915219
A41: NDUFAF7 | B41: ENSG00000003509.15 | C41: 791 | D41: 707 | E41: 784 | F41: 702 | G41: 870 | H41: 603 | I41: 815 | J41: 886 | K41: 732 | L41: 828 | M41: 808 | N41: 930 | O41: 743 | P41: 833 | Q41: -1.122 | R41: -0.167 | S41: 0.1562434288 | T41: 0.806198239
A42: RBM5 | B42: ENSG00000003756.16 | C42: 2892 | D42: 2843 | E42: 2704 | F42: 2546 | G42: 2105 | H42: 2463 | I42: 2367 | J42: 2382 | K42: 2398 | L42: 2315 | M42: 2846 | N42: 2104 | O42: 2592 | P42: 2402 | Q42: -0.927 | R42: 0.11 | S42: 0.4382719402 | T42: 0.3582563336
A43: MTMR7 | B43: ENSG00000003987.13 | F43: 2 | G43: 3 | J43: 1 | N43: 3 | O43: 1 | P43: 1 | Q43: -0.815 | R43: 0.295 | S43: 0.9203730112 | T43: 0.03603612495
A44: SLC7A2 | B44: ENSG00000003989.17 | C44: 3 | D44: 4 | E44: 6 | F44: 7 | G44: 17 | H44: 9 | I44: 368 | J44: 385 | K44: 371 | L44: 440 | M44: 398 | N44: 376 | O44: 8 | P44: 390 | Q44: -52.002 | R44: -5.701 | S44: 8.093409504e-27 | T44: 26.09186848
A45: ARF5 | B45: ENSG00000004059.10 | C45: 7123 | D45: 5369 | E45: 5510 | F45: 5033 | G45: 7319 | H45: 5895 | I45: 6840 | J45: 6675 | K45: 7630 | L45: 6696 | M45: 5995 | N45: 8315 | O45: 6042 | P45: 7025 | Q45: -1.163 | R45: -0.218 | S45: 0.1183044644 | T45: 0.9269988664
A46: SARM1 | B46: ENSG00000004139.13 | C46: 1458 | D46: 1863 | E46: 1809 | F46: 2254 | G46: 1982 | H46: 2016 | I46: 2059 | J46: 2129 | K46: 1884 | L46: 2249 | M46: 2381 | N46: 1888 | O46: 1897 | P46: 2098 | Q46: -1.106 | R46: -0.146 | S46: 0.252250525 | T46: 0.5981679212
A47: POLDIP2 | B47: ENSG00000004142.11 | C47: 11559 | D47: 10679 | E47: 10711 | F47: 10866 | G47: 14441 | H47: 11690 | I47: 11883 | J47: 11712 | K47: 12759 | L47: 11590 | M47: 10532 | N47: 14123 | O47: 11658 | P47: 12100 | Q47: -1.038 | R47: -0.054 | S47: 0.6185969574 | T47: 0.2085922204
A48: PLXND1 | B48: ENSG00000004399.12 | C48: 644 | D48: 883 | E48: 854 | F48: 946 | G48: 436 | H48: 836 | I48: 13 | J48: 25 | K48: 19 | L48: 18 | M48: 25 | N48: 21 | O48: 766 | P48: 20 | Q48: -0.026 | R48: 5.24 | S48: 1.360525653e-88 | T48: 87.86629327
A49: AK2 | B49: ENSG00000004455.16 | C49: 10776 | D49: 9530 | E49: 9851 | F49: 9046 | G49: 11891 | H49: 10142 | I49: 13591 | J49: 13246 | K49: 15155 | L49: 14103 | M49: 12433 | N49: 16813 | O49: 10206 | P49: 14224 | Q49: -1.394 | R49: -0.479 | S49: 2.301336798e-08 | T49: 7.638019818
A50: CD38 | B50: ENSG00000004468.12 | C50: 1 | E50: 4 | G50: 11 | H50: 5 | I50: 24 | J50: 11 | K50: 16 | L50: 18 | M50: 21 | N50: 16 | O50: 4 | P50: 18 | Q50: -5.1 | R50: -2.351 | S50: 0.0005201625734 | T50: 3.283860899
A51: FKBP4 | B51: ENSG00000004478.7 | C51: 14672 | D51: 13091 | E51: 13908 | F51: 13907 | G51: 17978 | H51: 15340 | I51: 14939 | J51: 15975 | K51: 16109 | L51: 16680 | M51: 14059 | N51: 18723 | O51: 14816 | P51: 16081 | Q51: -1.085 | R51: -0.118 | S51: 0.1633403029 | T51: 0.7869066433
A52: KDM1A | B52: ENSG00000004487.15 | C52: 7884 | D52: 7912 | E52: 8340 | F52: 8574 | G52: 8639 | H52: 8348 | I52: 9550 | J52: 9813 | K52: 9745 | L52: 10196 | M52: 9552 | N52: 10735 | O52: 8283 | P52: 9932 | Q52: -1.199 | R52: -0.262 | S52: 1.738530655e-07 | T52: 6.759817647
A53: RBM6 | B53: ENSG00000004534.14 | C53: 1754 | D53: 2732 | E53: 2379 | F53: 2269 | G53: 1316 | H53: 1907 | I53: 3491 | J53: 3650 | K53: 3241 | L53: 3199 | M53: 4319 | N53: 2579 | O53: 2060 | P53: 3413 | Q53: -1.657 | R53: -0.729 | S53: 5.508170565e-07 | T53: 6.25899262
A54: CAMKK1 | B54: ENSG00000004660.14 | C54: 348 | D54: 402 | E54: 334 | F54: 367 | G54: 329 | H54: 340 | I54: 198 | J54: 158 | K54: 207 | L54: 236 | M54: 176 | N54: 180 | O54: 353 | P54: 192 | Q54: -0.546 | R54: 0.873 | S54: 1.963576439e-11 | T54: 10.70695219
A55: RECQL | B55: ENSG00000004700.15 | C55: 7990 | D55: 7992 | E55: 7824 | F55: 7676 | G55: 7474 | H55: 7085 | I55: 7851 | J55: 7376 | K55: 7898 | L55: 7714 | M55: 7070 | N55: 8074 | O55: 7674 | P55: 7664 | Q55: -0.999 | R55: 0.002 | S55: 0.984707917 | T55: 0.006692570357
A56: VPS50 | B56: ENSG00000004766.15 | C56: 1717 | D56: 1720 | E56: 1604 | F56: 1763 | G56: 1924 | H56: 1637 | I56: 2525 | J56: 2569 | K56: 2678 | L56: 2731 | M56: 2466 | N56: 2790 | O56: 1728 | P56: 2626 | Q56: -1.52 | R56: -0.604 | S56: 9.593301615e-11 | T56: 10.0180319
A57: HSPB6 | B57: ENSG00000004776.12 | C57: 1 | D57: 2 | E57: 2 | G57: 6 | I57: 291 | J57: 322 | K57: 186 | L57: 253 | M57: 373 | N57: 172 | O57: 2 | P57: 266 | Q57: -146.236 | R57: -7.192 | S57: 3.828629379e-49 | T57: 48.41695667
A58: ARHGAP33 | B58: ENSG00000004777.18 | C58: 99 | D58: 235 | E58: 203 | F58: 224 | G58: 85 | H58: 136 | I58: 176 | J58: 264 | K58: 163 | L58: 194 | M58: 392 | N58: 124 | O58: 164 | P58: 219 | Q58: -1.334 | R58: -0.415 | S58: 0.2618358785 | T58: 0.5819708438
A59: NDUFAB1 | B59: ENSG00000004779.9 | C59: 5406 | D59: 3553 | E59: 3544 | F59: 3235 | G59: 4604 | H59: 3960 | I59: 5200 | J59: 5291 | K59: 5034 | L59: 4708 | M59: 4096 | N59: 6285 | O59: 4050 | P59: 5102 | Q59: -1.26 | R59: -0.333 | S59: 0.01650047223 | T59: 1.782503626
A60: PDK4 | B60: ENSG00000004799.7 | C60: 36 | D60: 48 | E60: 68 | F60: 54 | G60: 58 | H60: 40 | I60: 766 | J60: 725 | K60: 807 | L60: 778 | M60: 830 | N60: 862 | O60: 51 | P60: 795 | Q60: -15.878 | R60: -3.989 | S60: 2.471255557e-152 | T60: 151.6070823
A61: SLC22A16 | B61: ENSG00000004809.13 | D61: 2 | H61: 2 | K61: 2 | M61: 2 | N61: 6 | O61: 1 | P61: 2 | Q61: -2.558 | R61: -1.355 | S61: NA
A62: ZMYND10 | B62: ENSG00000004838.13 | C62: 81 | D62: 106 | E62: 89 | F62: 76 | G62: 62 | H62: 126 | I62: 136 | J62: 109 | K62: 202 | L62: 126 | M62: 125 | N62: 162 | O62: 90 | P62: 143 | Q62: -1.596 | R62: -0.674 | S62: 0.0005495425219 | T62: 3.259998698
A63: ABCB5 | B63: ENSG00000004846.16 | C63: 6 | D63: 9 | E63: 3 | F63: 2 | G63: 4 | H63: 9 | J63: 2 | K63: 3 | L63: 1 | M63: 3 | O63: 6 | P63: 2 | Q63: -0.291 | R63: 1.781 | S63: 0.1189288353 | T63: 0.9247128344
A64: SLC25A13 | B64: ENSG00000004864.13 | C64: 2549 | D64: 2995 | E64: 3063 | F64: 3362 | G64: 3497 | H64: 3344 | I64: 4656 | J64: 4857 | K64: 4782 | L64: 5301 | M64: 4644 | N64: 5460 | O64: 3135 | P64: 4950 | Q64: -1.58 | R64: -0.66 | S64: 4.339262843e-23 | T64: 22.36258404
A65: ST7 | B65: ENSG00000004866.20 | C65: 999 | D65: 1215 | E65: 1294 | F65: 1212 | G65: 1271 | H65: 1262 | I65: 2264 | J65: 2161 | K65: 2250 | L65: 2342 | M65: 2014 | N65: 2598 | O65: 1209 | P65: 2272 | Q65: -1.881 | R65: -0.911 | S65: 6.344137189e-28 | T65: 27.19762743
A66: CDC27 | B66: ENSG00000004897.11 | C66: 6537 | D66: 8210 | E66: 8131 | F66: 8679 | G66: 9258 | H66: 7542 | I66: 6698 | J66: 6156 | K66: 6761 | L66: 7081 | M66: 6516 | N66: 7863 | O66: 8060 | P66: 6846 | Q66: -0.85 | R66: 0.235 | S66: 0.004287093382 | T66: =-LOG(S66,10) -> 2.367837057
A67: CALCR | B67: ENSG00000004948.13 | K67: 3 | Q67: -3.469 | R67: -1.795 | S67: NA
A68: HCCS | B68: ENSG00000004961.14 | C68: 3357 | D68: 3056 | E68: 3289 | F68: 2990 | G68: 4370 | H68: 3342 | I68: 6366 | J68: 6657 | K68: 7093 | L68: 6893 | M68: 5652 | N68: 8195 | O68: 3401 | P68: 6809 | Q68: -2.003 | R68: -1.002 | S68: 1.361681636e-22 | T68: 21.86592442
A69: DVL2 | B69: ENSG00000004975.11 | C69: 2475 | D69: 2699 | E69: 2720 | F69: 2716 | G69: 2730 | H69: 3006 | I69: 3376 | J69: 3431 | K69: 3363 | L69: 3554 | M69: 3693 | N69: 3215 | O69: 2724 | P69: 3439 | Q69: -1.263 | R69: -0.336 | S69: 4.455409207e-10 | T69: 9.351112402
A70: PRSS22 | B70: ENSG00000005001.9 | C70: 1 | E70: 3 | K70: 3 | N70: 3 | O70: 1 | P70: 1 | Q70: -1.217 | R70: -0.284 | S70: NA
A71: UPF1 | B71: ENSG00000005007.12 | C71: 8628 | D71: 8741 | E71: 9308 | F71: 10593 | G71: 6682 | H71: 10600 | I71: 11341 | J71: 11838 | K71: 11214 | L71: 12209 | M71: 13125 | N71: 8066 | O71: 9092 | P71: 11299 | Q71: -1.243 | R71: -0.313 | S71: 0.06301799143 | T71: 1.200535443
A72: SKAP2 | B72: ENSG00000005020.12 | C72: 4382 | D72: 4869 | E72: 4844 | F72: 5109 | G72: 5439 | H72: 5174 | I72: 4238 | J72: 3864 | K72: 4013 | L72: 4526 | M72: 4037 | N72: 4452 | O72: 4970 | P72: 4188 | Q72: -0.843 | R72: 0.246 | S72: 1.875608339e-05 | T72: 4.726857845
A73: SLC25A5 | B73: ENSG00000005022.5 | C73: 31465 | D73: 27316 | E73: 28187 | F73: 27666 | G73: 40416 | H73: 32683 | I73: 42258 | J73: 42250 | K73: 47843 | L73: 47942 | M73: 39203 | N73: 60503 | O73: 31289 | P73: 46666 | Q73: -1.492 | R73: -0.577 | S73: 4.902592596e-06 | T73: 5.309574195
A74: MCUB | B74: ENSG00000005059.15 | C74: 2027 | D74: 1440 | E74: 1505 | F74: 1613 | G74: 1848 | H74: 1566 | I74: 1904 | J74: 1684 | K74: 1881 | L74: 1764 | M74: 1728 | N74: 2138 | O74: 1666 | P74: 1850 | Q74: -1.11 | R74: -0.15 | S74: 0.2584149191 | T74: 0.5876824168
A75: HOXA11 | B75: ENSG00000005073.5 | C75: 1783 | D75: 1644 | E75: 1550 | F75: 1619 | G75: 1591 | H75: 1824 | I75: 2395 | J75: 2475 | K75: 2476 | L75: 2452 | M75: 2284 | N75: 2573 | O75: 1668 | P75: 2442 | Q75: -1.463 | R75: -0.549 | S75: 4.86594232e-22 | T75: 21.31283304
A76: POLR2J | B76: ENSG00000005075.15 | C76: 3517 | D76: 2646 | E76: 2702 | F76: 2196 | G76: 2733 | H76: 2599 | I76: 5136 | J76: 4923 | K76: 4878 | L76: 4529 | M76: 4506 | N76: 5056 | O76: 2732 | P76: 4838 | Q76: -1.77 | R76: -0.824 | S76: 5.198880674e-13 | T76: 12.28409015
A77: DHX33 | B77: ENSG00000005100.12 | C77: 808 | D77: 948 | E77: 1002 | F77: 1064 | G77: 933 | H77: 885 | I77: 1858 | J77: 1788 | K77: 1985 | L77: 1971 | M77: 1969 | N77: 1579 | O77: 940 | P77: 1858 | Q77: -1.977 | R77: -0.984 | S77: 1.578392713e-16 | T77: 15.80178493
A78: MEOX1 | B78: ENSG00000005102.12 | E78: 6 | O78: 1 | Q78: -0.144 | R78: 2.798 | S78: NA
A79: THSD7A | B79: ENSG00000005108.15 | C79: 118 | D79: 145 | E79: 177 | F79: 148 | G79: 125 | H79: 156 | I79: 313 | J79: 337 | K79: 224 | L79: 378 | M79: 297 | N79: 205 | O79: 145 | P79: 292 | Q79: -2.021 | R79: -1.015 | S79: 1.572466208e-06 | T79: 5.803418679
A80: LIG3 | B80: ENSG00000005156.11 | C80: 2060 | D80: 2360 | E80: 2324 | F80: 2467 | G80: 2157 | H80: 2488 | I80: 2715 | J80: 2658 | K80: 2828 | L80: 2928 | M80: 2922 | N80: 2652 | O80: 2309 | P80: 2784 | Q80: -1.206 | R80: -0.27 | S80: 0.0004456808089 | T80: 3.350976066
A81: RPAP3 | B81: ENSG00000005175.9 | C81: 3316 | D81: 3475 | E81: 3454 | F81: 3320 | G81: 3473 | H81: 3258 | I81: 3499 | J81: 3329 | K81: 3256 | L81: 3408 | M81: 3147 | N81: 3325 | O81: 3383 | P81: 3327 | Q81: -0.984 | R81: 0.024 | S81: 0.7948312905 | T81: 0.09972504417
A82: ACSM3 | B82: ENSG00000005187.11 | C82: 33 | D82: 34 | E82: 39 | F82: 17 | G82: 36 | H82: 29 | I82: 336 | J82: 388 | K82: 367 | L82: 380 | M82: 346 | N82: 391 | O82: 31 | P82: 368 | Q82: -11.829 | R82: -3.564 | S82: 2.092601465e-63 | T82: 62.67931347
A83: REXO5 | B83: ENSG00000005189.19 | C83: 847 | D83: 910 | E83: 806 | F83: 869 | G83: 910 | H83: 801 | I83: 1059 | J83: 1014 | K83: 915 | L83: 1073 | M83: 1109 | N83: 1256 | O83: 857 | P83: 1071 | Q83: -1.25 | R83: -0.322 | S83: 0.001441322341 | T83: 2.841238882
A84: CIAPIN1 | B84: ENSG00000005194.14 | C84: 4954 | D84: 3951 | E84: 4309 | F84: 4195 | G84: 5457 | H84: 4352 | I84: 4869 | J84: 4968 | K84: 5463 | L84: 4908 | M84: 4122 | N84: 6403 | O84: 4536 | P84: 5122 | Q84: -1.129 | R84: -0.175 | S84: 0.1083655968 | T84: 0.965108573
A85: SPPL2B | B85: ENSG00000005206.16 | C85: 1258 | D85: 1469 | E85: 1400 | F85: 1377 | G85: 1006 | H85: 1197 | I85: 988 | J85: 1199 | K85: 964 | L85: 881 | M85: 1520 | N85: 744 | O85: 1284 | P85: 1049 | Q85: -0.817 | R85: 0.292 | S85: 0.1301848779 | T85: 0.8854394599
A86: FAM214B | B86: ENSG00000005238.19 | C86: 1094 | D86: 1188 | E86: 1118 | F86: 1292 | G86: 1028 | H86: 1232 | I86: 1364 | J86: 1368 | K86: 1227 | L86: 1240 | M86: 1312 | N86: 1079 | O86: 1159 | P86: 1265 | Q86: -1.091 | R86: -0.125 | S86: 0.1416565524 | T86: 0.8487633323
A87: COPZ2 | B87: ENSG00000005243.9 | C87: 2554 | D87: 1972 | E87: 2018 | F87: 2075 | G87: 2338 | H87: 2156 | I87: 1071 | J87: 1100 | K87: 1010 | L87: 984 | M87: 1162 | N87: 1120 | O87: 2186 | P87: 1074 | Q87: -0.491 | R87: 1.025 | S87: 6.943060271e-33 | T87: 32.15844906
A88: PRKAR2B | B88: ENSG00000005249.12 | C88: 104 | D88: 134 | E88: 134 | F88: 173 | G88: 201 | H88: 173 | I88: 77 | J88: 78 | K88: 85 | L88: 90 | M88: 67 | N88: 81 | O88: 153 | P88: 80 | Q88: -0.522 | R88: 0.938 | S88: 1.694419691e-05 | T88: 4.77097901
A89: MSL3 | B89: ENSG00000005302.17 | C89: 2728 | D89: 2429 | E89: 2360 | F89: 2567 | G89: 2900 | H89: 2331 | I89: 3528 | J89: 3350 | K89: 3691 | L89: 3299 | M89: 3115 | N89: 3873 | O89: 2552 | P89: 3476 | Q89: -1.362 | R89: -0.446 | S89: 1.737014425e-07 | T89: 6.760196575
A90: CREBBP | B90: ENSG00000005339.14 | C90: 1672 | D90: 2679 | E90: 2885 | F90: 3806 | G90: 1236 | H90: 3115 | I90: 2285 | J90: 2553 | K90: 1903 | L90: 2599 | M90: 3620 | N90: 1297 | O90: 2566 | P90: 2376 | Q90: -0.926 | R90: 0.111 | S90: 0.7801936287 | T90: 0.1077976006
A91: TSPOAP1 | B91: ENSG00000005379.15 | C91: 30 | D91: 57 | E91: 33 | F91: 30 | G91: 17 | H91: 24 | K91: 10 | M91: 5 | O91: 32 | P91: 2 | Q91: -0.077 | R91: 3.692 | S91: 2.337557772e-08 | T91: 7.631237647
A92: MPO | B92: ENSG00000005381.7 | C92: 3 | Q92: -0.29 | R92: 1.786 | S92: NA
A93: PON1 | B93: ENSG00000005421.8 | C93: 1 | G93: 2 | Q93: -0.244 | R93: 2.037 | S93: NA
A94: GCFC2 | B94: ENSG00000005436.13 | C94: 1397 | D94: 1377 | E94: 1391 | F94: 1370 | G94: 1657 | H94: 1308 | I94: 1340 | J94: 1313 | K94: 1336 | L94: 1371 | M94: 1326 | N94: 1454 | O94: 1417 | P94: 1357 | Q94: -0.958 | R94: 0.061 | S94: 0.5016424161 | T94: 0.2996057491
A95: WDR54 | B95: ENSG00000005448.16 | C95: 2908 | D95: 2577 | E95: 2753 | F95: 2564 | G95: 3432 | H95: 3031 | I95: 2703 | J95: 2728 | K95: 3024 | L95: 2874 | M95: 2563 | N95: 3619 | O95: 2878 | P95: 2918 | Q95: -1.014 | R95: -0.021 | S95: 0.8885431913 | T95: 0.05132145667
A96: CROT | B96: ENSG00000005469.11 | C96: 1244 | D96: 1476 | E96: 1386 | F96: 1322 | G96: 1407 | H96: 1557 | I96: 2109 | J96: 2023 | K96: 2080 | L96: 2163 | M96: 2220 | N96: 2083 | O96: 1399 | P96: 2113 | Q96: -1.512 | R96: -0.596 | S96: 1.541919192e-20 | T96: 19.81193839
A97: ABCB4 | B97: ENSG00000005471.15 | C97: 1 | F97: 2 | M97: 3 | N97: 7 | P97: 2 | Q97: -3.226 | R97: -1.69 | S97: 0.5801074466 | T97: 0.2364915597
A98: KMT2E | B98: ENSG00000005483.20 | C98: 1326 | D98: 2406 | E98: 2455 | F98: 2956 | G98: 1437 | H98: 2157 | I98: 2249 | J98: 2336 | K98: 2134 | L98: 2373 | M98: 3144 | N98: 1834 | O98: 2123 | P98: 2345 | Q98: -1.105 | R98: -0.144 | S98: 0.5366377327 | T98: 0.270318794
A99: RHBDD2 | B99: ENSG00000005486.16 | C99: 3696 | D99: 3372 | E99: 3538 | F99: 3869 | G99: 5010 | H99: 4239 | I99: 4569 | J99: 4480 | K99: 5081 | L99: 4917 | M99: 4467 | N99: 5580 | O99: 3954 | P99: 4849 | Q99: -1.227 | R99: -0.295 | S99: 0.002329545516 | T99: 2.6327288
A100: SOX8 | B100: ENSG00000005513.9 | C100: 1 | Q100: -0.453 | R100: 1.142 | S100: NA
A101: IBTK | B101: ENSG00000005700.14 | C101: 3786 | D101: 5303 | E101: 5556 | F101: 5221 | G101: 4976 | H101: 4546 | I101: 3088 | J101: 2937 | K101: 2911 | L101: 3202 | M101: 3170 | N101: 3038 | O101: 4898 | P101: 3058 | Q101: -0.625 | R101: 0.679 | S101: 2.261854664e-19 | T101: 18.6455353
A102: ZNF195 | B102: ENSG00000005801.16 | C102: 599 | D102: 727 | E102: 631 | F102: 554 | G102: 637 | H102: 524 | I102: 773 | J102: 800 | K102: 759 | L102: 764 | M102: 764 | N102: 804 | O102: 612 | P102: 777 | Q102: -1.271 | R102: -0.346 | S102: 0.0003335913225 | T102: 3.476785255
A103: MYCBP2 | B103: ENSG00000005810.17 | C103: 1264 | D103: 1840 | E103: 1785 | F103: 2413 | G103: 1036 | H103: 1970 | I103: 3350 | J103: 2809 | K103: 3085 | L103: 4220 | M103: 4893 | N103: 1899 | O103: 1718 | P103: 3376 | Q103: -1.965 | R103: -0.974 | S103: 0.0006353884712 | T103: 3.196960669
A104: FBXL3 | B104: ENSG00000005812.10 | C104: 1401 | D104: 1309 | E104: 1207 | F104: 1259 | G104: 1504 | H104: 1139 | I104: 3187 | J104: 2870 | K104: 3431 | L104: 3447 | M104: 3070 | N104: 4088 | O104: 1303 | P104: 3349 | Q104: -2.571 | R104: -1.362 | S104: 4.127899231e-52 | T104: 51.38427091
A105: ITGAL | B105: ENSG00000005844.17 | I105: 2 | J105: 6 | P105: 1 | Q105: -7.533 | R105: -2.913 | S105: NA
A106: PDK2 | B106: ENSG00000005882.11 | C106: 665 | D106: 692 | E106: 751 | F106: 774 | G106: 835 | H106: 764 | I106: 1966 | J106: 1912 | K106: 2046 | L106: 2152 | M106: 1928 | N106: 2363 | O106: 747 | P106: 2061 | Q106: -2.762 | R106: -1.466 | S106: 1.490159332e-77 | T106: 76.82676729
A107: ITGA3 | B107: ENSG00000005884.17 | C107: 40606 | D107: 46240 | E107: 47161 | F107: 56036 | G107: 40684 | H107: 54029 | I107: 40670 | J107: 40362 | K107: 40028 | L107: 43719 | M107: 45733 | N107: 33530 | O107: 47459 | P107: 40674 | Q107: -0.857 | R107: 0.223 | S107: 0.1796550969 | T107: 0.7455604572
A108: ZFX | B108: ENSG00000005889.15 | C108: 1285 | D108: 1565 | E108: 1773 | F108: 1613 | G108: 1606 | H108: 1356 | I108: 1961 | J108: 2118 | K108: 1959 | L108: 2182 | M108: 2412 | N108: 2123 | O108: 1533 | P108: 2126 | Q108: -1.387 | R108: -0.472 | S108: 1.798469735e-05 | T108: 4.745096866
A109: LAMP2 | B109: ENSG00000005893.15 | C109: 22069 | D109: 21827 | E109: 23173 | F109: 22855 | G109: 25853 | H109: 23483 | I109: 15288 | J109: 14355 | K109: 16048 | L109: 16153 | M109: 14994 | N109: 16912 | O109: 23210 | P109: 15625 | Q109: -0.673 | R109: 0.571 | S109: 1.030667255e-25 | T109: 24.98688152
A110: ITGA2B | B110: ENSG00000005961.17 | C110: 10 | D110: 27 | E110: 21 | F110: 13 | G110: 17 | H110: 35 | J110: 2 | K110: 5 | L110: 1 | M110: 9 | N110: 4 | O110: 20 | P110: 4 | Q110: -0.18 | R110: 2.471 | S110: 1.121808948e-05 | T110: 4.9500811
A111: GDE1 | B111: ENSG00000006007.11 | C111: 5312 | D111: 4780 | E111: 4973 | F111: 4929 | G111: 5975 | H111: 5172 | I111: 8837 | J111: 8305 | K111: 9844 | L111: 9048 | M111: 7686 | N111: 10329 | O111: 5190 | P111: 9008 | Q111: -1.736 | R111: -0.796 | S111: 2.376673609e-25 | T111: 24.62403046
A112: REX1BD | B112: ENSG00000006015.17 | C112: 1751 | D112: 1084 | E112: 1130 | F112: 1179 | G112: 1589 | H112: 1223 | I112: 846 | J112: 969 | K112: 927 | L112: 922 | M112: 1076 | N112: 1021 | O112: 1326 | P112: 960 | Q112: -0.724 | R112: 0.465 | S112: 0.001000030063 | T112: 2.999986944
A113: CRLF1 | B113: ENSG00000006016.10 | D113: 2 | G113: 2 | H113: 2 | I113: 13 | J113: 2 | K113: 14 | L113: 4 | M113: 2 | N113: 3 | O113: 1 | P113: 6 | Q113: -6.582 | R113: -2.719 | S113: 0.02951335912 | T113: 1.529981358
A114: OSBPL7 | B114: ENSG00000006025.11 | C114: 19 | D114: 14 | E114: 29 | F114: 10 | G114: 13 | H114: 9 | I114: 201 | J114: 214 | K114: 194 | L114: 258 | M114: 290 | N114: 140 | O114: 16 | P114: 216 | Q114: -13.766 | R114: -3.783 | S114: 2.190651122e-11 | T114: 10.65942678
A115: TMEM98 | B115: ENSG00000006042.11 | C115: 2078 | D115: 1850 | E115: 1701 | F115: 1690 | G115: 2321 | H115: 1845 | O115: 1914 | Q115: 0 | R115: 13.667 | S115: 2.666303066e-58 | T115: 57.57409049
A116: YBX2 | B116: ENSG00000006047.12 | C116: 3 | D116: 2 | F116: 13 | H116: 2 | I116: 41 | J116: 21 | K116: 24 | L116: 53 | M116: 40 | N116: 41 | O116: 3 | P116: 37 | Q116: -10.741 | R116: -3.425 | S116: 4.066203853e-06 | T116: 5.390810852
A117: MAP3K14 | B117: ENSG00000006062.14 | C117: 1202 | D117: 1687 | E117: 1513 | F117: 1657 | G117: 611 | H117: 1301 | I117: 2778 | J117: 3027 | K117: 2676 | L117: 2423 | M117: 3076 | N117: 1801 | O117: 1328 | P117: 2630 | Q117: -1.979 | R117: -0.985 | S117: 2.838819976e-07 | T117: 6.546862147
A118: ABCC8 | B118: ENSG00000006071.12 | H118: 2 | J118: 1 | N118: 3 | P118: 1 | Q118: -2.007 | R118: -1.005 | S118: NA
A119: TMEM132A | B119: ENSG00000006118.14 | C119: 4174 | D119: 3515 | E119: 3530 | F119: 4101 | G119: 2667 | H119: 4151 | I119: 1605 | J119: 1616 | K119: 1391 | L119: 1432 | M119: 1805 | N119: 1072 | O119: 3690 | P119: 1487 | Q119: -0.403 | R119: 1.312 | S119: 4.018851905e-13 | T119: 12.395898
A120: AP2B1 | B120: ENSG00000006125.17 | C120: 11290 | D120: 14244 | E120: 13893 | F120: 15882 | G120: 15555 | H120: 16288 | I120: 15905 | J120: 15449 | K120: 16522 | L120: 19990 | M120: 17030 | N120: 17413 | O120: 14525 | P120: 17052 | Q120: -1.174 | R120: -0.232 | S120: 0.007473018875 | T120: 2.126503921
A121: ZNF263 | B121: ENSG00000006194.9 | C121: 1629 | D121: 1661 | E121: 1607 | F121: 1875 | G121: 1494 | H121: 1734 | I121: 2549 | J121: 2364 | K121: 2592 | L121: 2183 | M121: 2255 | N121: 1925 | O121: 1667 | P121: 2311 | Q121: -1.386 | R121: -0.471 | S121: 1.3813926e-08 | T121: 7.859682875
A122: CX3CL1 | B122: ENSG00000006210.6 | I122: 4 | J122: 8 | K122: 2 | L122: 4 | M122: 2 | N122: 1 | P122: 4 | Q122: -19.588 | R122: -4.292 | S122: 0.005972675598 | T122: 2.223831073
A123: SPATA20 | B123: ENSG00000006282.20 | C123: 4244 | D123: 4261 | E123: 4294 | F123: 4303 | G123: 4298 | H123: 4512 | I123: 2141 | J123: 2298 | K123: 2262 | L123: 2237 | M123: 2328 | N123: 2208 | O123: 4319 | P123: 2246 | Q123: -0.52 | R123: 0.944 | S123: 6.572224789e-61 | T123: 60.18228759
A124: CACNA1G | B124: ENSG00000006283.17 | C124: 38 | D124: 67 | E124: 92 | F124: 102 | G124: 75 | H124: 95 | I124: 22 | J124: 27 | K124: 14 | L124: 31 | M124: 8 | N124: 23 | O124: 78 | P124: 21 | Q124: -0.268 | R124: 1.899 | S124: 6.2194145e-09 | T124: 8.206250498
A125: TNFRSF12A | B125: ENSG00000006327.13 | C125: 24659 | D125: 20001 | E125: 20666 | F125: 19948 | G125: 23918 | H125: 21661 | I125: 16150 | J125: 16653 | K125: 15591 | L125: 14714 | M125: 15513 | N125: 17015 | O125: 21809 | P125: 15939 | Q125: -0.731 | R125: 0.452 | S125: 2.483285129e-07 | T125: 6.604973412
A126: DLX6 | B126: ENSG00000006377.10 | D126: 2 | E126: 2 | F126: 5 | H126: 2 | O126: 2 | Q126: -0.083 | R126: 3.599 | S126: NA
A127: MAP3K9 | B127: ENSG00000006432.15 | C127: 186 | D127: 221 | E127: 241 | F127: 234 | G127: 216 | H127: 260 | I127: 951 | J127: 1053 | K127: 996 | L127: 953 | M127: 1067 | N127: 568 | O127: 226 | P127: 931 | Q127: -4.115 | R127: -2.041 | S127: 3.202380452e-40 | T127: 39.49452707
A128: RALA | B128: ENSG00000006451.7 | C128: 4293 | D128: 3598 | E128: 3946 | F128: 3841 | G128: 4577 | H128: 3898 | I128: 4105 | J128: 3996 | K128: 4323 | L128: 4176 | M128: 3887 | N128: 5097 | O128: 4026 | P128: 4264 | Q128: -1.059 | R128: -0.083 | S128: 0.4280468098 | T128: 0.3685087354
A129: BAIAP2L1 | B129: ENSG00000006453.13 | C129: 1946 | D129: 2077 | E129: 1993 | F129: 2119 | G129: 1836 | H129: 2155 | I129: 2263 | J129: 2180 | K129: 2089 | L129: 2135 | M129: 2521 | N129: 1915 | O129: 2021 | P129: 2184 | Q129: -1.08 | R129: -0.112 | S129: 0.2554291072 | T129: 0.5927296146
A130: KDM7A | B130: ENSG00000006459.10 | C130: 151 | D130: 175 | E130: 150 | F130: 202 | G130: 244 | H130: 171 | I130: 170 | J130: 133 | K130: 134 | L130: 223 | M130: 179 | N130: 170 | O130: 182 | P130: 168 | Q130: -0.93 | R130: 0.105 | S130: 0.5357368277 | T130: =-LOG(S130,10) -> 0.2710484982
A131: ETV1 | B131: ENSG00000006468.13 | C131: 3057 | D131: 3574 | E131: 3662 | F131: 3643 | G131: 4134 | H131: 3469 | I131: 3687 | J131: 3513 | K131: 3915 | L131: 4500 | M131: 4333 | N131: 4536 | O131: 3590 | P131: 4081 | Q131: -1.137 | R131: -0.186 | S131: 0.04873039081 | T131: 1.312200106
A132: AGK | B132: ENSG00000006530.15 | C132: 1547 | D132: 1691 | E132: 1812 | F132: 1651 | G132: 1992 | H132: 1680 | I132: 3431 | J132: 3161 | K132: 3388 | L132: 3521 | M132: 3150 | N132: 4201 | O132: 1729 | P132: 3475 | Q132: -2.012 | R132: -1.008 | S132: 8.970482215e-45 | T132: 44.04718421
A133: ALDH3B1 | B133: ENSG00000006534.15 | C133: 4774 | D133: 4571 | E133: 4867 | F133: 4909 | G133: 5866 | H133: 5827 | I133: 2810 | J133: 2716 | K133: 2811 | L133: 3096 | M133: 2565 | N133: 2747 | O133: 5136 | P133: 2791 | Q133: -0.544 | R133: 0.879 | S133: 1.853683491e-32 | T133: 31.73196442
A134: PHTF2 | B134: ENSG00000006576.16 | C134: 2607 | D134: 2811 | E134: 2612 | F134: 2844 | G134: 3105 | H134: 2482 | I134: 3097 | J134: 2752 | K134: 3030 | L134: 2860 | M134: 2853 | N134: 3427 | O134: 2744 | P134: 3003 | Q134: -1.095 | R134: -0.131 | S134: 0.1437952251 | T134: 0.8422555351
A135: CCL26 | B135: ENSG00000006606.8 | C135: 125 | D135: 94 | E135: 78 | F135: 86 | G135: 126 | H135: 126 | I135: 78 | J135: 88 | K135: 96 | L135: 118 | M135: 134 | N135: 102 | O135: 106 | P135: 103 | Q135: -0.973 | R135: 0.04 | S135: 0.8618263593 | T135: 0.06458022697
A136: FARP2 | B136: ENSG00000006607.13 | C136: 1029 | D136: 1378 | E136: 1366 | F136: 1460 | G136: 1292 | H136: 1360 | I136: 856 | J136: 919 | K136: 691 | L136: 837 | M136: 840 | N136: 722 | O136: 1314 | P136: 811 | Q136: -0.617 | R136: 0.696 | S136: 6.280663326e-12 | T136: 11.20199449
A137: USH1C | B137: ENSG00000006611.15 | G137: 1 | L137: 1 | Q137: -1.232 | R137: -0.301 | S137: NA
A138: GGCT | B138: ENSG00000006625.17 | C138: 1936 | D138: 1464 | E138: 1415 | F138: 1276 | G138: 1281 | H138: 1386 | I138: 1706 | J138: 1565 | K138: 1457 | L138: 1367 | M138: 1364 | N138: 1373 | O138: 1460 | P138: 1472 | Q138: -1.007 | R138: -0.011 | S138: 0.942724074 | T138: 0.02561540234
A139: DBF4 | B139: ENSG00000006634.7 | C139: 2471 | D139: 2717 | E139: 2656 | F139: 2536 | G139: 3061 | H139: 2639 | I139: 3821 | J139: 3753 | K139: 4110 | L139: 4153 | M139: 3618 | N139: 4805 | O139: 2680 | P139: 4043 | Q139: -1.509 | R139: -0.594 | S139: 6.185765382e-11 | T139: 10.20860656
A140: TBXA2R | B140: ENSG00000006638.11 | C140: 103 | D140: 119 | E140: 124 | F140: 133 | G140: 139 | H140: 124 | I140: 107 | J140: 139 | K140: 138 | L140: 144 | M140: 209 | N140: 121 | O140: 124 | P140: 143 | Q140: -1.162 | R140: -0.217 | S140: 0.3311344465 | T140: 0.4799956391
A141: IFRD1 | B141: ENSG00000006652.13 | C141: 4756 | D141: 4720 | E141: 4534 | F141: 4059 | G141: 4176 | H141: 4216 | I141: 2855 | J141: 2919 | K141: 2669 | L141: 2430 | M141: 2765 | N141: 2575 | O141: 4410 | P141: 2702 | Q141: -0.612 | R141: 0.707 | S141: 1.230933319e-27 | T141: 26.90976547
A142: COX10 | B142: ENSG00000006695.10 | C142: 401 | D142: 541 | E142: 655 | F142: 533 | G142: 511 | H142: 474 | I142: 680 | J142: 820 | K142: 766 | L142: 807 | M142: 667 | N142: 700 | O142: 519 | P142: 740 | Q142: -1.428 | R142: -0.514 | S142: 1.44899131e-06 | T142: 5.838934219
A143: GTF2IRD1 | B143: ENSG00000006704.10 | C143: 2127 | D143: 2824 | E143: 2788 | F143: 2850 | G143: 2391 | H143: 3037 | I143: 2813 | J143: 2882 | K143: 2678 | L143: 2787 | M143: 3052 | N143: 2373 | O143: 2670 | P143: 2764 | Q143: -1.035 | R143: -0.05 | S143: 0.6856390508 | T143: 0.163904455
A144: PAF1 | B144: ENSG00000006712.14 | C144: 3046 | D144: 2906 | E144: 3379 | F144: 3081 | G144: 3478 | H144: 3694 | I144: 4563 | J144: 4810 | K144: 4352 | L144: 4937 | M144: 4729 | N144: 5086 | O144: 3264 | P144: 4746 | Q144: -1.455 | R144: -0.541 | S144: 3.92275618e-12 | T144: 11.40640868
A145: VPS41 | B145: ENSG00000006715.15 | C145: 3646 | D145: 4525 | E145: 4338 | F145: 4498 | G145: 3847 | H145: 4126 | I145: 3906 | J145: 3926 | K145: 3629 | L145: 3610 | M145: 4154 | N145: 3503 | O145: 4163 | P145: 3788 | Q145: -0.91 | R145: 0.136 | S145: 0.03644948172 | T145: 1.438308643
A146: ARHGAP44 | B146: ENSG00000006740.16 | C146: 361 | D146: 522 | E146: 500 | F146: 565 | G146: 553 | H146: 444 | I146: 422 | J146: 421 | K146: 397 | L146: 429 | M146: 389 | N146: 355 | O146: 491 | P146: 402 | Q146: -0.82 | R146: 0.286 | S146: 0.02369263818 | T146: 1.625386578
A147: ELAC2 | B147: ENSG00000006744.18 | C147: 2796 | D147: 2981 | E147: 3110 | F147: 3377 | G147: 3443 | H147: 3409 | I147: 6650 | J147: 6555 | K147: 6710 | L147: 7245 | M147: 6700 | N147: 7189 | O147: 3186 | P147: 6842 | Q147: -2.148 | R147: -1.103 | S147: 1.015912935e-43 | T147: 42.99314351
A148: SCIN | B148: ENSG00000006747.14 | C148: 31 | D148: 14 | E148: 23 | F148: 18 | G148: 24 | H148: 16 | I148: 4 | J148: 15 | K148: 3 | L148: 2 | M148: 5 | N148: 3 | O148: 21 | P148: 5 | Q148: -0.245 | R148: 2.031 | S148: 0.0033035274 | T148: 2.481022087
A149: ARSD | B149: ENSG00000006756.15 | C149: 858 | D149: 883 | E149: 937 | F149: 1042 | G149: 919 | H149: 1095 | I149: 1503 | J149: 1327 | K149: 1414 | L149: 1443 | M149: 1593 | N149: 1346 | O149: 956 | P149: 1438 | Q149: -1.505 | R149: -0.589 | S149: 1.683704863e-10 | T149: 9.773734034
A150: PNPLA4 | B150: ENSG00000006757.11 | C150: 971 | D150: 930 | E150: 1040 | F150: 961 | G150: 1291 | H150: 1016 | I150: 2593 | J150: 2477 | K150: 2769 | L150: 2721 | M150: 2222 | N150: 3442 | O150: 1035 | P150: 2704 | Q150: -2.614 | R150: -1.386 | S150: 2.479410277e-31 | T150: 30.6056516
A151: MYH13 | B151: ENSG00000006788.13 | C151: 2 | I151: 17 | J151: 6 | K151: 14 | L151: 16 | M151: 14 | N151: 14 | P151: 14 | Q151: -30.39 | R151: -4.926 | S151: 9.434089319e-06 | T151: 5.025300016
A152: ADIPOR2 | B152: ENSG00000006831.9 | C152: 4735 | D152: 5419 | E152: 5525 | F152: 5703 | G152: 5393 | H152: 5414 | I152: 7289 | J152: 6948 | K152: 6859 | L152: 6896 | M152: 7083 | N152: 7218 | O152: 5365 | P152: 7049 | Q152: -1.314 | R152: -0.394 | S152: 3.438172036e-14 | T152: 13.4636724
A153: CDKL3 | B153: ENSG00000006837.11 | C153: 38 | D153: 33 | E153: 8 | F153: 26 | G153: 31 | H153: 17 | I153: 25 | J153: 25 | K153: 33 | L153: 28 | M153: 41 | N153: 32 | O153: 26 | P153: 31 | Q153: -1.193 | R153: -0.255 | S153: 0.5578862799 | T153: 0.2534543191
A154: UPP2 | B154: ENSG00000007001.12 | D154: 8 | E154: 2 | I154: 3 | K154: 2 | M154: 3 | N154: 4 | O154: 2 | P154: 2 | Q154: -1.127 | R154: -0.172 | S154: 0.941005472 | T154: 0.02640785112
A155: PRSS21 | B155: ENSG00000007038.10 | C155: 7 | D155: 16 | E155: 23 | F155: 12 | G155: 15 | H155: 14 | O155: 14 | Q155: -0.01 | R155: 6.609 | S155: 2.923502196e-09 | T155: 8.534096576
A156: MARK4 | B156: ENSG00000007047.14 | C156: 665 | D156: 876 | E156: 909 | F156: 1082 | G156: 727 | H156: 1103 | I156: 693 | J156: 782 | K156: 655 | L156: 702 | M156: 856 | N156: 633 | O156: 894 | P156: 720 | Q156: -0.806 | R156: 0.312 | S156: 0.05576226216 | T156: 1.253659616
A157: PROM1 | B157: ENSG00000007062.11 | C157: 16 | D157: 27 | E157: 10 | F157: 7 | G157: 38 | H157: 6 | I157: 11 | J157: 14 | K157: 4 | L157: 15 | M157: 12 | N157: 7 | O157: 17 | P157: 10 | Q157: -0.612 | R157: 0.709 | S157: 0.2736475881 | T157: 0.5628083753
A158: CCDC124 | B158: ENSG00000007080.10 | C158: 7290 | D158: 5863 | E158: 7401 | F158: 6599 | G158: 7305 | H158: 8285 | I158: 10052 | J158: 10843 | K158: 10554 | L158: 11047 | M158: 9650 | N158: 10140 | O158: 7124 | P158: 10381 | Q158: -1.457 | R158: -0.543 | S158: 1.207373823e-08 | T158: 7.918158244
A159: PAFAH1B1 | B159: ENSG00000007168.12 | C159: 4831 | D159: 4989 | E159: 5255 | F159: 5188 | G159: 5502 | H159: 5049 | I159: 7982 | J159: 7925 | K159: 7675 | L159: 8238 | M159: 8112 | N159: 7822 | O159: 5136 | P159: 7959 | Q159: -1.55 | R159: -0.633 | S159: 2.005327748e-47 | T159: 46.69781464
A160: NOS2 | B160: ENSG00000007171.16 | D160: 2 | E160: 2 | G160: 6 | K160: 7 | O160: 2 | P160: 1 | Q160: -0.682 | R160: 0.552 | S160: 0.8613588105 | T160: 0.0648158997
A161: DNAH9 | B161: ENSG00000007174.17 | J161: 1 | M161: 1 | Q161: -1.719 | R161: -0.782 | S161: NA
A162: KIAA0100 | B162: ENSG00000007202.14 | C162: 11039 | D162: 13905 | E162: 14352 | F162: 16568 | G162: 16553 | H162: 15482 | I162: 17312 | J162: 16638 | K162: 18360 | L162: 19956 | M162: 17651 | N162: 18571 | O162: 14650 | P162: 18081 | Q162: -1.234 | R162: -0.304 | S162: 6.963859026e-05 | T162: 4.157150029
A163: SLC13A2 | B163: ENSG00000007216.14 | N163: 1 | Q163: -1.719 | R163: -0.782 | S163: NA
A164: GAS7 | B164: ENSG00000007237.18 | J164: 6 | L164: 2 | N164: 3 | P164: 2 | Q164: -11.055 | R164: -3.467 | S164: NA
A165: TRAPPC6A | B165: ENSG00000007255.10 | C165: 311 | D165: 291 | E165: 271 | F165: 190 | G165: 307 | H165: 298 | I165: 51 | J165: 51 | K165: 56 | L165: 56 | M165: 34 | N165: 96 | O165: 278 | P165: 57 | Q165: -0.207 | R165: 2.27 | S165: 4.562472331e-32 | T165: 31.34079976
A166: MATK | B166: ENSG00000007264.14 | D166: 1 | Q166: -0.632 | R166: 0.661 | S166: NA
A167: ST7L | B167: ENSG00000007341.18 | C167: 683 | D167: 678 | E167: 696 | F167: 642 | G167: 696 | H167: 724 | I167: 761 | J167: 909 | K167: 804 | L167: 805 | M167: 791 | N167: 939 | O167: 686 | P167: 835 | Q167: -1.216 | R167: -0.282 | S167: 0.0006466338596 | T167: 3.189341558
A168: TKTL1 | B168: ENSG00000007350.16 | C168: 7 | D168: 7 | E168: 8 | F168: 10 | G168: 9 | H168: 2 | I168: 4 | J168: 2 | K168: 7 | L168: 4 | O168: 7 | P168: 3 | Q168: -0.37 | R168: 1.434 | S168: 0.0382772641 | T168: 1.417059111
A169: PAX6 | B169: ENSG00000007372.21 | C169: 418 | D169: 410 | E169: 435 | F169: 486 | G169: 485 | H169: 426 | I169: 2 | J169: 2 | K169: 5 | N169: 1 | O169: 443 | P169: 2 | Q169: -0.004 | R169: 8.127 | S169: 8.521739317e-79 | T169: 78.06947176
A170: RPUSD1 | B170: ENSG00000007376.7 | C170: 4719 | D170: 3392 | E170: 3537 | F170: 3825 | G170: 3965 | H170: 3965 | I170: 4269 | J170: 4787 | K170: 4613 | L170: 4388 | M170: 4175 | N170: 4212 | O170: 3900 | P170: 4407 | Q170: -1.13 | R170: -0.176 | S170: 0.1068856514 | T170: 0.9710805915
A171: RHBDF1 | B171: ENSG00000007384.15 | C171: 1070 | D171: 1253 | E171: 1275 | F171: 1244 | G171: 908 | H171: 1148 | I171: 424 | J171: 444 | K171: 402 | L171: 395 | M171: 537 | N171: 306 | O171: 1150 | P171: 418 | Q171: -0.363 | R171: 1.46 | S171: 2.364132512e-20 | T171: 19.62632818
A172: LUC7L | B172: ENSG00000007392.16 | C172: 2051 | D172: 1896 | E172: 1715 | F172: 1654 | G172: 1848 | H172: 1792 | I172: 2905 | J172: 2962 | K172: 2834 | L172: 2911 | M172: 2959 | N172: 3356 | O172: 1826 | P172: 2988 | Q172: -1.636 | R172: -0.71 | S172: 5.924528118e-12 | T172: 11.22734623
A173: BAIAP3 | B173: ENSG00000007516.13 | D173: 2 | E173: 4 | F173: 7 | G173: 17 | H173: 5 | I173: 14 | J173: 4 | K173: 2 | L173: 9 | M173: 8 | N173: 4 | O173: 6 | P173: 7 | Q173: -1.174 | R173: -0.232 | S173: 0.8269904072 | T173: 0.0824995281
A174: TSR3 | B174: ENSG00000007520.3 | C174: 6825 | D174: 4385 | E174: 5032 | F174: 5110 | G174: 5098 | H174: 5120 | I174: 5019 | J174: 5240 | K174: 5039 | L174: 4588 | M174: 4318 | N174: 4480 | O174: 5262 | P174: 4781 | Q174: -0.908 | R174: 0.139 | S174: 0.1932629566 | T174: 0.7138513809
A175: PIGQ | B175: ENSG00000007541.16 | C175: 2419 | D175: 2024 | E175: 1980 | F175: 1912 | G175: 1777 | H175: 2177 | I175: 1375 | J175: 1667 | K175: 1581 | L175: 1441 | M175: 1698 | N175: 1382 | O175: 2048 | P175: 1524 | Q175: -0.744 | R175: 0.427 | S175: 0.0003000081668 | T175: 3.522866923
A176: CRAMP1 | B176: ENSG00000007545.15 | C176: 599 | D176: 674 | E176: 753 | F176: 799 | G176: 449 | H176: 767 | I176: 611 | J176: 627 | K176: 630 | L176: 673 | M176: 761 | N176: 441 | O176: 674 | P176: 624 | Q176: -0.926 | R176: 0.11 | S176: 0.5780611282 | T176: 0.2380262338
A177: TEAD3 | B177: ENSG00000007866.19 | C177: 1499 | D177: 1697 | E177: 1719 | F177: 1759 | G177: 1371 | H177: 1966 | I177: 2004 | J177: 2123 | K177: 1887 | L177: 1972 | M177: 2255 | N177: 1769 | O177: 1668 | P177: 2002 | Q177: -1.2 | R177: -0.263 | S177: 0.01976640497 | T177: 1.704072311
A178: DNAJC11 | B178: ENSG00000007923.15 | C178: 4370 | D178: 5122 | E178: 5148 | F178: 5565 | G178: 4670 | H178: 5556 | I178: 4220 | J178: 4360 | K178: 4302 | L178: 4563 | M178: 4754 | N178: 4250 | O178: 5072 | P178: 4408 | Q178: -0.869 | R178: 0.202 | S178: 0.05230681078 | T178: 1.281441759
A179: FMO3 | B179: ENSG00000007933.12 | C179: 13 | E179: 6 | F179: 2 | G179: 6 | H179: 5 | I179: 369 | J179: 375 | K179: 370 | L179: 400 | M179: 302 | N179: 418 | O179: 5 | P179: 372 | Q179: -65.825 | R179: -6.041 | S179: 1.06832085e-95 | T179: 94.9712983
A180: MYLIP | B180: ENSG00000007944.14 | C180: 110 | D180: 164 | E180: 119 | F180: 153 | G180: 139 | H180: 113 | I180: 587 | J180: 700 | K180: 571 | L180: 529 | M180: 612 | N180: 480 | O180: 133 | P180: 580 | Q180: -4.352 | R180: -2.122 | S180: 2.560353631e-45 | T180: 44.59170005
A181: NOX1 | B181: ENSG00000007952.17 | E181: 2 | Q181: -0.453 | R181: 1.142 | S181: NA
A182: E2F2 | B182: ENSG00000007968.6 | C182: 527 | D182: 571 | E182: 601 | F182: 592 | G182: 481 | H182: 569 | I182: 938 | J182: 937 | K182: 872 | L182: 938 | M182: 1112 | N182: 827 | O182: 557 | P182: 937 | Q182: -1.682 | R182: -0.751 | S182: 2.709600507e-08 | T182: 7.567094735
A183: PSMB1 | B183: ENSG00000008018.8 | C183: 14952 | D183: 10164 | E183: 10777 | F183: 9177 | G183: 13996 | H183: 10519 | I183: 15454 | J183: 15381 | K183: 17491 | L183: 15354 | M183: 12177 | N183: 20892 | O183: 11598 | P183: 16125 | Q183: -1.39 | R183: -0.475 | S183: 0.0008388446728 | T183: 3.076318449
A184: SYN1 | B184: ENSG00000008056.13 | C184: 12 | D184: 2 | F184: 5 | G184: 6 | H184: 4 | I184: 17 | J184: 27 | K184: 7 | L184: 24 | M184: 21 | N184: 21 | O184: 5 | P184: 20 | Q184: -3.974 | R184: -1.991 | S184: 0.01383509117 | T184: 1.859017975
A185: JARID2 | B185: ENSG00000008083.13 | C185: 468 | D185: 620 | E185: 677 | F185: 659 | G185: 350 | H185: 535 | I185: 964 | J185: 986 | K185: 829 | L185: 989 | M185: 1158 | N185: 674 | O185: 552 | P185: 933 | Q185: -1.692 | R185: -0.759 | S185: 1.395163672e-05 | T185: 4.855374841
A186: CDKL5 | B186: ENSG00000008086.11 | C186: 185 | D186: 251 | E186: 292 | F186: 190 | G186: 152 | H186: 221 | I186: 220 | J186: 243 | K186: 169 | L186: 251 | M186: 258 | N186: 211 | O186: 215 | P186: 225 | Q186: -1.048 | R186: -0.068 | S186: 0.7324378895 | T186: 0.1352291974
A187: CAMK1G | B187: ENSG00000008118.9 | F187: 2 | K187: 3 | L187: 5 | M187: 2 | N187: 3 | P187: 2 | Q187: -6.701 | R187: -2.744 | S187: 0.06629802129 | T187: 1.178499433
A188: CDK11A | B188: ENSG00000008128.22 | C188: 40 | D188: 70 | E188: 51 | F188: 80 | G188: 41 | H188: 43 | I188: 63 | J188: 56 | K188: 44 | L188: 46 | M188: 58 | N188: 41 | O188: 54 | P188: 51 | Q188: -0.948 | R188: 0.077 | S188: 0.8473869587 | T188: 0.07191822407
A189: NADK | B189: ENSG00000008130.15 | C189: 4454 | D189: 4322 | E189: 4201 | F189: 4450 | G189: 4566 | H189: 3964 | I189: 4456 | J189: 4647 | K189: 4753 | L189: 4403 | M189: 4568 | N189: 4250 | O189: 4326 | P189: 4513 | Q189: -1.043 | R189: -0.061 | S189: 0.5006947156 | T189: 0.3004269922
A190: TFAP2B | B190: ENSG00000008196.12 | D190: 2 | H190: 5 | O190: 1 | Q190: -0.122 | R190: 3.033 | S190: NA
A191: DLEC1 | B191: ENSG00000008226.19 | C191: 1 | D191: 4 | E191: 2 | G191: 6 | H191: 11 | L191: 1 | M191: 2 | O191: 4 | Q191: -0.097 | R191: 3.372 | S191: 0.03214266449 | T191: 1.492918125
A192: CYTH3 | B192: ENSG00000008256.15 | C192: 2851 | D192: 3393 | E192: 3534 | F192: 3603 | G192: 3148 | H192: 3435 | I192: 2840 | J192: 2640 | K192: 2703 | L192: 2681 | M192: 2721 | N192: 2292 | O192: 3327 | P192: 2646 | Q192: -0.795 | R192: 0.33 | S192: 7.299527033e-07 | T192: 6.136705279
A193: ADAM22 | B193: ENSG00000008277.14 | C193: 343 | D193: 357 | E193: 457 | F193: 420 | G193: 412 | H193: 487 | I193: 1003 | J193: 979 | K193: 894 | L193: 1010 | M193: 1199 | N193: 912 | O193: 413 | P193: 1000 | Q193: -2.425 | R193: -1.278 | S193: 4.995460493e-32 | T193: 31.30142447
A194: SYPL1 | B194: ENSG00000008282.8 | C194: 7828 | D194: 6979 | E194: 7440 | F194: 7267 | G194: 8666 | H194: 7026 | I194: 10658 | J194: 9166 | K194: 10326 | L194: 10107 | M194: 9715 | N194: 11881 | O194: 7534 | P194: 10309 | Q194: -1.368 | R194: -0.452 | S194: 5.904776386e-11 | T194: =-LOG(S194,10) -> 10.22879654
A195: CYB561 | B195: ENSG00000008283.15 | C195: 4491 | D195: 4878 | E195: 5039 | F195: 5144 | G195: 5510 | H195: 5273 | I195: 6731 | J195: 6379 | K195: 7089 | L195: 6542 | M195: 6223 | N195: 6654 | O195: 5056 | P195: 6603 | Q195: -1.306 | R195: -0.385 | S195: 1.277489743e-12 | T195: 11.89364258
A196: SPAG9 | B196: ENSG00000008294.20 | C196: 7080 | D196: 9106 | E196: 9273 | F196: 9692 | G196: 6969 | H196: 8263 | I196: 9828 | J196: 9437 | K196: 8965 | L196: 10192 | M196: 10308 | N196: 8523 | O196: 8397 | P196: 9542 | Q196: -1.136 | R196: -0.184 | S196: 0.05795812195 | T196: 1.236885696
A197: CELSR3 | B197: ENSG00000008300.16 | C197: 738 | D197: 953 | E197: 886 | F197: 1126 | G197: 325 | H197: 843 | I197: 2674 | J197: 2468 | K197: 2372 | L197: 2478 | M197: 3304 | N197: 1020 | O197: 812 | P197: 2386 | Q197: -2.939 | R197: -1.555 | S197: 1.440583174e-07 | T197: 6.841461662
A198: AASS | B198: ENSG00000008311.14 | C198: 30 | D198: 19 | E198: 14 | F198: 35 | G198: 15 | H198: 7 | I198: 163 | J198: 189 | K198: 137 | L198: 154 | M198: 240 | N198: 85 | O198: 20 | P198: 161 | Q198: -7.903 | R198: -2.982 | S198: 7.728343086e-18 | T198: 17.11191361
A199: PLEKHG6 | B199: ENSG00000008323.15 | C199: 3 | J199: 2 | K199: 4 | L199: 1 | M199: 3 | N199: 7 | P199: 3 | Q199: -5.439 | R199: -2.443 | S199: 0.0882233809 | T199: 1.054416303
A200: SS18L2 | B200: ENSG00000008324.11 | C200: 1923 | D200: 1310 | E200: 1489 | F200: 1186 | G200: 1470 | H200: 1154 | I200: 1268 | J200: 1371 | K200: 1216 | L200: 1131 | M200: 1098 | N200: 1301 | O200: 1422 | P200: 1231 | Q200: -0.865 | R200: 0.209 | S200: 0.0844255497 | T200: 1.073526103
... 4300 more rows
